Workbook

Sheet Disclaimer
C2: CHAMAMENTO PÚBLICO – PMI Nº 01/2022 - JOAÇABA
C4: Disclaimer
C5: Note:
C6: O respecitivo modelo financeiro serve para suporte à apresentação do fluxo de caixa do projeto pelos licitantes. Adicionalmente, as premissas atreladas a crescimento de demanda, metragem, contraprestação transitória, contraprestação máxima para desconto e imposto de renda operacional estão fixadas no modelo.
C10: x | D10: Inputs fixos no modelo
C11: x | D11: Inputs flexíveis para preenchimento do licitante

Sheet Fluxo de caixa do projeto
A1: Fluxo de Caixa para o Projeto
C3: Ano de Concessão | G3: =Ops!G3 -> 1 | H3: =Ops!H3 -> 2 | I3: =Ops!I3 -> 3 | J3: =Ops!J3 -> 4 | K3: =Ops!K3 -> 5 | L3: =Ops!L3 -> 6 | M3: =Ops!M3 -> 7 | N3: =Ops!N3 -> 8 | O3: =Ops!O3 -> 9 | P3: =Ops!P3 -> 10 | Q3: =Ops!Q3 -> 11 | R3: =Ops!R3 -> 12 | S3: =Ops!S3 -> 13 | T3: =Ops!T3 -> 14 | U3: =Ops!U3 -> 15 | V3: =Ops!V3 -> 16 | W3: =Ops!W3 -> 17 | X3: =Ops!X3 -> 18 | Y3: =Ops!Y3 -> 19 | Z3: =Ops!Z3 -> 20 | AA3: =Ops!AA3 -> 21 | AB3: =Ops!AB3 -> 22 | AC3: =Ops!AC3 -> 23 | AD3: =Ops!AD3 -> 24 | AE3: =Ops!AE3 -> 25 | AF3: =Ops!AF3 -> 26 | AG3: =Ops!AG3 -> 27 | AH3: =Ops!AH3 -> 28 | AI3: =Ops!AI3 -> 29 | AJ3: =Ops!AJ3 -> 30
C5: Fluxo de Caixa do Projeto
C7: Receita Líquida
C8: Contraprestação Pública Anual | E8: $ 000s | F8: =SUM(G8:AJ8) -> 155701.2259 | G8: =Ops!G73 -> 8720 | H8: =Ops!H73 -> 4133.535497 | I8: =Ops!I73 -> 4585.214927 | J8: =Ops!J73 -> 4623.505932 | K8: =Ops!K73 -> 4661.759147 | L8: =Ops!L73 -> 4699.971757 | M8: =Ops!M73 -> 4738.256011 | N8: =Ops!N73 -> 4776.491981 | O8: =Ops!O73 -> 4814.789814 | P8: =Ops!P73 -> 4853.032178 | Q8: =Ops!Q73 -> 4891.327153 | R8: =Ops!R73 -> 4929.559945 | S8: =Ops!S73 -> 4967.836606 | T8: =Ops!T73 -> 5006.044822 | U8: =Ops!U73 -> 5044.288654 | V8: =Ops!V73 -> 5082.563074 | W8: =Ops!W73 -> 5120.863194 | X8: =Ops!X73 -> 5159.081529 | Y8: =Ops!Y73 -> 5197.318294 | Z8: =Ops!Z73 -> 5235.568984 | AA8: =Ops!AA73 -> 5273.82922 | AB8: =Ops!AB73 -> 5312.094757 | AC8: =Ops!AC73 -> 5350.361472 | AD8: =Ops!AD73 -> 5388.625371 | AE8: =Ops!AE73 -> 5426.882577 | AF8: =Ops!AF73 -> 5465.129335 | AG8: =Ops!AG73 -> 5503.455713 | AH8: =Ops!AH73 -> 5541.669819 | AI8: =Ops!AI73 -> 5579.954719 | AJ8: =Ops!AJ73 -> 5618.213433
C9: Receitas Tarifárias | E9: $ 000s | F9: =SUM(G9:AJ9) -> 340378.8764 | G9: =SUM(Ops!G132:G132) -> 0 | H9: =SUM(Ops!H132:H132) -> 6111.701693 | I9: =SUM(Ops!I132:I132) -> 8028.271845 | J9: =SUM(Ops!J132:J132) -> 10545.76195 | K9: =SUM(Ops!K132:K132) -> 10654.11793 | L9: =SUM(Ops!L132:L132) -> 10763.47105 | M9: =SUM(Ops!M132:M132) -> 10874.15368 | N9: =SUM(Ops!N132:N132) -> 10985.83346 | O9: =SUM(Ops!O132:O132) -> 11098.84276 | P9: =SUM(Ops!P132:P132) -> 11212.8492 | Q9: =SUM(Ops!Q132:Q132) -> 11328.18517 | R9: =SUM(Ops!R132:R132) -> 11444.51827 | S9: =SUM(Ops!S132:S132) -> 11562.18089 | T9: =SUM(Ops!T132:T132) -> 11680.84066 | U9: =SUM(Ops!U132:U132) -> 11800.82994 | V9: =SUM(Ops!V132:V132) -> 11922.14875 | W9: =SUM(Ops!W132:W132) -> 12044.79708 | X9: =SUM(Ops!X132:X132) -> 12168.44255 | Y9: =SUM(Ops!Y132:Y132) -> 12293.41754 | Z9: =SUM(Ops!Z132:Z132) -> 12419.72205 | AA9: =SUM(Ops!AA132:AA132) -> 12547.35608 | AB9: =SUM(Ops!AB132:AB132) -> 12676.31964 | AC9: =SUM(Ops!AC132:AC132) -> 12806.61271 | AD9: =SUM(Ops!AD132:AD132) -> 12938.23531 | AE9: =SUM(Ops!AE132:AE132) -> 13071.18742 | AF9: =SUM(Ops!AF132:AF132) -> 13205.46906 | AG9: =SUM(Ops!AG132:AG132) -> 13341.4126 | AH9: =SUM(Ops!AH132:AH132) -> 13478.35328 | AI9: =SUM(Ops!AI132:AI132) -> 13616.95587 | AJ9: =SUM(Ops!AJ132:AJ132) -> 13756.88797
C10: Deduções da Receita | E10: $ 000s | F10: =SUM(G10:AJ10) -> -60769.81254 | G10: =Ops!G149 -> -1068.2 | H10: =Ops!H149 -> -1255.041556 | I10: =Ops!I149 -> -1545.15213 | J10: =Ops!J149 -> -1858.235316 | K10: =Ops!K149 -> -1876.194942 | L10: =Ops!L149 -> -1894.271743 | M10: =Ops!M149 -> -1912.520188 | N10: =Ops!N149 -> -1930.884867 | O10: =Ops!O149 -> -1949.419991 | P10: =Ops!P149 -> -1968.070469 | Q10: =Ops!Q149 -> -1986.890259 | R10: =Ops!R149 -> -2005.824581 | S10: =Ops!S149 -> -2024.927144 | T10: =Ops!T149 -> -2044.143471 | U10: =Ops!U149 -> -2063.527028 | V10: =Ops!V149 -> -2083.077198 | W10: =Ops!W149 -> -2102.793383 | X10: =Ops!X149 -> -2122.621699 | Y10: =Ops!Y149 -> -2142.615139 | Z10: =Ops!Z149 -> -2162.773152 | AA10: =Ops!AA149 -> -2183.0952 | AB10: =Ops!AB149 -> -2203.580763 | AC10: =Ops!AC149 -> -2224.229338 | AD10: =Ops!AD149 -> -2245.040433 | AE10: =Ops!AE149 -> -2266.013575 | AF10: =Ops!AF149 -> -2287.148304 | AG10: =Ops!AG149 -> -2308.496369 | AH10: =Ops!AH149 -> -2329.95283 | AI10: =Ops!AI149 -> -2351.621547 | AJ10: =Ops!AJ149 -> -2373.449922
C11: Total | E11: $ 000s | F11: =SUM(G11:AJ11) -> 435310.2898 | G11: =SUM(G8:G10) -> 7651.8 | H11: 8990.195634 | I11: 11068.33464 | J11: 13311.03257 | K11: 13439.68213 | L11: 13569.17106 | M11: 13699.88951 | N11: 13831.44058 | O11: 13964.21259 | P11: 14097.81091 | Q11: 14232.62206 | R11: 14368.25363 | S11: 14505.09035 | T11: 14642.74201 | U11: 14781.59157 | V11: 14921.63463 | W11: 15062.86689 | X11: 15204.90238 | Y11: 15348.12069 | Z11: 15492.51788 | AA11: 15638.0901 | AB11: 15784.83363 | AC11: 15932.74485 | AD11: 16081.82025 | AE11: 16232.05643 | AF11: 16383.45009 | AG11: 16536.37195 | AH11: 16690.07027 | AI11: 16845.28904 | AJ11: 17001.65148
C13: OPEX e Capital de Giro
C14: =Ops!C227 -> Custo e despesa 1 | E14: $ 000s | F14: =SUM(G14:AJ14) -> 0 | G14: =-Ops!G227 -> 0 | H14: =-Ops!H227 -> 0 | I14: =-Ops!I227 -> 0 | J14: =-Ops!J227 -> 0 | K14: =-Ops!K227 -> 0 | L14: =-Ops!L227 -> 0 | M14: =-Ops!M227 -> 0 | N14: =-Ops!N227 -> 0 | O14: =-Ops!O227 -> 0 | P14: =-Ops!P227 -> 0 | Q14: =-Ops!Q227 -> 0 | R14: =-Ops!R227 -> 0 | S14: =-Ops!S227 -> 0 | T14: =-Ops!T227 -> 0 | U14: =-Ops!U227 -> 0 | V14: =-Ops!V227 -> 0 | W14: =-Ops!W227 -> 0 | X14: =-Ops!X227 -> 0 | Y14: =-Ops!Y227 -> 0 | Z14: =-Ops!Z227 -> 0 | AA14: =-Ops!AA227 -> 0 | AB14: =-Ops!AB227 -> 0 | AC14: =-Ops!AC227 -> 0 | AD14: =-Ops!AD227 -> 0 | AE14: =-Ops!AE227 -> 0 | AF14: =-Ops!AF227 -> 0 | AG14: =-Ops!AG227 -> 0 | AH14: =-Ops!AH227 -> 0 | AI14: =-Ops!AI227 -> 0 | AJ14: =-Ops!AJ227 -> 0
C15: =Ops!C228 -> Custo e despesa 2 | E15: $ 000s | F15: 0 | G15: =-Ops!G228 -> 0 | H15: =-Ops!H228 -> 0 | I15: =-Ops!I228 -> 0 | J15: =-Ops!J228 -> 0 | K15: =-Ops!K228 -> 0 | L15: =-Ops!L228 -> 0 | M15: =-Ops!M228 -> 0 | N15: =-Ops!N228 -> 0 | O15: =-Ops!O228 -> 0 | P15: =-Ops!P228 -> 0 | Q15: =-Ops!Q228 -> 0 | R15: =-Ops!R228 -> 0 | S15: =-Ops!S228 -> 0 | T15: =-Ops!T228 -> 0 | U15: =-Ops!U228 -> 0 | V15: =-Ops!V228 -> 0 | W15: =-Ops!W228 -> 0 | X15: =-Ops!X228 -> 0 | Y15: =-Ops!Y228 -> 0 | Z15: =-Ops!Z228 -> 0 | AA15: =-Ops!AA228 -> 0 | AB15: =-Ops!AB228 -> 0 | AC15: =-Ops!AC228 -> 0 | AD15: =-Ops!AD228 -> 0 | AE15: =-Ops!AE228 -> 0 | AF15: =-Ops!AF228 -> 0 | AG15: =-Ops!AG228 -> 0 | AH15: =-Ops!AH228 -> 0 | AI15: =-Ops!AI228 -> 0 | AJ15: =-Ops!AJ228 -> 0
C16: =Ops!C229 -> Custo e despesa 3 | E16: $ 000s | F16: 0 | G16: =-Ops!G229 -> 0 | H16: =-Ops!H229 -> 0 | I16: =-Ops!I229 -> 0 | J16: =-Ops!J229 -> 0 | K16: =-Ops!K229 -> 0 | L16: =-Ops!L229 -> 0 | M16: =-Ops!M229 -> 0 | N16: =-Ops!N229 -> 0 | O16: =-Ops!O229 -> 0 | P16: =-Ops!P229 -> 0 | Q16: =-Ops!Q229 -> 0 | R16: =-Ops!R229 -> 0 | S16: =-Ops!S229 -> 0 | T16: =-Ops!T229 -> 0 | U16: =-Ops!U229 -> 0 | V16: =-Ops!V229 -> 0 | W16: =-Ops!W229 -> 0 | X16: =-Ops!X229 -> 0 | Y16: =-Ops!Y229 -> 0 | Z16: =-Ops!Z229 -> 0 | AA16: =-Ops!AA229 -> 0 | AB16: =-Ops!AB229 -> 0 | AC16: =-Ops!AC229 -> 0 | AD16: =-Ops!AD229 -> 0 | AE16: =-Ops!AE229 -> 0 | AF16: =-Ops!AF229 -> 0 | AG16: =-Ops!AG229 -> 0 | AH16: =-Ops!AH229 -> 0 | AI16: =-Ops!AI229 -> 0 | AJ16: =-Ops!AJ229 -> 0
C17: =Ops!C230 -> Custo e despesa 4 | E17: $ 000s | F17: 0 | G17: =-Ops!G230 -> 0 | H17: =-Ops!H230 -> 0 | I17: =-Ops!I230 -> 0 | J17: =-Ops!J230 -> 0 | K17: =-Ops!K230 -> 0 | L17: =-Ops!L230 -> 0 | M17: =-Ops!M230 -> 0 | N17: =-Ops!N230 -> 0 | O17: =-Ops!O230 -> 0 | P17: =-Ops!P230 -> 0 | Q17: =-Ops!Q230 -> 0 | R17: =-Ops!R230 -> 0 | S17: =-Ops!S230 -> 0 | T17: =-Ops!T230 -> 0 | U17: =-Ops!U230 -> 0 | V17: =-Ops!V230 -> 0 | W17: =-Ops!W230 -> 0 | X17: =-Ops!X230 -> 0 | Y17: =-Ops!Y230 -> 0 | Z17: =-Ops!Z230 -> 0 | AA17: =-Ops!AA230 -> 0 | AB17: =-Ops!AB230 -> 0 | AC17: =-Ops!AC230 -> 0 | AD17: =-Ops!AD230 -> 0 | AE17: =-Ops!AE230 -> 0 | AF17: =-Ops!AF230 -> 0 | AG17: =-Ops!AG230 -> 0 | AH17: =-Ops!AH230 -> 0 | AI17: =-Ops!AI230 -> 0 | AJ17: =-Ops!AJ230 -> 0
C18: =Ops!C231 -> Custo e despesa 5 | E18: $ 000s | F18: 0 | G18: =-Ops!G231 -> 0 | H18: =-Ops!H231 -> 0 | I18: =-Ops!I231 -> 0 | J18: =-Ops!J231 -> 0 | K18: =-Ops!K231 -> 0 | L18: =-Ops!L231 -> 0 | M18: =-Ops!M231 -> 0 | N18: =-Ops!N231 -> 0 | O18: =-Ops!O231 -> 0 | P18: =-Ops!P231 -> 0 | Q18: =-Ops!Q231 -> 0 | R18: =-Ops!R231 -> 0 | S18: =-Ops!S231 -> 0 | T18: =-Ops!T231 -> 0 | U18: =-Ops!U231 -> 0 | V18: =-Ops!V231 -> 0 | W18: =-Ops!W231 -> 0 | X18: =-Ops!X231 -> 0 | Y18: =-Ops!Y231 -> 0 | Z18: =-Ops!Z231 -> 0 | AA18: =-Ops!AA231 -> 0 | AB18: =-Ops!AB231 -> 0 | AC18: =-Ops!AC231 -> 0 | AD18: =-Ops!AD231 -> 0 | AE18: =-Ops!AE231 -> 0 | AF18: =-Ops!AF231 -> 0 | AG18: =-Ops!AG231 -> 0 | AH18: =-Ops!AH231 -> 0 | AI18: =-Ops!AI231 -> 0 | AJ18: =-Ops!AJ231 -> 0
C19: =Ops!C232 -> Custo e despesa 6 | E19: $ 000s | F19: 0 | G19: =-Ops!G232 -> 0 | H19: =-Ops!H232 -> 0 | I19: =-Ops!I232 -> 0 | J19: =-Ops!J232 -> 0 | K19: =-Ops!K232 -> 0 | L19: =-Ops!L232 -> 0 | M19: =-Ops!M232 -> 0 | N19: =-Ops!N232 -> 0 | O19: =-Ops!O232 -> 0 | P19: =-Ops!P232 -> 0 | Q19: =-Ops!Q232 -> 0 | R19: =-Ops!R232 -> 0 | S19: =-Ops!S232 -> 0 | T19: =-Ops!T232 -> 0 | U19: =-Ops!U232 -> 0 | V19: =-Ops!V232 -> 0 | W19: =-Ops!W232 -> 0 | X19: =-Ops!X232 -> 0 | Y19: =-Ops!Y232 -> 0 | Z19: =-Ops!Z232 -> 0 | AA19: =-Ops!AA232 -> 0 | AB19: =-Ops!AB232 -> 0 | AC19: =-Ops!AC232 -> 0 | AD19: =-Ops!AD232 -> 0 | AE19: =-Ops!AE232 -> 0 | AF19: =-Ops!AF232 -> 0 | AG19: =-Ops!AG232 -> 0 | AH19: =-Ops!AH232 -> 0 | AI19: =-Ops!AI232 -> 0 | AJ19: =-Ops!AJ232 -> 0
C20: =Ops!C233 -> Custo e despesa 7 | E20: $ 000s | F20: 0 | G20: =-Ops!G233 -> 0 | H20: =-Ops!H233 -> 0 | I20: =-Ops!I233 -> 0 | J20: =-Ops!J233 -> 0 | K20: =-Ops!K233 -> 0 | L20: =-Ops!L233 -> 0 | M20: =-Ops!M233 -> 0 | N20: =-Ops!N233 -> 0 | O20: =-Ops!O233 -> 0 | P20: =-Ops!P233 -> 0 | Q20: =-Ops!Q233 -> 0 | R20: =-Ops!R233 -> 0 | S20: =-Ops!S233 -> 0 | T20: =-Ops!T233 -> 0 | U20: =-Ops!U233 -> 0 | V20: =-Ops!V233 -> 0 | W20: =-Ops!W233 -> 0 | X20: =-Ops!X233 -> 0 | Y20: =-Ops!Y233 -> 0 | Z20: =-Ops!Z233 -> 0 | AA20: =-Ops!AA233 -> 0 | AB20: =-Ops!AB233 -> 0 | AC20: =-Ops!AC233 -> 0 | AD20: =-Ops!AD233 -> 0 | AE20: =-Ops!AE233 -> 0 | AF20: =-Ops!AF233 -> 0 | AG20: =-Ops!AG233 -> 0 | AH20: =-Ops!AH233 -> 0 | AI20: =-Ops!AI233 -> 0 | AJ20: =-Ops!AJ233 -> 0
C21: =Ops!C234 -> Custo e despesa 8 | E21: $ 000s | F21: 0 | G21: =-Ops!G234 -> 0 | H21: =-Ops!H234 -> 0 | I21: =-Ops!I234 -> 0 | J21: =-Ops!J234 -> 0 | K21: =-Ops!K234 -> 0 | L21: =-Ops!L234 -> 0 | M21: =-Ops!M234 -> 0 | N21: =-Ops!N234 -> 0 | O21: =-Ops!O234 -> 0 | P21: =-Ops!P234 -> 0 | Q21: =-Ops!Q234 -> 0 | R21: =-Ops!R234 -> 0 | S21: =-Ops!S234 -> 0 | T21: =-Ops!T234 -> 0 | U21: =-Ops!U234 -> 0 | V21: =-Ops!V234 -> 0 | W21: =-Ops!W234 -> 0 | X21: =-Ops!X234 -> 0 | Y21: =-Ops!Y234 -> 0 | Z21: =-Ops!Z234 -> 0 | AA21: =-Ops!AA234 -> 0 | AB21: =-Ops!AB234 -> 0 | AC21: =-Ops!AC234 -> 0 | AD21: =-Ops!AD234 -> 0 | AE21: =-Ops!AE234 -> 0 | AF21: =-Ops!AF234 -> 0 | AG21: =-Ops!AG234 -> 0 | AH21: =-Ops!AH234 -> 0 | AI21: =-Ops!AI234 -> 0 | AJ21: =-Ops!AJ234 -> 0
C22: =Ops!C235 -> Custo e despesa 9 | E22: $ 000s | F22: 0 | G22: =-Ops!G235 -> 0 | H22: =-Ops!H235 -> 0 | I22: =-Ops!I235 -> 0 | J22: =-Ops!J235 -> 0 | K22: =-Ops!K235 -> 0 | L22: =-Ops!L235 -> 0 | M22: =-Ops!M235 -> 0 | N22: =-Ops!N235 -> 0 | O22: =-Ops!O235 -> 0 | P22: =-Ops!P235 -> 0 | Q22: =-Ops!Q235 -> 0 | R22: =-Ops!R235 -> 0 | S22: =-Ops!S235 -> 0 | T22: =-Ops!T235 -> 0 | U22: =-Ops!U235 -> 0 | V22: =-Ops!V235 -> 0 | W22: =-Ops!W235 -> 0 | X22: =-Ops!X235 -> 0 | Y22: =-Ops!Y235 -> 0 | Z22: =-Ops!Z235 -> 0 | AA22: =-Ops!AA235 -> 0 | AB22: =-Ops!AB235 -> 0 | AC22: =-Ops!AC235 -> 0 | AD22: =-Ops!AD235 -> 0 | AE22: =-Ops!AE235 -> 0 | AF22: =-Ops!AF235 -> 0 | AG22: =-Ops!AG235 -> 0 | AH22: =-Ops!AH235 -> 0 | AI22: =-Ops!AI235 -> 0 | AJ22: =-Ops!AJ235 -> 0
C23: =Ops!C236 -> Custo e despesa 10 | E23: $ 000s | F23: 0 | G23: =-Ops!G236 -> 0 | H23: =-Ops!H236 -> 0 | I23: =-Ops!I236 -> 0 | J23: =-Ops!J236 -> 0 | K23: =-Ops!K236 -> 0 | L23: =-Ops!L236 -> 0 | M23: =-Ops!M236 -> 0 | N23: =-Ops!N236 -> 0 | O23: =-Ops!O236 -> 0 | P23: =-Ops!P236 -> 0 | Q23: =-Ops!Q236 -> 0 | R23: =-Ops!R236 -> 0 | S23: =-Ops!S236 -> 0 | T23: =-Ops!T236 -> 0 | U23: =-Ops!U236 -> 0 | V23: =-Ops!V236 -> 0 | W23: =-Ops!W236 -> 0 | X23: =-Ops!X236 -> 0 | Y23: =-Ops!Y236 -> 0 | Z23: =-Ops!Z236 -> 0 | AA23: =-Ops!AA236 -> 0 | AB23: =-Ops!AB236 -> 0 | AC23: =-Ops!AC236 -> 0 | AD23: =-Ops!AD236 -> 0 | AE23: =-Ops!AE236 -> 0 | AF23: =-Ops!AF236 -> 0 | AG23: =-Ops!AG236 -> 0 | AH23: =-Ops!AH236 -> 0 | AI23: =-Ops!AI236 -> 0 | AJ23: =-Ops!AJ236 -> 0
C24: =Ops!C237 -> Custo e despesa 11 | E24: $ 000s | F24: 0 | G24: =-Ops!G237 -> 0 | H24: =-Ops!H237 -> 0 | I24: =-Ops!I237 -> 0 | J24: =-Ops!J237 -> 0 | K24: =-Ops!K237 -> 0 | L24: =-Ops!L237 -> 0 | M24: =-Ops!M237 -> 0 | N24: =-Ops!N237 -> 0 | O24: =-Ops!O237 -> 0 | P24: =-Ops!P237 -> 0 | Q24: =-Ops!Q237 -> 0 | R24: =-Ops!R237 -> 0 | S24: =-Ops!S237 -> 0 | T24: =-Ops!T237 -> 0 | U24: =-Ops!U237 -> 0 | V24: =-Ops!V237 -> 0 | W24: =-Ops!W237 -> 0 | X24: =-Ops!X237 -> 0 | Y24: =-Ops!Y237 -> 0 | Z24: =-Ops!Z237 -> 0 | AA24: =-Ops!AA237 -> 0 | AB24: =-Ops!AB237 -> 0 | AC24: =-Ops!AC237 -> 0 | AD24: =-Ops!AD237 -> 0 | AE24: =-Ops!AE237 -> 0 | AF24: =-Ops!AF237 -> 0 | AG24: =-Ops!AG237 -> 0 | AH24: =-Ops!AH237 -> 0 | AI24: =-Ops!AI237 -> 0 | AJ24: =-Ops!AJ237 -> 0
C25: =Ops!C238 -> Custo e despesa 12 | E25: $ 000s | F25: 0 | G25: =-Ops!G238 -> 0 | H25: =-Ops!H238 -> 0 | I25: =-Ops!I238 -> 0 | J25: =-Ops!J238 -> 0 | K25: =-Ops!K238 -> 0 | L25: =-Ops!L238 -> 0 | M25: =-Ops!M238 -> 0 | N25: =-Ops!N238 -> 0 | O25: =-Ops!O238 -> 0 | P25: =-Ops!P238 -> 0 | Q25: =-Ops!Q238 -> 0 | R25: =-Ops!R238 -> 0 | S25: =-Ops!S238 -> 0 | T25: =-Ops!T238 -> 0 | U25: =-Ops!U238 -> 0 | V25: =-Ops!V238 -> 0 | W25: =-Ops!W238 -> 0 | X25: =-Ops!X238 -> 0 | Y25: =-Ops!Y238 -> 0 | Z25: =-Ops!Z238 -> 0 | AA25: =-Ops!AA238 -> 0 | AB25: =-Ops!AB238 -> 0 | AC25: =-Ops!AC238 -> 0 | AD25: =-Ops!AD238 -> 0 | AE25: =-Ops!AE238 -> 0 | AF25: =-Ops!AF238 -> 0 | AG25: =-Ops!AG238 -> 0 | AH25: =-Ops!AH238 -> 0 | AI25: =-Ops!AI238 -> 0 | AJ25: =-Ops!AJ238 -> 0
C26: =Ops!C239 -> Custo e despesa 13 | E26: $ 000s | F26: 0 | G26: =-Ops!G239 -> 0 | H26: =-Ops!H239 -> 0 | I26: =-Ops!I239 -> 0 | J26: =-Ops!J239 -> 0 | K26: =-Ops!K239 -> 0 | L26: =-Ops!L239 -> 0 | M26: =-Ops!M239 -> 0 | N26: =-Ops!N239 -> 0 | O26: =-Ops!O239 -> 0 | P26: =-Ops!P239 -> 0 | Q26: =-Ops!Q239 -> 0 | R26: =-Ops!R239 -> 0 | S26: =-Ops!S239 -> 0 | T26: =-Ops!T239 -> 0 | U26: =-Ops!U239 -> 0 | V26: =-Ops!V239 -> 0 | W26: =-Ops!W239 -> 0 | X26: =-Ops!X239 -> 0 | Y26: =-Ops!Y239 -> 0 | Z26: =-Ops!Z239 -> 0 | AA26: =-Ops!AA239 -> 0 | AB26: =-Ops!AB239 -> 0 | AC26: =-Ops!AC239 -> 0 | AD26: =-Ops!AD239 -> 0 | AE26: =-Ops!AE239 -> 0 | AF26: =-Ops!AF239 -> 0 | AG26: =-Ops!AG239 -> 0 | AH26: =-Ops!AH239 -> 0 | AI26: =-Ops!AI239 -> 0 | AJ26: =-Ops!AJ239 -> 0
C27: =Ops!C240 -> Custo e despesa 14 | E27: $ 000s | F27: 0 | G27: =-Ops!G240 -> 0 | H27: =-Ops!H240 -> 0 | I27: =-Ops!I240 -> 0 | J27: =-Ops!J240 -> 0 | K27: =-Ops!K240 -> 0 | L27: =-Ops!L240 -> 0 | M27: =-Ops!M240 -> 0 | N27: =-Ops!N240 -> 0 | O27: =-Ops!O240 -> 0 | P27: =-Ops!P240 -> 0 | Q27: =-Ops!Q240 -> 0 | R27: =-Ops!R240 -> 0 | S27: =-Ops!S240 -> 0 | T27: =-Ops!T240 -> 0 | U27: =-Ops!U240 -> 0 | V27: =-Ops!V240 -> 0 | W27: =-Ops!W240 -> 0 | X27: =-Ops!X240 -> 0 | Y27: =-Ops!Y240 -> 0 | Z27: =-Ops!Z240 -> 0 | AA27: =-Ops!AA240 -> 0 | AB27: =-Ops!AB240 -> 0 | AC27: =-Ops!AC240 -> 0 | AD27: =-Ops!AD240 -> 0 | AE27: =-Ops!AE240 -> 0 | AF27: =-Ops!AF240 -> 0 | AG27: =-Ops!AG240 -> 0 | AH27: =-Ops!AH240 -> 0 | AI27: =-Ops!AI240 -> 0 | AJ27: =-Ops!AJ240 -> 0
C28: Total Opex | E28: $ 000s | F28: 0 | G28: =SUM(G14:G27) -> 0 | H28: 0 | I28: 0 | J28: 0 | K28: 0 | L28: 0 | M28: 0 | N28: 0 | O28: 0 | P28: 0 | Q28: 0 | R28: 0 | S28: 0 | T28: 0 | U28: 0 | V28: 0 | W28: 0 | X28: 0 | Y28: 0 | Z28: 0 | AA28: 0 | AB28: 0 | AC28: 0 | AD28: 0 | AE28: 0 | AF28: 0 | AG28: 0 | AH28: 0 | AI28: 0 | AJ28: 0
C30: Ajustes de Capital de Giro | E30: $ 000s | F30: =SUM(G30:AK30) -> 0 | G30: =Ops!G268 -> 0 | H30: =Ops!H268 -> 0 | I30: =Ops!I268 -> 0 | J30: =Ops!J268 -> 0 | K30: =Ops!K268 -> 0 | L30: =Ops!L268 -> 0 | M30: =Ops!M268 -> 0 | N30: =Ops!N268 -> 0 | O30: =Ops!O268 -> 0 | P30: =Ops!P268 -> 0 | Q30: =Ops!Q268 -> 0 | R30: =Ops!R268 -> 0 | S30: =Ops!S268 -> 0 | T30: =Ops!T268 -> 0 | U30: =Ops!U268 -> 0 | V30: =Ops!V268 -> 0 | W30: =Ops!W268 -> 0 | X30: =Ops!X268 -> 0 | Y30: =Ops!Y268 -> 0 | Z30: =Ops!Z268 -> 0 | AA30: =Ops!AA268 -> 0 | AB30: =Ops!AB268 -> 0 | AC30: =Ops!AC268 -> 0 | AD30: =Ops!AD268 -> 0 | AE30: =Ops!AE268 -> 0 | AF30: =Ops!AF268 -> 0 | AG30: =Ops!AG268 -> 0 | AH30: =Ops!AH268 -> 0 | AI30: =Ops!AI268 -> 0 | AJ30: =Ops!AJ268 -> 0
C32: Fluxo de Caixa antes dos investimentos | E32: $ 000s | F32: =SUM(G32:AJ32) -> 435310.2898 | G32: =G11+G28+G30 -> 7651.8 | H32: 8990.195634 | I32: 11068.33464 | J32: 13311.03257 | K32: 13439.68213 | L32: 13569.17106 | M32: 13699.88951 | N32: 13831.44058 | O32: 13964.21259 | P32: 14097.81091 | Q32: 14232.62206 | R32: 14368.25363 | S32: 14505.09035 | T32: 14642.74201 | U32: 14781.59157 | V32: 14921.63463 | W32: 15062.86689 | X32: 15204.90238 | Y32: 15348.12069 | Z32: 15492.51788 | AA32: 15638.0901 | AB32: 15784.83363 | AC32: 15932.74485 | AD32: 16081.82025 | AE32: 16232.05643 | AF32: 16383.45009 | AG32: 16536.37195 | AH32: 16690.07027 | AI32: 16845.28904 | AJ32: 17001.65148
C34: CAPEX
C35: =Ops!C291 -> CAPEX - Divisíveis | E35: $ 000s | F35: =SUM(G35:AJ35) -> 0 | G35: =-Ops!G291 -> 0 | H35: =-Ops!H291 -> 0 | I35: =-Ops!I291 -> 0 | J35: =-Ops!J291 -> 0 | K35: =-Ops!K291 -> 0 | L35: =-Ops!L291 -> 0 | M35: =-Ops!M291 -> 0 | N35: =-Ops!N291 -> 0 | O35: =-Ops!O291 -> 0 | P35: =-Ops!P291 -> 0 | Q35: =-Ops!Q291 -> 0 | R35: =-Ops!R291 -> 0 | S35: =-Ops!S291 -> 0 | T35: =-Ops!T291 -> 0 | U35: =-Ops!U291 -> 0 | V35: =-Ops!V291 -> 0 | W35: =-Ops!W291 -> 0 | X35: =-Ops!X291 -> 0 | Y35: =-Ops!Y291 -> 0 | Z35: =-Ops!Z291 -> 0 | AA35: =-Ops!AA291 -> 0 | AB35: =-Ops!AB291 -> 0 | AC35: =-Ops!AC291 -> 0 | AD35: =-Ops!AD291 -> 0 | AE35: =-Ops!AE291 -> 0 | AF35: =-Ops!AF291 -> 0 | AG35: =-Ops!AG291 -> 0 | AH35: =-Ops!AH291 -> 0 | AI35: =-Ops!AI291 -> 0 | AJ35: =-Ops!AJ291 -> 0
C36: =Ops!C292 -> CAPEX - Indivisíveis | E36: =Ops!E292 -> $ 000s | F36: =SUM(G36:AJ36) -> 0 | G36: =-Ops!G292 -> 0 | H36: =-Ops!H292 -> 0 | I36: =-Ops!I292 -> 0 | J36: =-Ops!J292 -> 0 | K36: =-Ops!K292 -> 0 | L36: =-Ops!L292 -> 0 | M36: =-Ops!M292 -> 0 | N36: =-Ops!N292 -> 0 | O36: =-Ops!O292 -> 0 | P36: =-Ops!P292 -> 0 | Q36: =-Ops!Q292 -> 0 | R36: =-Ops!R292 -> 0 | S36: =-Ops!S292 -> 0 | T36: =-Ops!T292 -> 0 | U36: =-Ops!U292 -> 0 | V36: =-Ops!V292 -> 0 | W36: =-Ops!W292 -> 0 | X36: =-Ops!X292 -> 0 | Y36: =-Ops!Y292 -> 0 | Z36: =-Ops!Z292 -> 0 | AA36: =-Ops!AA292 -> 0 | AB36: =-Ops!AB292 -> 0 | AC36: =-Ops!AC292 -> 0 | AD36: =-Ops!AD292 -> 0 | AE36: =-Ops!AE292 -> 0 | AF36: =-Ops!AF292 -> 0 | AG36: =-Ops!AG292 -> 0 | AH36: =-Ops!AH292 -> 0 | AI36: =-Ops!AI292 -> 0 | AJ36: =-Ops!AJ292 -> 0
C37: CAPEX total | E37: $ 000s | F37: =SUM(G37:AJ37) -> 0 | G37: =SUM(G35:G36) -> 0 | H37: 0 | I37: 0 | J37: 0 | K37: 0 | L37: 0 | M37: 0 | N37: 0 | O37: 0 | P37: 0 | Q37: 0 | R37: 0 | S37: 0 | T37: 0 | U37: 0 | V37: 0 | W37: 0 | X37: 0 | Y37: 0 | Z37: 0 | AA37: 0 | AB37: 0 | AC37: 0 | AD37: 0 | AE37: 0 | AF37: 0 | AG37: 0 | AH37: 0 | AI37: 0 | AJ37: 0
C40: Fluxo de Caixa após investimentos | E40: $ 000s | F40: =SUM(G40:AJ40) -> 435310.2898 | G40: =G32+G37 -> 7651.8 | H40: =H32+H37 -> 8990.195634 | I40: 11068.33464 | J40: 13311.03257 | K40: 13439.68213 | L40: 13569.17106 | M40: 13699.88951 | N40: 13831.44058 | O40: 13964.21259 | P40: 14097.81091 | Q40: 14232.62206 | R40: 14368.25363 | S40: 14505.09035 | T40: 14642.74201 | U40: 14781.59157 | V40: 14921.63463 | W40: 15062.86689 | X40: 15204.90238 | Y40: 15348.12069 | Z40: 15492.51788 | AA40: 15638.0901 | AB40: 15784.83363 | AC40: 15932.74485 | AD40: 16081.82025 | AE40: 16232.05643 | AF40: 16383.45009 | AG40: 16536.37195 | AH40: 16690.07027 | AI40: 16845.28904 | AJ40: 17001.65148
C43: IR / CSLL Operacional
C44: IR / CSLL pagos | E44: $ 000s | F44: =SUM(G44:AJ44) -> -147285.4985 | G44: =Ops!G776 -> -2577.612 | H44: =Ops!H776 -> -3032.666516 | I44: =Ops!I776 -> -3739.233778 | J44: =Ops!J776 -> -4501.751074 | K44: =Ops!K776 -> -4545.491926 | L44: =Ops!L776 -> -4589.51816 | M44: =Ops!M776 -> -4633.962433 | N44: =Ops!N776 -> -4678.689796 | O44: =Ops!O776 -> -4723.832279 | P44: =Ops!P776 -> -4769.25571 | Q44: =Ops!Q776 -> -4815.0915 | R44: =Ops!R776 -> -4861.206235 | S44: =Ops!S776 -> -4907.730721 | T44: =Ops!T776 -> -4954.532283 | U44: =Ops!U776 -> -5001.741134 | V44: =Ops!V776 -> -5049.355773 | W44: =Ops!W776 -> -5097.374742 | X44: =Ops!X776 -> -5145.666808 | Y44: =Ops!Y776 -> -5194.361036 | Z44: =Ops!Z776 -> -5243.45608 | AA44: =Ops!AA776 -> -5292.950635 | AB44: =Ops!AB776 -> -5342.843434 | AC44: =Ops!AC776 -> -5393.133248 | AD44: =Ops!AD776 -> -5443.818883 | AE44: =Ops!AE776 -> -5494.899185 | AF44: =Ops!AF776 -> -5546.373032 | AG44: =Ops!AG776 -> -5598.366462 | AH44: =Ops!AH776 -> -5650.623893 | AI44: =Ops!AI776 -> -5703.398273 | AJ44: =Ops!AJ776 -> -5756.561504
C47: Fluxo de caixa para o projeto
E48: $ 000s | F48: =SUM(G48:AJ48) -> 288024.7913 | G48: =G40+G44 -> 5074.188 | H48: 5957.529118 | I48: 7329.100864 | J48: 8809.281496 | K48: 8894.190209 | L48: 8979.652899 | M48: 9065.927075 | N48: 9152.750781 | O48: 9240.380307 | P48: 9328.555202 | Q48: 9417.530559 | R48: 9507.047397 | S48: 9597.359634 | T48: 9688.209725 | U48: 9779.850436 | V48: 9872.278853 | W48: 9965.492147 | X48: 10059.23557 | Y48: 10153.75966 | Z48: 10249.0618 | AA48: 10345.13947 | AB48: 10441.9902 | AC48: 10539.6116 | AD48: 10638.00136 | AE48: 10737.15724 | AF48: 10837.07706 | AG48: 10938.00549 | AH48: 11039.44638 | AI48: 11141.89077 | AJ48: 11245.08998
C53: Project TIR
C54: Financial period end date | E54: Date | G54: 2024-12-31 | H54: 2025-12-31 | I54: 2026-12-31 | J54: 2027-12-31 | K54: 2028-12-31 | L54: 2029-12-31 | M54: 2030-12-31 | N54: 2031-12-31 | O54: 2032-12-31 | P54: 2033-12-31 | Q54: 2034-12-31 | R54: 2035-12-31 | S54: 2036-12-31 | T54: 2037-12-31 | U54: 2038-12-31 | V54: 2039-12-31 | W54: 2040-12-31 | X54: 2041-12-31 | Y54: 2042-12-31 | Z54: 2043-12-31 | AA54: 2044-12-31 | AB54: 2045-12-31 | AC54: 2046-12-31 | AD54: 2047-12-31 | AE54: 2048-12-31 | AF54: 2049-12-31 | AG54: 2050-12-31 | AH54: 2051-12-31 | AI54: 2052-12-31 | AJ54: 2053-12-31 | AM54: 2056-12-31
C56: Investimentos | E56: $ R$ | G56: =G37 -> 0 | H56: =H37 -> 0 | I56: 0 | J56: 0 | K56: 0 | L56: 0 | M56: 0 | N56: 0 | O56: 0 | P56: 0 | Q56: 0 | R56: 0 | S56: 0 | T56: 0 | U56: 0 | V56: 0 | W56: 0 | X56: 0 | Y56: 0 | Z56: 0 | AA56: 0 | AB56: 0 | AC56: 0 | AD56: 0 | AE56: 0 | AF56: 0 | AG56: 0 | AH56: 0 | AI56: 0 | AJ56: 0
C57: Fluxo de Caixa Operacional - Impostos | E57: $ R$ | G57: =G48 -> 5074.188 | H57: =H48 -> 5957.529118 | I57: 7329.100864 | J57: 8809.281496 | K57: 8894.190209 | L57: 8979.652899 | M57: 9065.927075 | N57: 9152.750781 | O57: 9240.380307 | P57: 9328.555202 | Q57: 9417.530559 | R57: 9507.047397 | S57: 9597.359634 | T57: 9688.209725 | U57: 9779.850436 | V57: 9872.278853 | W57: 9965.492147 | X57: 10059.23557 | Y57: 10153.75966 | Z57: 10249.0618 | AA57: 10345.13947 | AB57: 10441.9902 | AC57: 10539.6116 | AD57: 10638.00136 | AE57: 10737.15724 | AF57: 10837.07706 | AG57: 10938.00549 | AH57: 11039.44638 | AI57: 11141.89077 | AJ57: 11245.08998
C58: Fluxo de Caixa para o projeto | E58: $ R$ | G58: =SUM(G56:G57) -> 5074.188 | H58: 5957.529118 | I58: 7329.100864 | J58: 8809.281496 | K58: 8894.190209 | L58: 8979.652899 | M58: 9065.927075 | N58: 9152.750781 | O58: 9240.380307 | P58: 9328.555202 | Q58: 9417.530559 | R58: 9507.047397 | S58: 9597.359634 | T58: 9688.209725 | U58: 9779.850436 | V58: 9872.278853 | W58: 9965.492147 | X58: 10059.23557 | Y58: 10153.75966 | Z58: 10249.0618 | AA58: 10345.13947 | AB58: 10441.9902 | AC58: 10539.6116 | AD58: 10638.00136 | AE58: 10737.15724 | AF58: 10837.07706 | AG58: 10938.00549 | AH58: 11039.44638 | AI58: 11141.89077 | AJ58: 11245.08998
C61: Project IRR | D61: =XIRR(G58:AJ58,G54:AJ54) ->  | E61: $ R$

Sheet Inputs
A1: INPUTS
C4: Premissas temporais
C6: Início da Operação | D6: Ano | E6: 1
C7: Inicio Investimentos | D7: Ano | E7: 1
C8: Concessão | D8: Anos | E8: 30
C10: Investimentos (CAPEX)
C12: CAPEX segregado por Serviço
C13: CAPEX de Investimento | D13: 1 | E13: =D13+1 -> 2 | F13: =E13+1 -> 3 | G13: 4 | H13: 5 | I13: 6 | J13: 7 | K13: 8 | L13: 9 | M13: 10 | N13: 11 | O13: 12 | P13: 13 | Q13: 14 | R13: 15 | S13: 16 | T13: 17 | U13: 18 | V13: 19 | W13: 20 | X13: 21 | Y13: 22 | Z13: 23 | AA13: 24 | AB13: 25 | AC13: 26 | AD13: 27 | AE13: 28 | AF13: 29 | AG13: 30
C14: Coleta Manual E Conteinerizada Rsc
C15: Coleta De Materiais Recicláveis
C16: Coleta De Resíduos Do Serviço De Saúde Municipal
C17: Transporte E Destinação Final - Resíduos Pevs
C18: Coleta Programada De Volumosos
C19: Varrição Manual
C20: Serviços Gerais
C21: Investimentos Destinação Final
C22: Educação Ambiental
C23: Relação Com O Usuário
C24: Administração Local
C25: Reembolso Do PMI
C30: Investimentos divisíveis e indivisíveis
C31: CAPEX de Investimento | D31: #
C32: Coleta Manual E Conteinerizada Rsc | D32: Divisivel
C33: Coleta De Materiais Recicláveis | D33: Divisivel
C34: Coleta De Resíduos Do Serviço De Saúde Municipal | D34: Divisivel
C35: Transporte E Destinação Final - Resíduos Pevs | D35: Divisivel
C36: Coleta Programada De Volumosos | D36: Divisivel
C37: Varrição Manual | D37: Indivisível
C38: Serviços Gerais | D38: Indivisível
C39: Investimentos Destinação Final | D39: Divisivel
C40: Educação Ambiental | D40: Indivisível
C41: Relação Com O Usuário | D41: Indivisível
C42: Administração Local | D42: Indivisível
C43: Reembolso Do PMI | D43: Indivisível
C48: CAPEX segregado por tipo e característica de Investimento (fins fiscais)
C49: CAPEX de Investimento | D49: Característica | E49: 1 | F49: =E49+1 -> 2 | G49: =F49+1 -> 3 | H49: 4 | I49: 5 | J49: 6 | K49: 7 | L49: 8 | M49: 9 | N49: 10 | O49: 11 | P49: 12 | Q49: 13 | R49: 14 | S49: 15 | T49: 16 | U49: 17 | V49: 18 | W49: 19 | X49: 20 | Y49: 21 | Z49: 22 | AA49: 23 | AB49: 24 | AC49: 25 | AD49: 26 | AE49: 27 | AF49: 28 | AG49: 29 | AH49: 30
C50: Estudos | D50: Divisivel
C51: Veículos | D51: Divisivel
C52: Equipamentos | D52: Divisivel
C53: Adicionais | D53: Divisivel
C54: Estudos | D54: Indivisível
C55: Veículos | D55: Indivisível
C56: Equipamentos | D56: Indivisível
C57: Adicionais | D57: Indivisível
C58: Check | D58: =SUM(E50:AH57)-SUM(Inputs!D14:AG27) -> 0
C62: Contraprestação Pública Mensal
C64: Contraprestação anual | D64: 3723 | E64: $ 000s
C65: Contraprestação transitória | D65: 4997 | E65: $ 000s
C67: Desconto contraprestação | D67: 0 | E67: %
C69: Início da cobrança | D69: 1 | E69: Ano
C71: Parcela A - Remuneração Investimentos | D71: 0.5 | E71: %
C72: Parcela B - Remuneração Serviços | D72: 0.5 | E72: %
C74: Fator de Desempenho | D74: 1 | E74: Fator
D76: 1 | E76: =D76+1 -> 2 | F76: =E76+1 -> 3 | G76: 4 | H76: =G76+1 -> 5
C77: % de recebimento contraprestação - faseado | D77: =(CP+D65)/CP -> 2.342197153 | E77: 1 | F77: 1 | G77: 1 | H77: 1
C82: Receitas tarifárias
C84: Estrutura tarifária
C86: Início da cobrança | D86: 2 | E86: ano
C88: Aumento Real | D88: 0.6004109779 | E88: %
C90: Desconto aumento real | D90: =D67 -> 0 | E90: %
C92: Frequência Semanal | D92: Imóveis Residenciais | E92: Imóveis Não Residenciais
C93: 1 | D93: 0.918852 | E93: 1.127682 | F93: Valor básico referencial
C94: 2 | D94: 1.837704 | E94: 2.673024 | F94: Valor básico referencial
C95: 3 | D95: 2.57557 | E95: 3.96777 | F95: Valor básico referencial
C96: 4 | D96: 3.160294 | E96: 4.719558 | F96: Valor básico referencial
C97: 5 | D97: 3.494422 | E97: 5.346048 | F97: Valor básico referencial
C98: 6 | D98: 4.274054 | E98: 6.111758 | F98: Valor básico referencial
C101: Deduções da Receita
C103: Imposto s/ serviço - (ISS) | D103: 0.03 | E103: %
C104: Programa Integração Social - (PIS) | D104: 0.0165 | E104: %
C105: Contribuição para Financiamento de Seguridade Social - (COFINS) | D105: 0.076 | E105: %
C107: Crédito de PIS / Cofins a ser utilizado sobre CAPEX e OPEX | D107: 1 | E107: %
C109: Ano | D109: 2 | E109: =D109+1 -> 3 | F109: 4 | G109: 5 | H109: 6 | I109: 7 | J109: 8
C110: Inadimplência das Receitas Tarifárias
C114: Custos e Despesas Operacionais (OPEX)
C116: Custos e Despesas
C120: Custos e Despesas | D120: 1 | E120: =D120+1 -> 2 | F120: =E120+1 -> 3 | G120: 4 | H120: 5 | I120: 6 | J120: 7 | K120: 8 | L120: 9 | M120: 10 | N120: 11 | O120: 12 | P120: 13 | Q120: 14 | R120: 15 | S120: 16 | T120: 17 | U120: 18 | V120: 19 | W120: 20 | X120: 21 | Y120: 22 | Z120: 23 | AA120: 24 | AB120: 25 | AC120: 26 | AD120: 27 | AE120: 28 | AF120: 29 | AG120: 30
C121: Custo e despesa 1
C122: Custo e despesa 2
C123: Custo e despesa 3
C124: Custo e despesa 4
C125: Custo e despesa 5
C126: Custo e despesa 6
C127: Custo e despesa 7
C128: Custo e despesa 8
C129: Custo e despesa 9
C130: Custo e despesa 10
C131: Custo e despesa 11
C132: Custo e despesa 12
C133: Custo e despesa 13
C134: Custo e despesa 14
C138: Imobilizado (fins fiscais)
C140: Classe de imobilizado
C141: Estudos
C142: Veículos
C143: Equipamentos
C144: Adicionais
C146: Grupo macro
C147: Divisivel
C148: Indivisível
C150: Taxa de depreciação | D150: Taxa de depreciação | E150: Valor residual
C151: Estudos
C152: Veículos
C153: Equipamentos
C154: Adicionais
C157: Capital de Giro
C159: Dias | E159: Dias
C160: Contas a receber | D160: Dias
C161: Estoques | D161: Dias
C162: Contas a pagar | D162: Dias
C163: Obrigações sociais e trabalhistas | D163: Dias
C165: Imposto
C166: IR e CSLL
C167: Aliquota IRPJ | D167: % | E167: 0.15
C168: Adicional IR | D168: % | E168: 0.1
C169: Base IR | D169: $ R$ | E169: 240000
C170: Alíquota CSLL | D170: % | E170: 0.09
C171: Uso benefício fiscal | D171: % | E171: 0.3
C173: Premissas macroeconomicas
C174: Escalation
E175: Base index | G175: 1 | H175: =G175+1 -> 2 | I175: =H175+1 -> 3 | J175: 4 | K175: =J175+1 -> 5
C176: None | D176: % p.a. | E176: 1 | G176: 0 | H176: 0 | I176: 0 | J176: 0 | K176: 0
C177: IGP-M | D177: % p.a. | E177: 1 | G177: 0.041 | H177: 0.04 | I177: 0.04 | J177: 0.04 | K177: 0.04
C178: PIB | D178: % p.a. | E178: 1 | G178: 0.0128 | H178: 0.017 | I178: 0.019 | J178: 0.019 | K178: 0.019
C179: PIB Serviços | D179: % p.a. | E179: 1 | G179: 0.0169 | H179: 0.0169 | I179: 0.0169 | J179: 0.0169 | K179: 0.0169
C180: CPI US | D180: % p.a. | E180: 1 | G180: 0.004 | H180: 0.004 | I180: 0.004 | J180: 0.004 | K180: 0.004
C181: SELIC | D181: % p.a. | E181: 1 | G181: 0.1 | H181: 0.09 | I181: 0.09 | J181: 0.09 | K181: 0.09
C182: CDI | D182: % p.a. | E182: 1 | G182: 0.099 | H182: 0.094 | I182: 0.094 | J182: 0.094 | K182: 0.094
C183: TLP | D183: % p.a. | E183: 1 | G183: 0.0981 | H183: 0.0969 | I183: 0.0969 | J183: 0.0969 | K183: 0.0969
C184: IPCA | D184: % p.a. | E184: 1 | G184: 0.0412 | H184: 0.04 | I184: 0.04 | J184: 0.04 | K184: 0.04
C187: Demanda
C189: Imóveis Residenciais | D189: Imóveis Não Residenciais
C190: 0.918852 | D190: 1.127682 | E190: Usuários
C191: 1.837704 | D191: 2.673024 | E191: Usuários
C192: 2.57557 | D192: 3.96777 | E192: Usuários
C193: 3.160294 | D193: 4.719558 | E193: Usuários
C194: 3.494422 | D194: 5.346048 | E194: Usuários
C195: 4.274054 | D195: 6.111758 | E195: Usuários
C197: Crescimento usuários
C198: Ano | D198: Un. | E198: 1 | F198: =E198+1 -> 2 | G198: =F198+1 -> 3 | H198: 4 | I198: 5 | J198: 6 | K198: 7 | L198: 8 | M198: 9 | N198: 10 | O198: 11 | P198: 12 | Q198: 13 | R198: 14 | S198: 15 | T198: 16 | U198: 17 | V198: 18 | W198: 19 | X198: 20 | Y198: 21 | Z198: 22 | AA198: 23 | AB198: 24 | AC198: 25 | AD198: 26 | AE198: 27 | AF198: 28 | AG198: =AF198+1 -> 29 | AH198: 30
C199: Crescimento usuários | D199: %/ano | E199: 0.01027712109 | F199: 0.01027007703 | G199: 0.01029435419 | H199: 0.01028498647 | I199: 0.01027483611 | J199: 0.01026392962 | K199: 0.01028317327 | L199: 0.01027020418 | M199: 0.01028682077 | N199: 0.01027192142 | O199: 0.01028605306 | P199: 0.01026935039 | Q199: 0.01028113383 | R199: 0.01026274938 | S199: 0.01027231597 | T199: 0.01028053177 | U199: 0.01028743483 | V199: 0.01026546719 | W199: 0.01027041792 | X199: 0.01027415779 | Y199: 0.01027672215 | Z199: 0.0102781457 | AA199: 0.01027846243 | AB199: 0.01027770568 | AC199: 0.01027590813 | AD199: 0.01027310176 | AE199: 0.01029448779 | AF199: 0.01026433145 | AG199: 0.0102833469 | AH199: 0.01027631322

Sheet Ops
A1: OPERAÇÕES
C3: Ano de Concessão | G3: 1 | H3: =G3+1 -> 2 | I3: =H3+1 -> 3 | J3: =I3+1 -> 4 | K3: =J3+1 -> 5 | L3: =K3+1 -> 6 | M3: =L3+1 -> 7 | N3: =M3+1 -> 8 | O3: =N3+1 -> 9 | P3: =O3+1 -> 10 | Q3: =P3+1 -> 11 | R3: =Q3+1 -> 12 | S3: =R3+1 -> 13 | T3: =S3+1 -> 14 | U3: =T3+1 -> 15 | V3: =U3+1 -> 16 | W3: =V3+1 -> 17 | X3: =W3+1 -> 18 | Y3: =X3+1 -> 19 | Z3: =Y3+1 -> 20 | AA3: =Z3+1 -> 21 | AB3: =AA3+1 -> 22 | AC3: =AB3+1 -> 23 | AD3: =AC3+1 -> 24 | AE3: =AD3+1 -> 25 | AF3: =AE3+1 -> 26 | AG3: =AF3+1 -> 27 | AH3: =AG3+1 -> 28 | AI3: =AH3+1 -> 29 | AJ3: =AI3+1 -> 30
D6: Inputs | E6: Units | F6: Total
C8: Correção Monetária
C10: Ano de Operação | E10: Ano | G10: 1 | H10: =G10+1 -> 2 | I10: =H10+1 -> 3 | J10: 4 | K10: 5 | L10: 6 | M10: 7 | N10: 8 | O10: 9 | P10: 10 | Q10: 11 | R10: 12 | S10: 13 | T10: 14 | U10: 15 | V10: 16 | W10: 17 | X10: 18 | Y10: 19 | Z10: 20 | AA10: 21 | AB10: 22 | AC10: 23 | AD10: 24 | AE10: 25 | AF10: 26 | AG10: 27 | AH10: 28 | AI10: 29 | AJ10: 30
C11: Dias no período | E11: Dias | G11: 365 | H11: 365 | I11: 365 | J11: 365 | K11: 366 | L11: 365 | M11: 365 | N11: 365 | O11: 366 | P11: 365 | Q11: 365 | R11: 365 | S11: 366 | T11: 365 | U11: 365 | V11: 365 | W11: 366 | X11: 365 | Y11: 365 | Z11: 365 | AA11: 366 | AB11: 365 | AC11: 365 | AD11: 365 | AE11: 366 | AF11: 365 | AG11: 365 | AH11: 365 | AI11: 366 | AJ11: 365
C12: Dias no ano | E12: Dias | G12: 366 | H12: 365 | I12: 365 | J12: 365 | K12: 366 | L12: 365 | M12: 365 | N12: 365 | O12: 366 | P12: 365 | Q12: 365 | R12: 365 | S12: 366 | T12: 365 | U12: 365 | V12: 365 | W12: 366 | X12: 365 | Y12: 365 | Z12: 365 | AA12: 366 | AB12: 365 | AC12: 365 | AD12: 365 | AE12: 366 | AF12: 365 | AG12: 365 | AH12: 365 | AI12: 366 | AJ12: 365
C14: Correção
C15: % p.a
C16: =Inputs!C176 -> None | E16: % p.a | G16: =LOOKUP(G$10,Inputs!$G$175:$K$175,Inputs!$G176:$K176) -> 0 | H16: =LOOKUP(H$10,Inputs!$G$175:$K$175,Inputs!$G176:$K176) -> 0 | I16: =LOOKUP(I$10,Inputs!$G$175:$K$175,Inputs!$G176:$K176) -> 0 | J16: =LOOKUP(J$10,Inputs!$G$175:$K$175,Inputs!$G176:$K176) -> 0 | K16: =LOOKUP(K$10,Inputs!$G$175:$K$175,Inputs!$G176:$K176) -> 0 | L16: =LOOKUP(L$10,Inputs!$G$175:$K$175,Inputs!$G176:$K176) -> 0 | M16: =LOOKUP(M$10,Inputs!$G$175:$K$175,Inputs!$G176:$K176) -> 0 | N16: =LOOKUP(N$10,Inputs!$G$175:$K$175,Inputs!$G176:$K176) -> 0 | O16: =LOOKUP(O$10,Inputs!$G$175:$K$175,Inputs!$G176:$K176) -> 0 | P16: =LOOKUP(P$10,Inputs!$G$175:$K$175,Inputs!$G176:$K176) -> 0 | Q16: =LOOKUP(Q$10,Inputs!$G$175:$K$175,Inputs!$G176:$K176) -> 0 | R16: =LOOKUP(R$10,Inputs!$G$175:$K$175,Inputs!$G176:$K176) -> 0 | S16: =LOOKUP(S$10,Inputs!$G$175:$K$175,Inputs!$G176:$K176) -> 0 | T16: =LOOKUP(T$10,Inputs!$G$175:$K$175,Inputs!$G176:$K176) -> 0 | U16: =LOOKUP(U$10,Inputs!$G$175:$K$175,Inputs!$G176:$K176) -> 0 | V16: =LOOKUP(V$10,Inputs!$G$175:$K$175,Inputs!$G176:$K176) -> 0 | W16: =LOOKUP(W$10,Inputs!$G$175:$K$175,Inputs!$G176:$K176) -> 0 | X16: =LOOKUP(X$10,Inputs!$G$175:$K$175,Inputs!$G176:$K176) -> 0 | Y16: =LOOKUP(Y$10,Inputs!$G$175:$K$175,Inputs!$G176:$K176) -> 0 | Z16: =LOOKUP(Z$10,Inputs!$G$175:$K$175,Inputs!$G176:$K176) -> 0 | AA16: =LOOKUP(AA$10,Inputs!$G$175:$K$175,Inputs!$G176:$K176) -> 0 | AB16: =LOOKUP(AB$10,Inputs!$G$175:$K$175,Inputs!$G176:$K176) -> 0 | AC16: =LOOKUP(AC$10,Inputs!$G$175:$K$175,Inputs!$G176:$K176) -> 0 | AD16: =LOOKUP(AD$10,Inputs!$G$175:$K$175,Inputs!$G176:$K176) -> 0 | AE16: =LOOKUP(AE$10,Inputs!$G$175:$K$175,Inputs!$G176:$K176) -> 0 | AF16: =LOOKUP(AF$10,Inputs!$G$175:$K$175,Inputs!$G176:$K176) -> 0 | AG16: =LOOKUP(AG$10,Inputs!$G$175:$K$175,Inputs!$G176:$K176) -> 0 | AH16: =LOOKUP(AH$10,Inputs!$G$175:$K$175,Inputs!$G176:$K176) -> 0 | AI16: =LOOKUP(AI$10,Inputs!$G$175:$K$175,Inputs!$G176:$K176) -> 0 | AJ16: =LOOKUP(AJ$10,Inputs!$G$175:$K$175,Inputs!$G176:$K176) -> 0
C17: =Inputs!C177 -> IGP-M | E17: % p.a | G17: =LOOKUP(G$10,Inputs!$G$175:$K$175,Inputs!$G177:$K177) -> 0.041 | H17: =LOOKUP(H$10,Inputs!$G$175:$K$175,Inputs!$G177:$K177) -> 0.04 | I17: =LOOKUP(I$10,Inputs!$G$175:$K$175,Inputs!$G177:$K177) -> 0.04 | J17: =LOOKUP(J$10,Inputs!$G$175:$K$175,Inputs!$G177:$K177) -> 0.04 | K17: =LOOKUP(K$10,Inputs!$G$175:$K$175,Inputs!$G177:$K177) -> 0.04 | L17: =LOOKUP(L$10,Inputs!$G$175:$K$175,Inputs!$G177:$K177) -> 0.04 | M17: =LOOKUP(M$10,Inputs!$G$175:$K$175,Inputs!$G177:$K177) -> 0.04 | N17: =LOOKUP(N$10,Inputs!$G$175:$K$175,Inputs!$G177:$K177) -> 0.04 | O17: =LOOKUP(O$10,Inputs!$G$175:$K$175,Inputs!$G177:$K177) -> 0.04 | P17: =LOOKUP(P$10,Inputs!$G$175:$K$175,Inputs!$G177:$K177) -> 0.04 | Q17: =LOOKUP(Q$10,Inputs!$G$175:$K$175,Inputs!$G177:$K177) -> 0.04 | R17: =LOOKUP(R$10,Inputs!$G$175:$K$175,Inputs!$G177:$K177) -> 0.04 | S17: =LOOKUP(S$10,Inputs!$G$175:$K$175,Inputs!$G177:$K177) -> 0.04 | T17: =LOOKUP(T$10,Inputs!$G$175:$K$175,Inputs!$G177:$K177) -> 0.04 | U17: =LOOKUP(U$10,Inputs!$G$175:$K$175,Inputs!$G177:$K177) -> 0.04 | V17: =LOOKUP(V$10,Inputs!$G$175:$K$175,Inputs!$G177:$K177) -> 0.04 | W17: =LOOKUP(W$10,Inputs!$G$175:$K$175,Inputs!$G177:$K177) -> 0.04 | X17: =LOOKUP(X$10,Inputs!$G$175:$K$175,Inputs!$G177:$K177) -> 0.04 | Y17: =LOOKUP(Y$10,Inputs!$G$175:$K$175,Inputs!$G177:$K177) -> 0.04 | Z17: =LOOKUP(Z$10,Inputs!$G$175:$K$175,Inputs!$G177:$K177) -> 0.04 | AA17: =LOOKUP(AA$10,Inputs!$G$175:$K$175,Inputs!$G177:$K177) -> 0.04 | AB17: =LOOKUP(AB$10,Inputs!$G$175:$K$175,Inputs!$G177:$K177) -> 0.04 | AC17: =LOOKUP(AC$10,Inputs!$G$175:$K$175,Inputs!$G177:$K177) -> 0.04 | AD17: =LOOKUP(AD$10,Inputs!$G$175:$K$175,Inputs!$G177:$K177) -> 0.04 | AE17: =LOOKUP(AE$10,Inputs!$G$175:$K$175,Inputs!$G177:$K177) -> 0.04 | AF17: =LOOKUP(AF$10,Inputs!$G$175:$K$175,Inputs!$G177:$K177) -> 0.04 | AG17: =LOOKUP(AG$10,Inputs!$G$175:$K$175,Inputs!$G177:$K177) -> 0.04 | AH17: =LOOKUP(AH$10,Inputs!$G$175:$K$175,Inputs!$G177:$K177) -> 0.04 | AI17: =LOOKUP(AI$10,Inputs!$G$175:$K$175,Inputs!$G177:$K177) -> 0.04 | AJ17: =LOOKUP(AJ$10,Inputs!$G$175:$K$175,Inputs!$G177:$K177) -> 0.04
C18: =Inputs!C178 -> PIB | E18: % p.a | G18: =LOOKUP(G$10,Inputs!$G$175:$K$175,Inputs!$G178:$K178) -> 0.0128 | H18: =LOOKUP(H$10,Inputs!$G$175:$K$175,Inputs!$G178:$K178) -> 0.017 | I18: =LOOKUP(I$10,Inputs!$G$175:$K$175,Inputs!$G178:$K178) -> 0.019 | J18: =LOOKUP(J$10,Inputs!$G$175:$K$175,Inputs!$G178:$K178) -> 0.019 | K18: =LOOKUP(K$10,Inputs!$G$175:$K$175,Inputs!$G178:$K178) -> 0.019 | L18: =LOOKUP(L$10,Inputs!$G$175:$K$175,Inputs!$G178:$K178) -> 0.019 | M18: =LOOKUP(M$10,Inputs!$G$175:$K$175,Inputs!$G178:$K178) -> 0.019 | N18: =LOOKUP(N$10,Inputs!$G$175:$K$175,Inputs!$G178:$K178) -> 0.019 | O18: =LOOKUP(O$10,Inputs!$G$175:$K$175,Inputs!$G178:$K178) -> 0.019 | P18: =LOOKUP(P$10,Inputs!$G$175:$K$175,Inputs!$G178:$K178) -> 0.019 | Q18: =LOOKUP(Q$10,Inputs!$G$175:$K$175,Inputs!$G178:$K178) -> 0.019 | R18: =LOOKUP(R$10,Inputs!$G$175:$K$175,Inputs!$G178:$K178) -> 0.019 | S18: =LOOKUP(S$10,Inputs!$G$175:$K$175,Inputs!$G178:$K178) -> 0.019 | T18: =LOOKUP(T$10,Inputs!$G$175:$K$175,Inputs!$G178:$K178) -> 0.019 | U18: =LOOKUP(U$10,Inputs!$G$175:$K$175,Inputs!$G178:$K178) -> 0.019 | V18: =LOOKUP(V$10,Inputs!$G$175:$K$175,Inputs!$G178:$K178) -> 0.019 | W18: =LOOKUP(W$10,Inputs!$G$175:$K$175,Inputs!$G178:$K178) -> 0.019 | X18: =LOOKUP(X$10,Inputs!$G$175:$K$175,Inputs!$G178:$K178) -> 0.019 | Y18: =LOOKUP(Y$10,Inputs!$G$175:$K$175,Inputs!$G178:$K178) -> 0.019 | Z18: =LOOKUP(Z$10,Inputs!$G$175:$K$175,Inputs!$G178:$K178) -> 0.019 | AA18: =LOOKUP(AA$10,Inputs!$G$175:$K$175,Inputs!$G178:$K178) -> 0.019 | AB18: =LOOKUP(AB$10,Inputs!$G$175:$K$175,Inputs!$G178:$K178) -> 0.019 | AC18: =LOOKUP(AC$10,Inputs!$G$175:$K$175,Inputs!$G178:$K178) -> 0.019 | AD18: =LOOKUP(AD$10,Inputs!$G$175:$K$175,Inputs!$G178:$K178) -> 0.019 | AE18: =LOOKUP(AE$10,Inputs!$G$175:$K$175,Inputs!$G178:$K178) -> 0.019 | AF18: =LOOKUP(AF$10,Inputs!$G$175:$K$175,Inputs!$G178:$K178) -> 0.019 | AG18: =LOOKUP(AG$10,Inputs!$G$175:$K$175,Inputs!$G178:$K178) -> 0.019 | AH18: =LOOKUP(AH$10,Inputs!$G$175:$K$175,Inputs!$G178:$K178) -> 0.019 | AI18: =LOOKUP(AI$10,Inputs!$G$175:$K$175,Inputs!$G178:$K178) -> 0.019 | AJ18: =LOOKUP(AJ$10,Inputs!$G$175:$K$175,Inputs!$G178:$K178) -> 0.019
C19: =Inputs!C179 -> PIB Serviços | E19: % p.a | G19: =LOOKUP(G$10,Inputs!$G$175:$K$175,Inputs!$G179:$K179) -> 0.0169 | H19: =LOOKUP(H$10,Inputs!$G$175:$K$175,Inputs!$G179:$K179) -> 0.0169 | I19: =LOOKUP(I$10,Inputs!$G$175:$K$175,Inputs!$G179:$K179) -> 0.0169 | J19: =LOOKUP(J$10,Inputs!$G$175:$K$175,Inputs!$G179:$K179) -> 0.0169 | K19: =LOOKUP(K$10,Inputs!$G$175:$K$175,Inputs!$G179:$K179) -> 0.0169 | L19: =LOOKUP(L$10,Inputs!$G$175:$K$175,Inputs!$G179:$K179) -> 0.0169 | M19: =LOOKUP(M$10,Inputs!$G$175:$K$175,Inputs!$G179:$K179) -> 0.0169 | N19: =LOOKUP(N$10,Inputs!$G$175:$K$175,Inputs!$G179:$K179) -> 0.0169 | O19: =LOOKUP(O$10,Inputs!$G$175:$K$175,Inputs!$G179:$K179) -> 0.0169 | P19: =LOOKUP(P$10,Inputs!$G$175:$K$175,Inputs!$G179:$K179) -> 0.0169 | Q19: =LOOKUP(Q$10,Inputs!$G$175:$K$175,Inputs!$G179:$K179) -> 0.0169 | R19: =LOOKUP(R$10,Inputs!$G$175:$K$175,Inputs!$G179:$K179) -> 0.0169 | S19: =LOOKUP(S$10,Inputs!$G$175:$K$175,Inputs!$G179:$K179) -> 0.0169 | T19: =LOOKUP(T$10,Inputs!$G$175:$K$175,Inputs!$G179:$K179) -> 0.0169 | U19: =LOOKUP(U$10,Inputs!$G$175:$K$175,Inputs!$G179:$K179) -> 0.0169 | V19: =LOOKUP(V$10,Inputs!$G$175:$K$175,Inputs!$G179:$K179) -> 0.0169 | W19: =LOOKUP(W$10,Inputs!$G$175:$K$175,Inputs!$G179:$K179) -> 0.0169 | X19: =LOOKUP(X$10,Inputs!$G$175:$K$175,Inputs!$G179:$K179) -> 0.0169 | Y19: =LOOKUP(Y$10,Inputs!$G$175:$K$175,Inputs!$G179:$K179) -> 0.0169 | Z19: =LOOKUP(Z$10,Inputs!$G$175:$K$175,Inputs!$G179:$K179) -> 0.0169 | AA19: =LOOKUP(AA$10,Inputs!$G$175:$K$175,Inputs!$G179:$K179) -> 0.0169 | AB19: =LOOKUP(AB$10,Inputs!$G$175:$K$175,Inputs!$G179:$K179) -> 0.0169 | AC19: =LOOKUP(AC$10,Inputs!$G$175:$K$175,Inputs!$G179:$K179) -> 0.0169 | AD19: =LOOKUP(AD$10,Inputs!$G$175:$K$175,Inputs!$G179:$K179) -> 0.0169 | AE19: =LOOKUP(AE$10,Inputs!$G$175:$K$175,Inputs!$G179:$K179) -> 0.0169 | AF19: =LOOKUP(AF$10,Inputs!$G$175:$K$175,Inputs!$G179:$K179) -> 0.0169 | AG19: =LOOKUP(AG$10,Inputs!$G$175:$K$175,Inputs!$G179:$K179) -> 0.0169 | AH19: =LOOKUP(AH$10,Inputs!$G$175:$K$175,Inputs!$G179:$K179) -> 0.0169 | AI19: =LOOKUP(AI$10,Inputs!$G$175:$K$175,Inputs!$G179:$K179) -> 0.0169 | AJ19: =LOOKUP(AJ$10,Inputs!$G$175:$K$175,Inputs!$G179:$K179) -> 0.0169
C20: =Inputs!C180 -> CPI US | E20: % p.a | G20: =LOOKUP(G$10,Inputs!$G$175:$K$175,Inputs!$G180:$K180) -> 0.004 | H20: =LOOKUP(H$10,Inputs!$G$175:$K$175,Inputs!$G180:$K180) -> 0.004 | I20: =LOOKUP(I$10,Inputs!$G$175:$K$175,Inputs!$G180:$K180) -> 0.004 | J20: =LOOKUP(J$10,Inputs!$G$175:$K$175,Inputs!$G180:$K180) -> 0.004 | K20: =LOOKUP(K$10,Inputs!$G$175:$K$175,Inputs!$G180:$K180) -> 0.004 | L20: =LOOKUP(L$10,Inputs!$G$175:$K$175,Inputs!$G180:$K180) -> 0.004 | M20: =LOOKUP(M$10,Inputs!$G$175:$K$175,Inputs!$G180:$K180) -> 0.004 | N20: =LOOKUP(N$10,Inputs!$G$175:$K$175,Inputs!$G180:$K180) -> 0.004 | O20: =LOOKUP(O$10,Inputs!$G$175:$K$175,Inputs!$G180:$K180) -> 0.004 | P20: =LOOKUP(P$10,Inputs!$G$175:$K$175,Inputs!$G180:$K180) -> 0.004 | Q20: =LOOKUP(Q$10,Inputs!$G$175:$K$175,Inputs!$G180:$K180) -> 0.004 | R20: =LOOKUP(R$10,Inputs!$G$175:$K$175,Inputs!$G180:$K180) -> 0.004 | S20: =LOOKUP(S$10,Inputs!$G$175:$K$175,Inputs!$G180:$K180) -> 0.004 | T20: =LOOKUP(T$10,Inputs!$G$175:$K$175,Inputs!$G180:$K180) -> 0.004 | U20: =LOOKUP(U$10,Inputs!$G$175:$K$175,Inputs!$G180:$K180) -> 0.004 | V20: =LOOKUP(V$10,Inputs!$G$175:$K$175,Inputs!$G180:$K180) -> 0.004 | W20: =LOOKUP(W$10,Inputs!$G$175:$K$175,Inputs!$G180:$K180) -> 0.004 | X20: =LOOKUP(X$10,Inputs!$G$175:$K$175,Inputs!$G180:$K180) -> 0.004 | Y20: =LOOKUP(Y$10,Inputs!$G$175:$K$175,Inputs!$G180:$K180) -> 0.004 | Z20: =LOOKUP(Z$10,Inputs!$G$175:$K$175,Inputs!$G180:$K180) -> 0.004 | AA20: =LOOKUP(AA$10,Inputs!$G$175:$K$175,Inputs!$G180:$K180) -> 0.004 | AB20: =LOOKUP(AB$10,Inputs!$G$175:$K$175,Inputs!$G180:$K180) -> 0.004 | AC20: =LOOKUP(AC$10,Inputs!$G$175:$K$175,Inputs!$G180:$K180) -> 0.004 | AD20: =LOOKUP(AD$10,Inputs!$G$175:$K$175,Inputs!$G180:$K180) -> 0.004 | AE20: =LOOKUP(AE$10,Inputs!$G$175:$K$175,Inputs!$G180:$K180) -> 0.004 | AF20: =LOOKUP(AF$10,Inputs!$G$175:$K$175,Inputs!$G180:$K180) -> 0.004 | AG20: =LOOKUP(AG$10,Inputs!$G$175:$K$175,Inputs!$G180:$K180) -> 0.004 | AH20: =LOOKUP(AH$10,Inputs!$G$175:$K$175,Inputs!$G180:$K180) -> 0.004 | AI20: =LOOKUP(AI$10,Inputs!$G$175:$K$175,Inputs!$G180:$K180) -> 0.004 | AJ20: =LOOKUP(AJ$10,Inputs!$G$175:$K$175,Inputs!$G180:$K180) -> 0.004
C21: =Inputs!C181 -> SELIC | E21: % p.a | G21: =LOOKUP(G$10,Inputs!$G$175:$K$175,Inputs!$G181:$K181) -> 0.1 | H21: =LOOKUP(H$10,Inputs!$G$175:$K$175,Inputs!$G181:$K181) -> 0.09 | I21: =LOOKUP(I$10,Inputs!$G$175:$K$175,Inputs!$G181:$K181) -> 0.09 | J21: =LOOKUP(J$10,Inputs!$G$175:$K$175,Inputs!$G181:$K181) -> 0.09 | K21: =LOOKUP(K$10,Inputs!$G$175:$K$175,Inputs!$G181:$K181) -> 0.09 | L21: =LOOKUP(L$10,Inputs!$G$175:$K$175,Inputs!$G181:$K181) -> 0.09 | M21: =LOOKUP(M$10,Inputs!$G$175:$K$175,Inputs!$G181:$K181) -> 0.09 | N21: =LOOKUP(N$10,Inputs!$G$175:$K$175,Inputs!$G181:$K181) -> 0.09 | O21: =LOOKUP(O$10,Inputs!$G$175:$K$175,Inputs!$G181:$K181) -> 0.09 | P21: =LOOKUP(P$10,Inputs!$G$175:$K$175,Inputs!$G181:$K181) -> 0.09 | Q21: =LOOKUP(Q$10,Inputs!$G$175:$K$175,Inputs!$G181:$K181) -> 0.09 | R21: =LOOKUP(R$10,Inputs!$G$175:$K$175,Inputs!$G181:$K181) -> 0.09 | S21: =LOOKUP(S$10,Inputs!$G$175:$K$175,Inputs!$G181:$K181) -> 0.09 | T21: =LOOKUP(T$10,Inputs!$G$175:$K$175,Inputs!$G181:$K181) -> 0.09 | U21: =LOOKUP(U$10,Inputs!$G$175:$K$175,Inputs!$G181:$K181) -> 0.09 | V21: =LOOKUP(V$10,Inputs!$G$175:$K$175,Inputs!$G181:$K181) -> 0.09 | W21: =LOOKUP(W$10,Inputs!$G$175:$K$175,Inputs!$G181:$K181) -> 0.09 | X21: =LOOKUP(X$10,Inputs!$G$175:$K$175,Inputs!$G181:$K181) -> 0.09 | Y21: =LOOKUP(Y$10,Inputs!$G$175:$K$175,Inputs!$G181:$K181) -> 0.09 | Z21: =LOOKUP(Z$10,Inputs!$G$175:$K$175,Inputs!$G181:$K181) -> 0.09 | AA21: =LOOKUP(AA$10,Inputs!$G$175:$K$175,Inputs!$G181:$K181) -> 0.09 | AB21: =LOOKUP(AB$10,Inputs!$G$175:$K$175,Inputs!$G181:$K181) -> 0.09 | AC21: =LOOKUP(AC$10,Inputs!$G$175:$K$175,Inputs!$G181:$K181) -> 0.09 | AD21: =LOOKUP(AD$10,Inputs!$G$175:$K$175,Inputs!$G181:$K181) -> 0.09 | AE21: =LOOKUP(AE$10,Inputs!$G$175:$K$175,Inputs!$G181:$K181) -> 0.09 | AF21: =LOOKUP(AF$10,Inputs!$G$175:$K$175,Inputs!$G181:$K181) -> 0.09 | AG21: =LOOKUP(AG$10,Inputs!$G$175:$K$175,Inputs!$G181:$K181) -> 0.09 | AH21: =LOOKUP(AH$10,Inputs!$G$175:$K$175,Inputs!$G181:$K181) -> 0.09 | AI21: =LOOKUP(AI$10,Inputs!$G$175:$K$175,Inputs!$G181:$K181) -> 0.09 | AJ21: =LOOKUP(AJ$10,Inputs!$G$175:$K$175,Inputs!$G181:$K181) -> 0.09
C22: =Inputs!C182 -> CDI | E22: % p.a | G22: =LOOKUP(G$10,Inputs!$G$175:$K$175,Inputs!$G182:$K182) -> 0.099 | H22: =LOOKUP(H$10,Inputs!$G$175:$K$175,Inputs!$G182:$K182) -> 0.094 | I22: =LOOKUP(I$10,Inputs!$G$175:$K$175,Inputs!$G182:$K182) -> 0.094 | J22: =LOOKUP(J$10,Inputs!$G$175:$K$175,Inputs!$G182:$K182) -> 0.094 | K22: =LOOKUP(K$10,Inputs!$G$175:$K$175,Inputs!$G182:$K182) -> 0.094 | L22: =LOOKUP(L$10,Inputs!$G$175:$K$175,Inputs!$G182:$K182) -> 0.094 | M22: =LOOKUP(M$10,Inputs!$G$175:$K$175,Inputs!$G182:$K182) -> 0.094 | N22: =LOOKUP(N$10,Inputs!$G$175:$K$175,Inputs!$G182:$K182) -> 0.094 | O22: =LOOKUP(O$10,Inputs!$G$175:$K$175,Inputs!$G182:$K182) -> 0.094 | P22: =LOOKUP(P$10,Inputs!$G$175:$K$175,Inputs!$G182:$K182) -> 0.094 | Q22: =LOOKUP(Q$10,Inputs!$G$175:$K$175,Inputs!$G182:$K182) -> 0.094 | R22: =LOOKUP(R$10,Inputs!$G$175:$K$175,Inputs!$G182:$K182) -> 0.094 | S22: =LOOKUP(S$10,Inputs!$G$175:$K$175,Inputs!$G182:$K182) -> 0.094 | T22: =LOOKUP(T$10,Inputs!$G$175:$K$175,Inputs!$G182:$K182) -> 0.094 | U22: =LOOKUP(U$10,Inputs!$G$175:$K$175,Inputs!$G182:$K182) -> 0.094 | V22: =LOOKUP(V$10,Inputs!$G$175:$K$175,Inputs!$G182:$K182) -> 0.094 | W22: =LOOKUP(W$10,Inputs!$G$175:$K$175,Inputs!$G182:$K182) -> 0.094 | X22: =LOOKUP(X$10,Inputs!$G$175:$K$175,Inputs!$G182:$K182) -> 0.094 | Y22: =LOOKUP(Y$10,Inputs!$G$175:$K$175,Inputs!$G182:$K182) -> 0.094 | Z22: =LOOKUP(Z$10,Inputs!$G$175:$K$175,Inputs!$G182:$K182) -> 0.094 | AA22: =LOOKUP(AA$10,Inputs!$G$175:$K$175,Inputs!$G182:$K182) -> 0.094 | AB22: =LOOKUP(AB$10,Inputs!$G$175:$K$175,Inputs!$G182:$K182) -> 0.094 | AC22: =LOOKUP(AC$10,Inputs!$G$175:$K$175,Inputs!$G182:$K182) -> 0.094 | AD22: =LOOKUP(AD$10,Inputs!$G$175:$K$175,Inputs!$G182:$K182) -> 0.094 | AE22: =LOOKUP(AE$10,Inputs!$G$175:$K$175,Inputs!$G182:$K182) -> 0.094 | AF22: =LOOKUP(AF$10,Inputs!$G$175:$K$175,Inputs!$G182:$K182) -> 0.094 | AG22: =LOOKUP(AG$10,Inputs!$G$175:$K$175,Inputs!$G182:$K182) -> 0.094 | AH22: =LOOKUP(AH$10,Inputs!$G$175:$K$175,Inputs!$G182:$K182) -> 0.094 | AI22: =LOOKUP(AI$10,Inputs!$G$175:$K$175,Inputs!$G182:$K182) -> 0.094 | AJ22: =LOOKUP(AJ$10,Inputs!$G$175:$K$175,Inputs!$G182:$K182) -> 0.094
C23: =Inputs!C183 -> TLP | E23: % p.a | G23: =LOOKUP(G$10,Inputs!$G$175:$K$175,Inputs!$G183:$K183) -> 0.0981 | H23: =LOOKUP(H$10,Inputs!$G$175:$K$175,Inputs!$G183:$K183) -> 0.0969 | I23: =LOOKUP(I$10,Inputs!$G$175:$K$175,Inputs!$G183:$K183) -> 0.0969 | J23: =LOOKUP(J$10,Inputs!$G$175:$K$175,Inputs!$G183:$K183) -> 0.0969 | K23: =LOOKUP(K$10,Inputs!$G$175:$K$175,Inputs!$G183:$K183) -> 0.0969 | L23: =LOOKUP(L$10,Inputs!$G$175:$K$175,Inputs!$G183:$K183) -> 0.0969 | M23: =LOOKUP(M$10,Inputs!$G$175:$K$175,Inputs!$G183:$K183) -> 0.0969 | N23: =LOOKUP(N$10,Inputs!$G$175:$K$175,Inputs!$G183:$K183) -> 0.0969 | O23: =LOOKUP(O$10,Inputs!$G$175:$K$175,Inputs!$G183:$K183) -> 0.0969 | P23: =LOOKUP(P$10,Inputs!$G$175:$K$175,Inputs!$G183:$K183) -> 0.0969 | Q23: =LOOKUP(Q$10,Inputs!$G$175:$K$175,Inputs!$G183:$K183) -> 0.0969 | R23: =LOOKUP(R$10,Inputs!$G$175:$K$175,Inputs!$G183:$K183) -> 0.0969 | S23: =LOOKUP(S$10,Inputs!$G$175:$K$175,Inputs!$G183:$K183) -> 0.0969 | T23: =LOOKUP(T$10,Inputs!$G$175:$K$175,Inputs!$G183:$K183) -> 0.0969 | U23: =LOOKUP(U$10,Inputs!$G$175:$K$175,Inputs!$G183:$K183) -> 0.0969 | V23: =LOOKUP(V$10,Inputs!$G$175:$K$175,Inputs!$G183:$K183) -> 0.0969 | W23: =LOOKUP(W$10,Inputs!$G$175:$K$175,Inputs!$G183:$K183) -> 0.0969 | X23: =LOOKUP(X$10,Inputs!$G$175:$K$175,Inputs!$G183:$K183) -> 0.0969 | Y23: =LOOKUP(Y$10,Inputs!$G$175:$K$175,Inputs!$G183:$K183) -> 0.0969 | Z23: =LOOKUP(Z$10,Inputs!$G$175:$K$175,Inputs!$G183:$K183) -> 0.0969 | AA23: =LOOKUP(AA$10,Inputs!$G$175:$K$175,Inputs!$G183:$K183) -> 0.0969 | AB23: =LOOKUP(AB$10,Inputs!$G$175:$K$175,Inputs!$G183:$K183) -> 0.0969 | AC23: =LOOKUP(AC$10,Inputs!$G$175:$K$175,Inputs!$G183:$K183) -> 0.0969 | AD23: =LOOKUP(AD$10,Inputs!$G$175:$K$175,Inputs!$G183:$K183) -> 0.0969 | AE23: =LOOKUP(AE$10,Inputs!$G$175:$K$175,Inputs!$G183:$K183) -> 0.0969 | AF23: =LOOKUP(AF$10,Inputs!$G$175:$K$175,Inputs!$G183:$K183) -> 0.0969 | AG23: =LOOKUP(AG$10,Inputs!$G$175:$K$175,Inputs!$G183:$K183) -> 0.0969 | AH23: =LOOKUP(AH$10,Inputs!$G$175:$K$175,Inputs!$G183:$K183) -> 0.0969 | AI23: =LOOKUP(AI$10,Inputs!$G$175:$K$175,Inputs!$G183:$K183) -> 0.0969 | AJ23: =LOOKUP(AJ$10,Inputs!$G$175:$K$175,Inputs!$G183:$K183) -> 0.0969
C24: =Inputs!C184 -> IPCA | E24: % p.a | G24: =LOOKUP(G$10,Inputs!$G$175:$K$175,Inputs!$G184:$K184) -> 0.0412 | H24: =LOOKUP(H$10,Inputs!$G$175:$K$175,Inputs!$G184:$K184) -> 0.04 | I24: =LOOKUP(I$10,Inputs!$G$175:$K$175,Inputs!$G184:$K184) -> 0.04 | J24: =LOOKUP(J$10,Inputs!$G$175:$K$175,Inputs!$G184:$K184) -> 0.04 | K24: =LOOKUP(K$10,Inputs!$G$175:$K$175,Inputs!$G184:$K184) -> 0.04 | L24: =LOOKUP(L$10,Inputs!$G$175:$K$175,Inputs!$G184:$K184) -> 0.04 | M24: =LOOKUP(M$10,Inputs!$G$175:$K$175,Inputs!$G184:$K184) -> 0.04 | N24: =LOOKUP(N$10,Inputs!$G$175:$K$175,Inputs!$G184:$K184) -> 0.04 | O24: =LOOKUP(O$10,Inputs!$G$175:$K$175,Inputs!$G184:$K184) -> 0.04 | P24: =LOOKUP(P$10,Inputs!$G$175:$K$175,Inputs!$G184:$K184) -> 0.04 | Q24: =LOOKUP(Q$10,Inputs!$G$175:$K$175,Inputs!$G184:$K184) -> 0.04 | R24: =LOOKUP(R$10,Inputs!$G$175:$K$175,Inputs!$G184:$K184) -> 0.04 | S24: =LOOKUP(S$10,Inputs!$G$175:$K$175,Inputs!$G184:$K184) -> 0.04 | T24: =LOOKUP(T$10,Inputs!$G$175:$K$175,Inputs!$G184:$K184) -> 0.04 | U24: =LOOKUP(U$10,Inputs!$G$175:$K$175,Inputs!$G184:$K184) -> 0.04 | V24: =LOOKUP(V$10,Inputs!$G$175:$K$175,Inputs!$G184:$K184) -> 0.04 | W24: =LOOKUP(W$10,Inputs!$G$175:$K$175,Inputs!$G184:$K184) -> 0.04 | X24: =LOOKUP(X$10,Inputs!$G$175:$K$175,Inputs!$G184:$K184) -> 0.04 | Y24: =LOOKUP(Y$10,Inputs!$G$175:$K$175,Inputs!$G184:$K184) -> 0.04 | Z24: =LOOKUP(Z$10,Inputs!$G$175:$K$175,Inputs!$G184:$K184) -> 0.04 | AA24: =LOOKUP(AA$10,Inputs!$G$175:$K$175,Inputs!$G184:$K184) -> 0.04 | AB24: =LOOKUP(AB$10,Inputs!$G$175:$K$175,Inputs!$G184:$K184) -> 0.04 | AC24: =LOOKUP(AC$10,Inputs!$G$175:$K$175,Inputs!$G184:$K184) -> 0.04 | AD24: =LOOKUP(AD$10,Inputs!$G$175:$K$175,Inputs!$G184:$K184) -> 0.04 | AE24: =LOOKUP(AE$10,Inputs!$G$175:$K$175,Inputs!$G184:$K184) -> 0.04 | AF24: =LOOKUP(AF$10,Inputs!$G$175:$K$175,Inputs!$G184:$K184) -> 0.04 | AG24: =LOOKUP(AG$10,Inputs!$G$175:$K$175,Inputs!$G184:$K184) -> 0.04 | AH24: =LOOKUP(AH$10,Inputs!$G$175:$K$175,Inputs!$G184:$K184) -> 0.04 | AI24: =LOOKUP(AI$10,Inputs!$G$175:$K$175,Inputs!$G184:$K184) -> 0.04 | AJ24: =LOOKUP(AJ$10,Inputs!$G$175:$K$175,Inputs!$G184:$K184) -> 0.04
C26: Index
C27: =C16 -> None | F27: =Inputs!E176 -> 1 | G27: =IFERROR(F27*(1+G16)^(G$11/G$12),1) -> 1 | H27: =IFERROR(G27*(1+H16)^(H$11/H$12),1) -> 1 | I27: 1 | J27: 1 | K27: 1 | L27: 1 | M27: 1 | N27: 1 | O27: 1 | P27: 1 | Q27: 1 | R27: 1 | S27: 1 | T27: 1 | U27: 1 | V27: 1 | W27: 1 | X27: 1 | Y27: 1 | Z27: 1 | AA27: 1 | AB27: 1 | AC27: 1 | AD27: 1 | AE27: 1 | AF27: 1 | AG27: 1 | AH27: 1 | AI27: 1 | AJ27: 1
C28: IGP-M | F28: =Inputs!E177 -> 1 | G28: =IFERROR(F28*(1+G17)^(G$11/G$12),1) -> 1.040885719 | H28: 1.082521147 | I28: 1.125821993 | J28: 1.170854873 | K28: 1.217689068 | L28: 1.266396631 | M28: 1.317052496 | N28: 1.369734596 | O28: 1.42452398 | P28: 1.481504939 | Q28: 1.540765136 | R28: 1.602395742 | S28: 1.666491572 | T28: 1.733151234 | U28: 1.802477284 | V28: 1.874576375 | W28: 1.94955943 | X28: 2.027541807 | Y28: 2.10864348 | Z28: 2.192989219 | AA28: 2.280708788 | AB28: 2.371937139 | AC28: 2.466814625 | AD28: 2.56548721 | AE28: 2.668106698 | AF28: 2.774830966 | AG28: 2.885824205 | AH28: 3.001257173 | AI28: 3.12130746 | AJ28: 3.246159758
C29: PIB | F29: =Inputs!E178 -> 1 | G29: =IFERROR(F29*(1+G18)^(G$11/G$12),1) -> 1.012764805 | H29: 1.029981807 | I29: 1.049551461 | J29: 1.069492939 | K29: 1.089813305 | L29: 1.110519757 | M29: 1.131619633 | N29: 1.153120406 | O29: 1.175029694 | P29: 1.197355258 | Q29: 1.220105008 | R29: 1.243287003 | S29: 1.266909456 | T29: 1.290980736 | U29: 1.315509369 | V29: 1.340504048 | W29: 1.365973624 | X29: 1.391927123 | Y29: 1.418373739 | Z29: 1.44532284 | AA29: 1.472783974 | AB29: 1.500766869 | AC29: 1.52928144 | AD29: 1.558337787 | AE29: 1.587946205 | AF29: 1.618117183 | AG29: 1.648861409 | AH29: 1.680189776 | AI29: 1.712113382 | AJ29: 1.744643536
C30: PIB Serviços | F30: =Inputs!E179 -> 1 | G30: =IFERROR(F30*(1+G19)^(G$11/G$12),1) -> 1.016853438 | H30: 1.034038261 | I30: 1.051513508 | J30: 1.069284086 | K30: 1.087354987 | L30: 1.105731287 | M30: 1.124418145 | N30: 1.143420812 | O30: 1.162744624 | P30: 1.182395008 | Q30: 1.202377483 | R30: 1.222697663 | S30: 1.243361253 | T30: 1.264374059 | U30: 1.28574198 | V30: 1.30747102 | W30: 1.32956728 | X30: 1.352036967 | Y30: 1.374886392 | Z30: 1.398121972 | AA30: 1.421750233 | AB30: 1.445777812 | AC30: 1.470211457 | AD30: 1.495058031 | AE30: 1.520324511 | AF30: 1.546017996 | AG30: 1.5721457 | AH30: 1.598714962 | AI30: 1.625733245 | AJ30: 1.653208137
C31: CPI US | F31: =Inputs!E180 -> 1 | G31: =IFERROR(F31*(1+G20)^(G$11/G$12),1) -> 1.003989049 | H31: 1.008005005 | I31: 1.012037025 | J31: 1.016085174 | K31: 1.020149514 | L31: 1.024230112 | M31: 1.028327033 | N31: 1.032440341 | O31: 1.036570102 | P31: 1.040716383 | Q31: 1.044879248 | R31: 1.049058765 | S31: 1.053255 | T31: 1.05746802 | U31: 1.061697892 | V31: 1.065944684 | W31: 1.070208463 | X31: 1.074489297 | Y31: 1.078787254 | Z31: 1.083102403 | AA31: 1.087434812 | AB31: 1.091784552 | AC31: 1.09615169 | AD31: 1.100536297 | AE31: 1.104938442 | AF31: 1.109358195 | AG31: 1.113795628 | AH31: 1.118250811 | AI31: 1.122723814 | AJ31: 1.127214709
C32: SELIC | F32: =Inputs!E181 -> 1 | G32: =IFERROR(F32*(1+G21)^(G$11/G$12),1) -> 1.099713586 | H32: 1.198687809 | I32: 1.306569711 | J32: 1.424160985 | K32: 1.552335474 | L32: 1.692045667 | M32: 1.844329777 | N32: 2.010319457 | O32: 2.191248208 | P32: 2.388460547 | Q32: 2.603421996 | R32: 2.837729975 | S32: 3.093125673 | T32: 3.371506984 | U32: 3.674942612 | V32: 4.005687447 | W32: 4.366199318 | X32: 4.759157256 | Y32: 5.187481409 | Z32: 5.654354736 | AA32: 6.163246662 | AB32: 6.717938862 | AC32: 7.32255336 | AD32: 7.981583162 | AE32: 8.699925647 | AF32: 9.482918955 | AG32: 10.33638166 | AH32: 11.26665601 | AI32: 12.28065505 | AJ32: 13.38591401
C33: CDI | F33: =Inputs!E182 -> 1 | G33: =IFERROR(F33*(1+G22)^(G$11/G$12),1) -> 1.098716577 | H33: 1.201995935 | I33: 1.314983553 | J33: 1.438592007 | K33: 1.573819655 | L33: 1.721758703 | M33: 1.883604021 | N33: 2.060662799 | O33: 2.254365102 | P33: 2.466275422 | Q33: 2.698105311 | R33: 2.95172721 | S33: 3.229189568 | T33: 3.532733388 | U33: 3.864810326 | V33: 4.228102497 | W33: 4.625544131 | X33: 5.06034528 | Y33: 5.536017736 | Z33: 6.056403403 | AA33: 6.625705323 | AB33: 7.248521624 | AC33: 7.929882656 | AD33: 8.675291626 | AE33: 9.490769039 | AF33: 10.38290133 | AG33: 11.35889405 | AH33: 12.42663009 | AI33: 13.59473332 | AJ33: 14.87263826
C34: TLP | F34: =Inputs!E183 -> 1 | G34: =IFERROR(F34*(1+G23)^(G$11/G$12),1) -> 1.097819266 | H34: 1.204197953 | I34: 1.320884735 | J34: 1.448878465 | K34: 1.589274789 | L34: 1.743275516 | M34: 1.912198913 | N34: 2.097490988 | O34: 2.300737865 | P34: 2.523679364 | Q34: 2.768223894 | R34: 3.036464789 | S34: 3.330698227 | T34: 3.653442886 | U34: 4.007461501 | V34: 4.395784521 | W34: 4.821736041 | X34: 5.288962263 | Y34: 5.801462706 | Z34: 6.363624443 | AA34: 6.980259651 | AB34: 7.656646811 | AC34: 8.398575887 | AD34: 9.212397891 | AE34: 10.10507925 | AF34: 11.08426143 | AG34: 12.15832636 | AH34: 13.33646818 | AI34: 14.62877195 | AJ34: 16.04629995
C35: IPCA | F35: =Inputs!E184 -> 1 | G35: =IFERROR(F35*(1+G24)^(G$11/G$12),1) -> 1.04108515 | H35: 1.082728556 | I35: 1.126037699 | J35: 1.171079207 | K35: 1.217922375 | L35: 1.26663927 | M35: 1.317304841 | N35: 1.369997034 | O35: 1.424796916 | P35: 1.481788792 | Q35: 1.541060344 | R35: 1.602702758 | S35: 1.666810868 | T35: 1.733483303 | U35: 1.802822635 | V35: 1.87493554 | W35: 1.949932962 | X35: 2.02793028 | Y35: 2.109047491 | Z35: 2.193409391 | AA35: 2.281145767 | AB35: 2.372391597 | AC35: 2.467287261 | AD35: 2.565978752 | AE35: 2.668617902 | AF35: 2.775362618 | AG35: 2.886377123 | AH35: 3.001832208 | AI35: 3.121905496 | AJ35: 3.246781716
C38: Receitas e Deduções
C40: Contraprestação Pública Mensal
C42: Contraprestação mensal máxima (CMM)
C44: 𝐶𝑀𝐴 = CONTRAPRESTAÇÃO MENSAL MÁXIMA
C46: =Inputs!C64 -> Contraprestação anual | D46: =Inputs!D64 -> 3723 | E46: R$
C47: =Inputs!C67 -> Desconto contraprestação | D47: =Inputs!D67 -> 0 | E47: %
C48: Indicador | D48: 1 | E48: %
C51: Crescimneto Populacional | G51: 0 | H51: =Inputs!F199 -> 0.01027007703 | I51: =Inputs!G199 -> 0.01029435419 | J51: =Inputs!H199 -> 0.01028498647 | K51: =Inputs!I199 -> 0.01027483611 | L51: =Inputs!J199 -> 0.01026392962 | M51: =Inputs!K199 -> 0.01028317327 | N51: =Inputs!L199 -> 0.01027020418 | O51: =Inputs!M199 -> 0.01028682077 | P51: =Inputs!N199 -> 0.01027192142 | Q51: =Inputs!O199 -> 0.01028605306 | R51: =Inputs!P199 -> 0.01026935039 | S51: =Inputs!Q199 -> 0.01028113383 | T51: =Inputs!R199 -> 0.01026274938 | U51: =Inputs!S199 -> 0.01027231597 | V51: =Inputs!T199 -> 0.01028053177 | W51: =Inputs!U199 -> 0.01028743483 | X51: =Inputs!V199 -> 0.01026546719 | Y51: =Inputs!W199 -> 0.01027041792 | Z51: =Inputs!X199 -> 0.01027415779 | AA51: =Inputs!Y199 -> 0.01027672215 | AB51: =Inputs!Z199 -> 0.0102781457 | AC51: =Inputs!AA199 -> 0.01027846243 | AD51: =Inputs!AB199 -> 0.01027770568 | AE51: =Inputs!AC199 -> 0.01027590813 | AF51: =Inputs!AD199 -> 0.01027310176 | AG51: =Inputs!AE199 -> 0.01029448779 | AH51: =Inputs!AF199 -> 0.01026433145 | AI51: =Inputs!AG199 -> 0.0102833469 | AJ51: =Inputs!AH199 -> 0.01027631322
C53: 𝐶𝑀𝐴1 = CONTRAPRESTAÇÃO MENSAL MÁXIMA
C54: Cons + Ops Flag | E54: Flag | G54: =IF(G55>=Inputs!$D$69,IF(G55<=Inputs!$E$8,1,0),0) -> 1 | H54: =IF(H55>=Inputs!$D$69,IF(H55<=Inputs!$E$8,1,0),0) -> 1 | I54: =IF(I55>=Inputs!$D$69,IF(I55<=Inputs!$E$8,1,0),0) -> 1 | J54: =IF(J55>=Inputs!$D$69,IF(J55<=Inputs!$E$8,1,0),0) -> 1 | K54: =IF(K55>=Inputs!$D$69,IF(K55<=Inputs!$E$8,1,0),0) -> 1 | L54: =IF(L55>=Inputs!$D$69,IF(L55<=Inputs!$E$8,1,0),0) -> 1 | M54: =IF(M55>=Inputs!$D$69,IF(M55<=Inputs!$E$8,1,0),0) -> 1 | N54: =IF(N55>=Inputs!$D$69,IF(N55<=Inputs!$E$8,1,0),0) -> 1 | O54: =IF(O55>=Inputs!$D$69,IF(O55<=Inputs!$E$8,1,0),0) -> 1 | P54: =IF(P55>=Inputs!$D$69,IF(P55<=Inputs!$E$8,1,0),0) -> 1 | Q54: =IF(Q55>=Inputs!$D$69,IF(Q55<=Inputs!$E$8,1,0),0) -> 1 | R54: =IF(R55>=Inputs!$D$69,IF(R55<=Inputs!$E$8,1,0),0) -> 1 | S54: =IF(S55>=Inputs!$D$69,IF(S55<=Inputs!$E$8,1,0),0) -> 1 | T54: =IF(T55>=Inputs!$D$69,IF(T55<=Inputs!$E$8,1,0),0) -> 1 | U54: =IF(U55>=Inputs!$D$69,IF(U55<=Inputs!$E$8,1,0),0) -> 1 | V54: =IF(V55>=Inputs!$D$69,IF(V55<=Inputs!$E$8,1,0),0) -> 1 | W54: =IF(W55>=Inputs!$D$69,IF(W55<=Inputs!$E$8,1,0),0) -> 1 | X54: =IF(X55>=Inputs!$D$69,IF(X55<=Inputs!$E$8,1,0),0) -> 1 | Y54: =IF(Y55>=Inputs!$D$69,IF(Y55<=Inputs!$E$8,1,0),0) -> 1 | Z54: =IF(Z55>=Inputs!$D$69,IF(Z55<=Inputs!$E$8,1,0),0) -> 1 | AA54: =IF(AA55>=Inputs!$D$69,IF(AA55<=Inputs!$E$8,1,0),0) -> 1 | AB54: =IF(AB55>=Inputs!$D$69,IF(AB55<=Inputs!$E$8,1,0),0) -> 1 | AC54: =IF(AC55>=Inputs!$D$69,IF(AC55<=Inputs!$E$8,1,0),0) -> 1 | AD54: =IF(AD55>=Inputs!$D$69,IF(AD55<=Inputs!$E$8,1,0),0) -> 1 | AE54: =IF(AE55>=Inputs!$D$69,IF(AE55<=Inputs!$E$8,1,0),0) -> 1 | AF54: =IF(AF55>=Inputs!$D$69,IF(AF55<=Inputs!$E$8,1,0),0) -> 1 | AG54: =IF(AG55>=Inputs!$D$69,IF(AG55<=Inputs!$E$8,1,0),0) -> 1 | AH54: =IF(AH55>=Inputs!$D$69,IF(AH55<=Inputs!$E$8,1,0),0) -> 1 | AI54: =IF(AI55>=Inputs!$D$69,IF(AI55<=Inputs!$E$8,1,0),0) -> 1 | AJ54: =IF(AJ55>=Inputs!$D$69,IF(AJ55<=Inputs!$E$8,1,0),0) -> 1
C55: Ano de concessão | E55: Ano | G55: =G3 -> 1 | H55: 2 | I55: 3 | J55: 4 | K55: 5 | L55: 6 | M55: 7 | N55: 8 | O55: 9 | P55: 10 | Q55: 11 | R55: 12 | S55: 13 | T55: 14 | U55: 15 | V55: 16 | W55: 17 | X55: 18 | Y55: 19 | Z55: 20 | AA55: 21 | AB55: 22 | AC55: 23 | AD55: 24 | AE55: 25 | AF55: 26 | AG55: 27 | AH55: 28 | AI55: 29 | AJ55: 30
C56: % de recebimento contraprestação | E56: % | G56: =D48 -> 1 | H56: =LOOKUP(H55,Inputs!$D$76:$H$76,Inputs!$D$77:$H$77) -> 1 | I56: =LOOKUP(I55,Inputs!$D$76:$H$76,Inputs!$D$77:$H$77) -> 1 | J56: =LOOKUP(J55,Inputs!$D$76:$H$76,Inputs!$D$77:$H$77) -> 1 | K56: =LOOKUP(K55,Inputs!$D$76:$H$76,Inputs!$D$77:$H$77) -> 1 | L56: =LOOKUP(L55,Inputs!$D$76:$H$76,Inputs!$D$77:$H$77) -> 1 | M56: =LOOKUP(M55,Inputs!$D$76:$H$76,Inputs!$D$77:$H$77) -> 1 | N56: =LOOKUP(N55,Inputs!$D$76:$H$76,Inputs!$D$77:$H$77) -> 1 | O56: =LOOKUP(O55,Inputs!$D$76:$H$76,Inputs!$D$77:$H$77) -> 1 | P56: =LOOKUP(P55,Inputs!$D$76:$H$76,Inputs!$D$77:$H$77) -> 1 | Q56: =LOOKUP(Q55,Inputs!$D$76:$H$76,Inputs!$D$77:$H$77) -> 1 | R56: =LOOKUP(R55,Inputs!$D$76:$H$76,Inputs!$D$77:$H$77) -> 1 | S56: =LOOKUP(S55,Inputs!$D$76:$H$76,Inputs!$D$77:$H$77) -> 1 | T56: =LOOKUP(T55,Inputs!$D$76:$H$76,Inputs!$D$77:$H$77) -> 1 | U56: =LOOKUP(U55,Inputs!$D$76:$H$76,Inputs!$D$77:$H$77) -> 1 | V56: =LOOKUP(V55,Inputs!$D$76:$H$76,Inputs!$D$77:$H$77) -> 1 | W56: =LOOKUP(W55,Inputs!$D$76:$H$76,Inputs!$D$77:$H$77) -> 1 | X56: =LOOKUP(X55,Inputs!$D$76:$H$76,Inputs!$D$77:$H$77) -> 1 | Y56: =LOOKUP(Y55,Inputs!$D$76:$H$76,Inputs!$D$77:$H$77) -> 1 | Z56: =LOOKUP(Z55,Inputs!$D$76:$H$76,Inputs!$D$77:$H$77) -> 1 | AA56: =LOOKUP(AA55,Inputs!$D$76:$H$76,Inputs!$D$77:$H$77) -> 1 | AB56: =LOOKUP(AB55,Inputs!$D$76:$H$76,Inputs!$D$77:$H$77) -> 1 | AC56: =LOOKUP(AC55,Inputs!$D$76:$H$76,Inputs!$D$77:$H$77) -> 1 | AD56: =LOOKUP(AD55,Inputs!$D$76:$H$76,Inputs!$D$77:$H$77) -> 1 | AE56: =LOOKUP(AE55,Inputs!$D$76:$H$76,Inputs!$D$77:$H$77) -> 1 | AF56: =LOOKUP(AF55,Inputs!$D$76:$H$76,Inputs!$D$77:$H$77) -> 1 | AG56: =LOOKUP(AG55,Inputs!$D$76:$H$76,Inputs!$D$77:$H$77) -> 1 | AH56: =LOOKUP(AH55,Inputs!$D$76:$H$76,Inputs!$D$77:$H$77) -> 1 | AI56: =LOOKUP(AI55,Inputs!$D$76:$H$76,Inputs!$D$77:$H$77) -> 1 | AJ56: =LOOKUP(AJ55,Inputs!$D$76:$H$76,Inputs!$D$77:$H$77) -> 1
E57: $R$ | F57: =SUM(G57:AJ57) -> 150704.2259 | G57: =(((($D$46*(1-$D$47))*$D$48)*G54)*G56)+((((($D$46*(1-$D$47))*$D$48)*G54)*G56)*G51) -> 3723 | H57: =(((((G57)*(1-$D$47)))*H54)*H56)+((((($D$46*(1-$D$47))*$D$48)*H54)*H56)*H51)+(G57*H59) -> 4133.535497 | I57: =(((((H57)*(1-$D$47)))*I54)*I56)+((((($D$46*(1-$D$47))*$D$48)*I54)*I56)*I51)+(H57*I59) -> 4585.214927 | J57: 4623.505932 | K57: 4661.759147 | L57: 4699.971757 | M57: 4738.256011 | N57: 4776.491981 | O57: 4814.789814 | P57: 4853.032178 | Q57: 4891.327153 | R57: 4929.559945 | S57: 4967.836606 | T57: 5006.044822 | U57: 5044.288654 | V57: 5082.563074 | W57: 5120.863194 | X57: 5159.081529 | Y57: 5197.318294 | Z57: 5235.568984 | AA57: 5273.82922 | AB57: 5312.094757 | AC57: 5350.361472 | AD57: 5388.625371 | AE57: 5426.882577 | AF57: 5465.129335 | AG57: 5503.455713 | AH57: 5541.669819 | AI57: 5579.954719 | AJ57: 5618.213433
C59: ESCALONAMENTO DA CONTRAPRESTAÇÃO | H59: 0.1 | I59: 0.1
C62: Contraprestação mensal máxima (CMM) | E62: $R$ | F62: =SUM(G62:AJ62) -> 150704.2259 | G62: =G57 -> 3723 | H62: =H57 -> 4133.535497 | I62: 4585.214927 | J62: 4623.505932 | K62: 4661.759147 | L62: 4699.971757 | M62: 4738.256011 | N62: 4776.491981 | O62: 4814.789814 | P62: 4853.032178 | Q62: 4891.327153 | R62: 4929.559945 | S62: 4967.836606 | T62: 5006.044822 | U62: 5044.288654 | V62: 5082.563074 | W62: 5120.863194 | X62: 5159.081529 | Y62: 5197.318294 | Z62: 5235.568984 | AA62: 5273.82922 | AB62: 5312.094757 | AC62: 5350.361472 | AD62: 5388.625371 | AE62: 5426.882577 | AF62: 5465.129335 | AG62: 5503.455713 | AH62: 5541.669819 | AI62: 5579.954719 | AJ62: 5618.213433
C65: Fator de Desempenho
C66: =Inputs!C74 -> Fator de Desempenho | D66: =Inputs!D74 -> 1 | E66: Fator | G66: =IF(G62<>0,$D$66,0) -> 1 | H66: 1 | I66: 1 | J66: 1 | K66: 1 | L66: 1 | M66: 1 | N66: 1 | O66: 1 | P66: 1 | Q66: 1 | R66: 1 | S66: 1 | T66: 1 | U66: 1 | V66: 1 | W66: 1 | X66: 1 | Y66: 1 | Z66: 1 | AA66: 1 | AB66: 1 | AC66: 1 | AD66: 1 | AE66: 1 | AF66: 1 | AG66: 1 | AH66: 1 | AI66: 1 | AJ66: 1
C68: Contraprestação Transitória
C69: Contraprestação Transitória | D69: =Inputs!D65 -> 4997 | E69: $ 000s | F69: =SUM(G69:AJ69) -> 4997 | G69: =(((($D$66*(1-$D$67))*$D$69)*G56)*G66)+((((($D$66*(1-$D$67))*$D$69)*G56)*G66)*G51) -> 4997 | H69: 0 | I69: 0 | J69: 0 | K69: 0 | L69: 0 | M69: 0 | N69: 0 | O69: 0 | P69: 0 | Q69: 0 | R69: 0 | S69: 0 | T69: 0 | U69: 0 | V69: 0 | W69: 0 | X69: 0 | Y69: 0 | Z69: 0 | AA69: 0 | AB69: 0 | AC69: 0 | AD69: 0 | AE69: 0 | AF69: 0 | AG69: 0 | AH69: 0 | AI69: 0 | AJ69: 0
C72: Contraprestação anual
C73: Contraprestação total projetada | E73: $ 000s | F73: =SUM(G73:AJ73) -> 155701.2259 | G73: =(G62*G66)+G69 -> 8720 | H73: 4133.535497 | I73: 4585.214927 | J73: 4623.505932 | K73: 4661.759147 | L73: 4699.971757 | M73: 4738.256011 | N73: 4776.491981 | O73: 4814.789814 | P73: 4853.032178 | Q73: 4891.327153 | R73: 4929.559945 | S73: 4967.836606 | T73: 5006.044822 | U73: 5044.288654 | V73: 5082.563074 | W73: 5120.863194 | X73: 5159.081529 | Y73: 5197.318294 | Z73: 5235.568984 | AA73: 5273.82922 | AB73: 5312.094757 | AC73: 5350.361472 | AD73: 5388.625371 | AE73: 5426.882577 | AF73: 5465.129335 | AG73: 5503.455713 | AH73: 5541.669819 | AI73: 5579.954719 | AJ73: 5618.213433
C76: Receitas tarifárias
C78: Crescimento estimado usuários | E78: Crescimento unidades | G78: =Inputs!E199 -> 0.01027712109 | H78: =Inputs!F199 -> 0.01027007703 | I78: =Inputs!G199 -> 0.01029435419 | J78: =Inputs!H199 -> 0.01028498647 | K78: =Inputs!I199 -> 0.01027483611 | L78: =Inputs!J199 -> 0.01026392962 | M78: =Inputs!K199 -> 0.01028317327 | N78: =Inputs!L199 -> 0.01027020418 | O78: =Inputs!M199 -> 0.01028682077 | P78: =Inputs!N199 -> 0.01027192142 | Q78: =Inputs!O199 -> 0.01028605306 | R78: =Inputs!P199 -> 0.01026935039 | S78: =Inputs!Q199 -> 0.01028113383 | T78: =Inputs!R199 -> 0.01026274938 | U78: =Inputs!S199 -> 0.01027231597 | V78: =Inputs!T199 -> 0.01028053177 | W78: =Inputs!U199 -> 0.01028743483 | X78: =Inputs!V199 -> 0.01026546719 | Y78: =Inputs!W199 -> 0.01027041792 | Z78: =Inputs!X199 -> 0.01027415779 | AA78: =Inputs!Y199 -> 0.01027672215 | AB78: =Inputs!Z199 -> 0.0102781457 | AC78: =Inputs!AA199 -> 0.01027846243 | AD78: =Inputs!AB199 -> 0.01027770568 | AE78: =Inputs!AC199 -> 0.01027590813 | AF78: =Inputs!AD199 -> 0.01027310176 | AG78: =Inputs!AE199 -> 0.01029448779 | AH78: =Inputs!AF199 -> 0.01026433145 | AI78: =Inputs!AG199 -> 0.0102833469 | AJ78: =Inputs!AH199 -> 0.01027631322
B80: 1 | C80: Residencial - 1 vez por semana | D80: 249 | E80: Unidades geradoras | F80: =SUM(G80:AJ80) -> 8787.126281 | G80: =$D80*(1+G$78) -> 251.5590032 | H80: =G80*(1+H$78) -> 254.1425335 | I80: =H80*(1+I$78) -> 256.7587667 | J80: =I80*(1+J$78) -> 259.3995272 | K80: 262.0648148 | L80: 264.7546296 | M80: 267.4771474 | N80: 270.2241923 | O80: 273.0039401 | P80: 275.8082151 | Q80: 278.6451931 | R80: 281.5066982 | S80: 284.4009062 | T80: 287.3196414 | U80: 290.2710796 | V80: 293.2552206 | W80: 296.2720646 | X80: 299.3134358 | Y80: 302.3875099 | Z80: 305.4942868 | AA80: 308.6337667 | AB80: 311.8059496 | AC80: 315.0108353 | AD80: 318.248424 | AE80: 321.5187155 | AF80: 324.82171 | AG80: 328.1655831 | AH80: 331.5339835 | AI80: 334.9432624 | AJ80: 338.3852443
B81: 2 | C81: Residencial - 3 vezes por semana | D81: 8147 | E81: Unidades geradoras | F81: 287504.8908 | G81: 8230.727706 | H81: =G81*(1+H$78) -> 8315.257913 | I81: =H81*(1+I$78) -> 8400.858123 | J81: 8487.260835 | K81: 8574.466049 | L81: 8662.473765 | M81: 8751.551484 | N81: 8841.431705 | O81: 8932.381928 | P81: 9024.134653 | Q81: 9116.957381 | R81: 9210.582611 | S81: 9305.277843 | T81: 9400.775578 | U81: 9497.343315 | V81: 9594.981055 | W81: 9693.688797 | X81: 9793.199041 | Y81: 9893.779288 | Z81: 9995.429538 | AA81: 10098.14979 | AB81: 10201.94004 | AC81: 10306.8003 | AD81: 10412.73056 | AE81: 10519.73082 | AF81: 10627.80109 | AG81: 10737.20886 | AH81: 10847.41913 | AI81: 10958.9669 | AJ81: 11071.58468
B82: 3 | C82: Residencial - 6 vezes por semana | D82: 3447 | E82: Unidades geradoras | F82: 121643.471 | G82: =$D82*(1+G$78) -> 3482.425236 | H82: 3518.190012 | I82: =H82*(1+I$78) -> 3554.407506 | J82: 3590.964539 | K82: 3627.861111 | L82: 3665.097222 | M82: 3702.786052 | N82: 3740.814421 | O82: 3779.295508 | P82: 3818.116135 | Q82: 3857.38948 | R82: 3897.002364 | S82: 3937.067967 | T82: 3977.473109 | U82: 4018.330969 | V82: 4059.641548 | W82: 4101.404846 | X82: 4143.507683 | Y82: 4186.063239 | Z82: 4229.071513 | AA82: 4272.532506 | AB82: 4316.446217 | AC82: 4360.812648 | AD82: 4405.631797 | AE82: 4450.903664 | AF82: 4496.628251 | AG82: 4542.918735 | AH82: 4589.548759 | AI82: 4636.744681 | AJ82: 4684.393322
B83: 4 | C83: Não Residencial - 1 vez por semana | D83: 90 | E83: Unidades geradoras | F83: 3176.06974 | G83: 90.9249409 | H83: 91.85874704 | I83: =H83*(1+I$78) -> 92.80437352 | J83: 93.75886525 | K83: 94.72222222 | L83: 95.69444444 | M83: 96.678487 | N83: 97.6713948 | O83: 98.67612293 | P83: 99.68971631 | Q83: 100.71513 | R83: 101.749409 | S83: 102.7955083 | T83: 103.8504728 | U83: 104.9172577 | V83: 105.9958629 | W83: 107.0862884 | X83: 108.1855792 | Y83: 109.2966903 | Z83: 110.4196217 | AA83: 111.5543735 | AB83: 112.7009456 | AC83: 113.8593381 | AD83: 115.0295508 | AE83: 116.2115839 | AF83: 117.4054374 | AG83: 118.6140662 | AH83: 119.8315603 | AI83: 121.0638298 | AJ83: 122.3079196
B84: 5 | C84: Não Residencial - 2 vezes por semana | D84: 3 | E84: Unidades geradoras | F84: 105.8689913 | G84: 3.030831363 | H84: 3.061958235 | I84: =H84*(1+I$78) -> 3.093479117 | J84: 3.125295508 | K84: 3.157407407 | L84: 3.189814815 | M84: 3.222616233 | N84: 3.25571316 | O84: 3.289204098 | P84: 3.322990544 | Q84: 3.357171001 | R84: 3.391646966 | S84: 3.426516942 | T84: 3.461682427 | U84: 3.497241923 | V84: 3.533195429 | W84: 3.569542947 | X84: 3.606185973 | Y84: 3.64322301 | Z84: 3.680654058 | AA84: 3.718479117 | AB84: 3.756698188 | AC84: 3.795311269 | AD84: 3.834318361 | AE84: 3.873719464 | AF84: 3.913514578 | AG84: 3.953802206 | AH84: 3.994385343 | AI84: 4.035460993 | AJ84: 4.076930654
B85: 6 | C85: Não Residencial - 3 vezes por semana | D85: 770 | E85: Unidades geradoras | F85: =SUM(G85:AJ85) -> 27173.04111 | G85: 777.9133832 | H85: 785.9026136 | I85: 793.9929735 | J85: 802.1591805 | K85: 810.4012346 | L85: 818.7191358 | M85: 827.1381665 | N85: 835.6330444 | O85: 844.2290517 | P85: 852.9009062 | Q85: 861.6738902 | R85: 870.5227213 | S85: 879.4726819 | T85: 888.4984896 | U85: 897.6254268 | V85: 906.8534936 | W85: 916.1826898 | X85: 925.5877331 | Y85: 935.093906 | Z85: 944.7012083 | AA85: 954.4096401 | AB85: 964.2192015 | AC85: 974.1298923 | AD85: 984.1417126 | AE85: 994.2546625 | AF85: 1004.468742 | AG85: 1014.809233 | AH85: 1025.225571 | AI85: 1035.768322 | AJ85: 1046.412201
B86: 7 | C86: Não Residencial - 6 vezes por semana | D86: 1672 | E86: Unidades geradoras | F86: 59004.31784 | G86: 1689.183346 | H86: 1706.53139 | I86: =H86*(1+I$78) -> 1724.099028 | J86: 1741.831363 | K86: 1759.728395 | L86: 1777.790123 | M86: 1796.071447 | N86: 1814.517468 | O86: 1833.183084 | P86: 1852.013396 | Q86: 1871.063304 | R86: 1890.277909 | S86: 1909.712109 | T86: 1929.311006 | U86: 1949.129498 | V86: 1969.167586 | W86: 1989.425269 | X86: 2009.847649 | Y86: 2030.489624 | Z86: 2051.351195 | AA86: 2072.432361 | AB86: 2093.733123 | AC86: 2115.25348 | AD86: 2136.993433 | AE86: 2158.952981 | AF86: 2181.132125 | AG86: 2203.585763 | AH86: 2226.204098 | AI86: 2249.096927 | AJ86: 2272.209351
C88: Volume esperado
C89: Flag de operação | E89: Flag | F89: =SUM(G89:AK89) -> 29 | G89: 0 | H89: 1 | I89: 1 | J89: 1 | K89: 1 | L89: 1 | M89: 1 | N89: 1 | O89: 1 | P89: 1 | Q89: 1 | R89: 1 | S89: 1 | T89: 1 | U89: 1 | V89: 1 | W89: 1 | X89: 1 | Y89: 1 | Z89: 1 | AA89: 1 | AB89: 1 | AC89: 1 | AD89: 1 | AE89: 1 | AF89: 1 | AG89: 1 | AH89: 1 | AI89: 1 | AJ89: 1 | AK89: 0 | AL89: 0 | AM89: 0 | AN89: 0
C91: Tarifas aplicáveis
C92: Flag de aumento | F92: =SUM(G92:AJ92) -> 2 | G92: 0 | H92: 0 | I92: 1 | J92: 1 | K92: 0 | L92: 0 | M92: 0 | N92: 0 | O92: 0 | P92: 0 | Q92: 0 | R92: 0 | S92: 0 | T92: 0 | U92: 0 | V92: 0 | W92: 0 | X92: 0 | Y92: 0 | Z92: 0 | AA92: 0 | AB92: 0 | AC92: 0 | AD92: 0 | AE92: 0 | AF92: 0 | AG92: 0 | AH92: 0 | AI92: 0 | AJ92: 0
C94: Aumento Real | D94: =Inputs!D88 -> 0.6004109779 | F94: =SUM(G94:AJ94) -> 0.6004109779 | G94: =IF(G92=1,$D94/$F$92,0) -> 0 | H94: =IF(H92=1,$D94/$F$92,0) -> 0 | I94: 0.3002054889 | J94: 0.3002054889 | K94: 0 | L94: 0 | M94: 0 | N94: 0 | O94: 0 | P94: 0 | Q94: =IF(Q92=1,$D94/$F$92,0) -> 0 | R94: 0 | S94: 0 | T94: 0 | U94: 0 | V94: 0 | W94: 0 | X94: 0 | Y94: 0 | Z94: 0 | AA94: 0 | AB94: 0 | AC94: 0 | AD94: 0 | AE94: 0 | AF94: 0 | AG94: 0 | AH94: 0 | AI94: 0 | AJ94: 0
C96: Desconto Aumento Real | D96: =Inputs!D90 -> 0 | F96: =SUM(G96:AJ96) -> 0 | G96: =IF(G92=1,G94*$D$96,0) -> 0 | H96: =IF(H92=1,H94*$D$96,0) -> 0 | I96: 0 | J96: 0 | K96: 0 | L96: 0 | M96: 0 | N96: 0 | O96: 0 | P96: 0 | Q96: 0 | R96: 0 | S96: 0 | T96: 0 | U96: 0 | V96: 0 | W96: 0 | X96: 0 | Y96: 0 | Z96: 0 | AA96: 0 | AB96: 0 | AC96: 0 | AD96: 0 | AE96: 0 | AF96: 0 | AG96: 0 | AH96: 0 | AI96: 0 | AJ96: 0
B98: 1 | C98: Residencial - 1 vez por semana | D98: 249 | E98: Unidades geradoras | F98: =SUM(G98:AN98) -> 8787.126281 | G98: =$D98*(1+G$78) -> 251.5590032 | H98: =G98*(1+H$78) -> 254.1425335 | I98: =IF(I$89=0,$D98*(1+I$78),H98*(1+I$78)) -> 256.7587667 | J98: =IF(J$89=0,$D98*(1+J$78),I98*(1+J$78)) -> 259.3995272 | K98: 262.0648148 | L98: 264.7546296 | M98: 267.4771474 | N98: 270.2241923 | O98: 273.0039401 | P98: 275.8082151 | Q98: 278.6451931 | R98: 281.5066982 | S98: 284.4009062 | T98: 287.3196414 | U98: 290.2710796 | V98: 293.2552206 | W98: 296.2720646 | X98: 299.3134358 | Y98: 302.3875099 | Z98: 305.4942868 | AA98: 308.6337667 | AB98: 311.8059496 | AC98: 315.0108353 | AD98: 318.248424 | AE98: 321.5187155 | AF98: 324.82171 | AG98: 328.1655831 | AH98: 331.5339835 | AI98: 334.9432624 | AJ98: 338.3852443
B99: 2 | C99: Residencial - 3 vezes por semana | D99: 8147 | E99: Unidades geradoras | F99: =SUM(G99:AN99) -> 287504.8908 | G99: =$D99*(1+G$78) -> 8230.727706 | H99: =G99*(1+H$78) -> 8315.257913 | I99: 8400.858123 | J99: 8487.260835 | K99: 8574.466049 | L99: 8662.473765 | M99: 8751.551484 | N99: 8841.431705 | O99: 8932.381928 | P99: 9024.134653 | Q99: 9116.957381 | R99: 9210.582611 | S99: 9305.277843 | T99: 9400.775578 | U99: 9497.343315 | V99: 9594.981055 | W99: 9693.688797 | X99: 9793.199041 | Y99: 9893.779288 | Z99: 9995.429538 | AA99: 10098.14979 | AB99: 10201.94004 | AC99: 10306.8003 | AD99: 10412.73056 | AE99: 10519.73082 | AF99: 10627.80109 | AG99: 10737.20886 | AH99: 10847.41913 | AI99: 10958.9669 | AJ99: 11071.58468
B100: 3 | C100: Residencial - 6 vezes por semana | D100: 3447 | E100: Unidades geradoras | F100: 121643.471 | G100: 3482.425236 | H100: 3518.190012 | I100: 3554.407506 | J100: 3590.964539 | K100: 3627.861111 | L100: 3665.097222 | M100: 3702.786052 | N100: 3740.814421 | O100: 3779.295508 | P100: 3818.116135 | Q100: 3857.38948 | R100: 3897.002364 | S100: 3937.067967 | T100: 3977.473109 | U100: 4018.330969 | V100: 4059.641548 | W100: 4101.404846 | X100: 4143.507683 | Y100: 4186.063239 | Z100: 4229.071513 | AA100: 4272.532506 | AB100: 4316.446217 | AC100: 4360.812648 | AD100: 4405.631797 | AE100: 4450.903664 | AF100: 4496.628251 | AG100: 4542.918735 | AH100: 4589.548759 | AI100: 4636.744681 | AJ100: 4684.393322
B101: 4 | C101: Não Residencial - 1 vez por semana | D101: 90 | E101: Unidades geradoras | F101: 3176.06974 | G101: 90.9249409 | H101: 91.85874704 | I101: 92.80437352 | J101: 93.75886525 | K101: 94.72222222 | L101: 95.69444444 | M101: 96.678487 | N101: 97.6713948 | O101: 98.67612293 | P101: 99.68971631 | Q101: 100.71513 | R101: 101.749409 | S101: 102.7955083 | T101: 103.8504728 | U101: 104.9172577 | V101: 105.9958629 | W101: 107.0862884 | X101: 108.1855792 | Y101: 109.2966903 | Z101: 110.4196217 | AA101: 111.5543735 | AB101: 112.7009456 | AC101: 113.8593381 | AD101: 115.0295508 | AE101: 116.2115839 | AF101: 117.4054374 | AG101: 118.6140662 | AH101: 119.8315603 | AI101: 121.0638298 | AJ101: 122.3079196
B102: 5 | C102: Não Residencial - 2 vezes por semana | D102: 3 | E102: Unidades geradoras | F102: 105.8689913 | G102: 3.030831363 | H102: 3.061958235 | I102: 3.093479117 | J102: 3.125295508 | K102: 3.157407407 | L102: 3.189814815 | M102: 3.222616233 | N102: 3.25571316 | O102: 3.289204098 | P102: 3.322990544 | Q102: 3.357171001 | R102: 3.391646966 | S102: 3.426516942 | T102: 3.461682427 | U102: 3.497241923 | V102: 3.533195429 | W102: 3.569542947 | X102: 3.606185973 | Y102: 3.64322301 | Z102: 3.680654058 | AA102: 3.718479117 | AB102: 3.756698188 | AC102: 3.795311269 | AD102: 3.834318361 | AE102: 3.873719464 | AF102: 3.913514578 | AG102: 3.953802206 | AH102: 3.994385343 | AI102: 4.035460993 | AJ102: 4.076930654
B103: 6 | C103: Não Residencial - 3 vezes por semana | D103: 770 | E103: Unidades geradoras | F103: 27173.04111 | G103: 777.9133832 | H103: 785.9026136 | I103: 793.9929735 | J103: 802.1591805 | K103: 810.4012346 | L103: 818.7191358 | M103: 827.1381665 | N103: 835.6330444 | O103: 844.2290517 | P103: 852.9009062 | Q103: 861.6738902 | R103: 870.5227213 | S103: 879.4726819 | T103: 888.4984896 | U103: 897.6254268 | V103: 906.8534936 | W103: 916.1826898 | X103: 925.5877331 | Y103: 935.093906 | Z103: 944.7012083 | AA103: 954.4096401 | AB103: 964.2192015 | AC103: 974.1298923 | AD103: 984.1417126 | AE103: 994.2546625 | AF103: 1004.468742 | AG103: 1014.809233 | AH103: 1025.225571 | AI103: 1035.768322 | AJ103: 1046.412201
B104: 7 | C104: Não Residencial - 6 vezes por semana | D104: 1672 | E104: Unidades geradoras | F104: 59004.31784 | G104: 1689.183346 | H104: 1706.53139 | I104: 1724.099028 | J104: 1741.831363 | K104: 1759.728395 | L104: 1777.790123 | M104: 1796.071447 | N104: 1814.517468 | O104: 1833.183084 | P104: 1852.013396 | Q104: 1871.063304 | R104: 1890.277909 | S104: 1909.712109 | T104: 1929.311006 | U104: 1949.129498 | V104: 1969.167586 | W104: 1989.425269 | X104: 2009.847649 | Y104: 2030.489624 | Z104: 2051.351195 | AA104: 2072.432361 | AB104: 2093.733123 | AC104: 2115.25348 | AD104: 2136.993433 | AE104: 2158.952981 | AF104: 2181.132125 | AG104: 2203.585763 | AH104: 2226.204098 | AI104: 2249.096927 | AJ104: 2272.209351
B106: 1 | C106: =C98 -> Residencial - 1 vez por semana | D106: 102.7420604 | E106: M² Médio | F106: =AVERAGE(G106:AJ106) -> 102.7420604 | G106: =D106 -> 102.7420604 | H106: =G106 -> 102.7420604 | I106: =H106 -> 102.7420604 | J106: 102.7420604 | K106: 102.7420604 | L106: 102.7420604 | M106: 102.7420604 | N106: 102.7420604 | O106: 102.7420604 | P106: 102.7420604 | Q106: 102.7420604 | R106: 102.7420604 | S106: 102.7420604 | T106: 102.7420604 | U106: 102.7420604 | V106: 102.7420604 | W106: 102.7420604 | X106: 102.7420604 | Y106: =X106 -> 102.7420604 | Z106: 102.7420604 | AA106: 102.7420604 | AB106: 102.7420604 | AC106: 102.7420604 | AD106: 102.7420604 | AE106: 102.7420604 | AF106: 102.7420604 | AG106: 102.7420604 | AH106: 102.7420604 | AI106: 102.7420604 | AJ106: 102.7420604
B107: 2 | C107: =C99 -> Residencial - 3 vezes por semana | D107: 100.5168156 | E107: M² Médio | F107: 100.5168156 | G107: 100.5168156 | H107: =G107 -> 100.5168156 | I107: 100.5168156 | J107: 100.5168156 | K107: 100.5168156 | L107: 100.5168156 | M107: 100.5168156 | N107: 100.5168156 | O107: 100.5168156 | P107: 100.5168156 | Q107: 100.5168156 | R107: 100.5168156 | S107: 100.5168156 | T107: 100.5168156 | U107: 100.5168156 | V107: 100.5168156 | W107: 100.5168156 | X107: 100.5168156 | Y107: 100.5168156 | Z107: 100.5168156 | AA107: 100.5168156 | AB107: 100.5168156 | AC107: 100.5168156 | AD107: 100.5168156 | AE107: 100.5168156 | AF107: 100.5168156 | AG107: 100.5168156 | AH107: 100.5168156 | AI107: 100.5168156 | AJ107: 100.5168156
B108: 3 | C108: Residencial - 6 vezes por semana | D108: 133.4060249 | E108: M² Médio | F108: 133.4060249 | G108: 133.4060249 | H108: 133.4060249 | I108: 133.4060249 | J108: 133.4060249 | K108: 133.4060249 | L108: 133.4060249 | M108: 133.4060249 | N108: 133.4060249 | O108: 133.4060249 | P108: 133.4060249 | Q108: 133.4060249 | R108: 133.4060249 | S108: 133.4060249 | T108: 133.4060249 | U108: 133.4060249 | V108: 133.4060249 | W108: 133.4060249 | X108: 133.4060249 | Y108: 133.4060249 | Z108: 133.4060249 | AA108: 133.4060249 | AB108: 133.4060249 | AC108: 133.4060249 | AD108: 133.4060249 | AE108: 133.4060249 | AF108: 133.4060249 | AG108: 133.4060249 | AH108: 133.4060249 | AI108: 133.4060249 | AJ108: 133.4060249
B109: 4 | C109: Não Residencial - 1 vez por semana | D109: 207.2214595 | E109: M² Médio | F109: 207.2214595 | G109: 207.2214595 | H109: 207.2214595 | I109: 207.2214595 | J109: 207.2214595 | K109: 207.2214595 | L109: 207.2214595 | M109: 207.2214595 | N109: 207.2214595 | O109: 207.2214595 | P109: 207.2214595 | Q109: 207.2214595 | R109: 207.2214595 | S109: 207.2214595 | T109: 207.2214595 | U109: 207.2214595 | V109: 207.2214595 | W109: 207.2214595 | X109: 207.2214595 | Y109: 207.2214595 | Z109: 207.2214595 | AA109: 207.2214595 | AB109: 207.2214595 | AC109: 207.2214595 | AD109: 207.2214595 | AE109: 207.2214595 | AF109: 207.2214595 | AG109: 207.2214595 | AH109: 207.2214595 | AI109: 207.2214595 | AJ109: 207.2214595
B110: 5 | C110: Não Residencial - 2 vezes por semana | D110: 141 | E110: M² Médio | F110: 141 | G110: 141 | H110: 141 | I110: 141 | J110: 141 | K110: 141 | L110: 141 | M110: 141 | N110: 141 | O110: 141 | P110: 141 | Q110: 141 | R110: 141 | S110: 141 | T110: 141 | U110: 141 | V110: 141 | W110: 141 | X110: 141 | Y110: 141 | Z110: 141 | AA110: 141 | AB110: 141 | AC110: 141 | AD110: 141 | AE110: 141 | AF110: 141 | AG110: 141 | AH110: 141 | AI110: 141 | AJ110: 141
B111: 6 | C111: Não Residencial - 3 vezes por semana | D111: 172.3015207 | E111: M² Médio | F111: 172.3015207 | G111: 172.3015207 | H111: 172.3015207 | I111: 172.3015207 | J111: 172.3015207 | K111: 172.3015207 | L111: 172.3015207 | M111: 172.3015207 | N111: 172.3015207 | O111: 172.3015207 | P111: 172.3015207 | Q111: 172.3015207 | R111: 172.3015207 | S111: 172.3015207 | T111: 172.3015207 | U111: 172.3015207 | V111: 172.3015207 | W111: 172.3015207 | X111: 172.3015207 | Y111: 172.3015207 | Z111: 172.3015207 | AA111: 172.3015207 | AB111: 172.3015207 | AC111: 172.3015207 | AD111: 172.3015207 | AE111: 172.3015207 | AF111: 172.3015207 | AG111: 172.3015207 | AH111: 172.3015207 | AI111: 172.3015207 | AJ111: 172.3015207
B112: 7 | C112: Não Residencial - 6 vezes por semana | D112: 131.2635344 | E112: M² Médio | F112: 131.2635344 | G112: 131.2635344 | H112: 131.2635344 | I112: 131.2635344 | J112: 131.2635344 | K112: 131.2635344 | L112: 131.2635344 | M112: 131.2635344 | N112: 131.2635344 | O112: 131.2635344 | P112: 131.2635344 | Q112: 131.2635344 | R112: 131.2635344 | S112: 131.2635344 | T112: 131.2635344 | U112: 131.2635344 | V112: 131.2635344 | W112: 131.2635344 | X112: 131.2635344 | Y112: 131.2635344 | Z112: 131.2635344 | AA112: 131.2635344 | AB112: 131.2635344 | AC112: 131.2635344 | AD112: 131.2635344 | AE112: 131.2635344 | AF112: 131.2635344 | AG112: 131.2635344 | AH112: 131.2635344 | AI112: 131.2635344 | AJ112: 131.2635344
B114: 1 | C114: =C106 -> Residencial - 1 vez por semana | D114: 0.918852 | E114: Valor básico referencial | F114: =SUM(G114:AN114) -> 44.97287296 | G114: =$D114*(1+G$94-G96) -> 0.918852 | H114: =G114*(1+H$94-H96) -> 0.918852 | I114: =H114*(1+I$94-I96) -> 1.194696414 | J114: =I114*(1+J$94-J96) -> 1.553350835 | K114: 1.553350835 | L114: 1.553350835 | M114: 1.553350835 | N114: 1.553350835 | O114: 1.553350835 | P114: 1.553350835 | Q114: 1.553350835 | R114: 1.553350835 | S114: 1.553350835 | T114: 1.553350835 | U114: 1.553350835 | V114: 1.553350835 | W114: 1.553350835 | X114: 1.553350835 | Y114: 1.553350835 | Z114: 1.553350835 | AA114: 1.553350835 | AB114: 1.553350835 | AC114: 1.553350835 | AD114: 1.553350835 | AE114: 1.553350835 | AF114: 1.553350835 | AG114: 1.553350835 | AH114: 1.553350835 | AI114: 1.553350835 | AJ114: 1.553350835
B115: 2 | C115: =C107 -> Residencial - 3 vezes por semana | D115: 2.57557 | E115: Valor básico referencial | F115: =SUM(G115:AN115) -> 126.0603257 | G115: =$D115*(1+G$94) -> 2.57557 | H115: =G115*(1+H$94) -> 2.57557 | I115: 3.348770251 | J115: =I115*(1+J$94) -> 4.354089462 | K115: 4.354089462 | L115: 4.354089462 | M115: 4.354089462 | N115: 4.354089462 | O115: 4.354089462 | P115: 4.354089462 | Q115: 4.354089462 | R115: 4.354089462 | S115: 4.354089462 | T115: 4.354089462 | U115: 4.354089462 | V115: 4.354089462 | W115: 4.354089462 | X115: 4.354089462 | Y115: 4.354089462 | Z115: 4.354089462 | AA115: 4.354089462 | AB115: 4.354089462 | AC115: 4.354089462 | AD115: 4.354089462 | AE115: 4.354089462 | AF115: 4.354089462 | AG115: 4.354089462 | AH115: 4.354089462 | AI115: 4.354089462 | AJ115: 4.354089462
B116: 3 | C116: Residencial - 6 vezes por semana | D116: 4.274054 | E116: Valor básico referencial | F116: 209.192 | G116: 4.274054 | H116: 4.274054 | I116: 5.557148471 | J116: 7.225434945 | K116: 7.225434945 | L116: 7.225434945 | M116: 7.225434945 | N116: 7.225434945 | O116: 7.225434945 | P116: 7.225434945 | Q116: 7.225434945 | R116: 7.225434945 | S116: 7.225434945 | T116: 7.225434945 | U116: 7.225434945 | V116: 7.225434945 | W116: 7.225434945 | X116: 7.225434945 | Y116: 7.225434945 | Z116: 7.225434945 | AA116: 7.225434945 | AB116: 7.225434945 | AC116: 7.225434945 | AD116: 7.225434945 | AE116: 7.225434945 | AF116: 7.225434945 | AG116: 7.225434945 | AH116: 7.225434945 | AI116: 7.225434945 | AJ116: 7.225434945
B117: 4 | C117: Não Residencial - 1 vez por semana | D117: 1.127682 | E117: Valor básico referencial | F117: 55.19398045 | G117: 1.127682 | H117: 1.127682 | I117: 1.466218326 | J117: 1.906385116 | K117: 1.906385116 | L117: 1.906385116 | M117: 1.906385116 | N117: 1.906385116 | O117: 1.906385116 | P117: 1.906385116 | Q117: 1.906385116 | R117: 1.906385116 | S117: 1.906385116 | T117: 1.906385116 | U117: 1.906385116 | V117: 1.906385116 | W117: 1.906385116 | X117: 1.906385116 | Y117: 1.906385116 | Z117: 1.906385116 | AA117: 1.906385116 | AB117: 1.906385116 | AC117: 1.906385116 | AD117: 1.906385116 | AE117: 1.906385116 | AF117: 1.906385116 | AG117: 1.906385116 | AH117: 1.906385116 | AI117: 1.906385116 | AJ117: 1.906385116
B118: 5 | C118: Não Residencial - 2 vezes por semana | D118: 2.673024 | E118: Valor básico referencial | F118: 130.8301759 | G118: 2.673024 | H118: 2.673024 | I118: 3.475480477 | J118: 4.518838793 | K118: 4.518838793 | L118: 4.518838793 | M118: 4.518838793 | N118: 4.518838793 | O118: 4.518838793 | P118: 4.518838793 | Q118: 4.518838793 | R118: 4.518838793 | S118: 4.518838793 | T118: 4.518838793 | U118: 4.518838793 | V118: 4.518838793 | W118: 4.518838793 | X118: 4.518838793 | Y118: 4.518838793 | Z118: 4.518838793 | AA118: 4.518838793 | AB118: 4.518838793 | AC118: 4.518838793 | AD118: 4.518838793 | AE118: 4.518838793 | AF118: 4.518838793 | AG118: 4.518838793 | AH118: 4.518838793 | AI118: 4.518838793 | AJ118: 4.518838793
B119: 6 | C119: Não Residencial - 3 vezes por semana | D119: 3.96777 | E119: Valor básico referencial | F119: 194.2010423 | G119: 3.96777 | H119: 3.96777 | I119: 5.158916333 | J119: 6.707651333 | K119: 6.707651333 | L119: 6.707651333 | M119: 6.707651333 | N119: 6.707651333 | O119: 6.707651333 | P119: 6.707651333 | Q119: 6.707651333 | R119: 6.707651333 | S119: 6.707651333 | T119: 6.707651333 | U119: 6.707651333 | V119: 6.707651333 | W119: 6.707651333 | X119: 6.707651333 | Y119: 6.707651333 | Z119: 6.707651333 | AA119: 6.707651333 | AB119: 6.707651333 | AC119: 6.707651333 | AD119: 6.707651333 | AE119: 6.707651333 | AF119: 6.707651333 | AG119: 6.707651333 | AH119: 6.707651333 | AI119: 6.707651333 | AJ119: 6.707651333
B120: 7 | C120: Não Residencial - 6 vezes por semana | D120: 6.111758 | E120: Valor básico referencial | F120: 299.1377459 | G120: 6.111758 | H120: 6.111758 | I120: 7.946541299 | J120: 10.33213661 | K120: 10.33213661 | L120: 10.33213661 | M120: 10.33213661 | N120: 10.33213661 | O120: 10.33213661 | P120: 10.33213661 | Q120: 10.33213661 | R120: 10.33213661 | S120: 10.33213661 | T120: 10.33213661 | U120: 10.33213661 | V120: 10.33213661 | W120: 10.33213661 | X120: 10.33213661 | Y120: 10.33213661 | Z120: 10.33213661 | AA120: 10.33213661 | AB120: 10.33213661 | AC120: 10.33213661 | AD120: 10.33213661 | AE120: 10.33213661 | AF120: 10.33213661 | AG120: 10.33213661 | AH120: 10.33213661 | AI120: 10.33213661 | AJ120: 10.33213661
B122: 1 | C122: =C106 -> Residencial - 1 vez por semana | D122: =D98*D106*D114/1000 -> 23.50678216 | E122: $ 000 | F122: =SUM(G122:AN122) -> 1359.948903 | G122: =(G98*G106*G114)/1000 -> 23.74836421 | H122: =(H98*H106*H114)/1000 -> 23.99226174 | I122: =(I98*I106*I114)/1000 -> 31.51600145 | J122: 41.39872883 | K122: 41.82409398 | L122: 42.25337354 | M122: 42.6878723 | N122: 43.12628546 | O122: 43.56991783 | P122: 44.01746461 | Q122: 44.47023058 | R122: 44.92691096 | S122: 45.38881055 | T122: 45.85462453 | U122: 46.32565773 | V122: 46.80191012 | W122: 47.28338172 | X122: 47.76876773 | Y122: 48.25937293 | Z122: 48.75519735 | AA122: 49.25624096 | AB122: 49.76250378 | AC122: 50.27398581 | AD122: 50.79068704 | AE122: 51.31260747 | AF122: 51.83974711 | AG122: 52.37341075 | AH122: 52.9109888 | AI122: 53.45509085 | AJ122: 54.00441211
B123: 2 | C123: Residencial - 3 vezes por semana | D123: 2109.161307 | E123: $ 000 | F123: =SUM(G123:AN123) -> 122022.2992 | G123: =(G99*G107*G115)/1000 -> 2130.837413 | H123: 2152.721278 | I123: 2827.793713 | J123: 3714.52785 | K123: 3752.694015 | L123: 3791.211402 | M123: 3830.197086 | N123: 3869.533992 | O123: 3909.339195 | P123: 3949.49562 | Q123: 3990.120341 | R123: 4031.096285 | S123: 4072.540526 | T123: 4114.335988 | U123: 4156.599748 | V123: 4199.331803 | W123: 4242.532156 | X123: 4286.08373 | Y123: 4330.103601 | Z123: 4374.591769 | AA123: 4419.548233 | AB123: 4464.972994 | AC123: 4510.866051 | AD123: 4557.227405 | AE123: 4604.057055 | AF123: 4651.355001 | AG123: 4699.238319 | AH123: 4747.472858 | AI123: 4796.292769 | AJ123: 4845.580975
B124: 3 | C124: Residencial - 6 vezes por semana | D124: 1965.426158 | E124: $ 000 | F124: 113706.7221 | G124: 1985.625081 | H124: 2006.017603 | I124: 2635.085195 | J124: 3461.390163 | K124: 3496.95538 | L124: 3532.847884 | M124: 3569.176771 | N124: 3605.832945 | O124: 3642.925502 | P124: 3680.345347 | Q124: 3718.201574 | R124: 3756.385089 | S124: 3795.004987 | T124: 3833.952172 | U124: 3873.33574 | V124: 3913.155691 | W124: 3953.412025 | X124: 3993.995647 | Y124: 4035.015651 | Z124: 4076.472039 | AA124: 4118.364809 | AB124: 4160.693963 | AC124: 4203.459499 | AD124: 4246.661419 | AE124: 4290.299721 | AF124: 4334.374407 | AG124: 4378.994571 | AH124: 4423.942023 | AI124: 4469.434954 | AJ124: 4515.364267
B125: 4 | C125: Não Residencial - 1 vez por semana | D125: 21.03119189 | E125: $ 000 | F125: 1216.727417 | G125: 21.247332 | H125: 21.46554373 | I125: 28.19692928 | J125: 37.03886835 | K125: 37.41943666 | L125: 37.80350712 | M125: 38.19224713 | N125: 38.58448931 | O125: 38.98140104 | P125: 39.38181492 | Q125: 39.78689836 | R125: 40.19548396 | S125: 40.60873911 | T125: 41.02549643 | U125: 41.44692329 | V125: 41.8730197 | W125: 42.30378566 | X125: 42.73805378 | Y125: 43.17699146 | Z125: 43.62059868 | AA125: 44.06887545 | AB125: 44.52182178 | AC125: 44.97943765 | AD125: 45.44172307 | AE125: 45.90867804 | AF125: 46.38030256 | AG125: 46.85776402 | AH125: 47.33872764 | AI125: 47.8255282 | AJ125: 48.31699831
B126: 5 | C126: Não Residencial - 2 vezes por semana | D126: 1.130689152 | E126: $ 000 | F126: 65.41429027 | G126: 1.142309381 | H126: 1.154040987 | I126: 1.515937005 | J126: 1.991301628 | K126: 2.011761926 | L126: 2.032410509 | M126: 2.053310138 | N126: 2.074398052 | O126: 2.095737013 | P126: 2.117264259 | Q126: 2.139042552 | R126: 2.161009129 | S126: 2.183226753 | T126: 2.205632662 | U126: 2.228289618 | V126: 2.25119762 | W126: 2.274356669 | X126: 2.297704003 | Y126: 2.321302383 | Z126: 2.34515181 | AA126: 2.369252284 | AB126: 2.393603804 | AC126: 2.418206371 | AD126: 2.443059984 | AE126: 2.468164644 | AF126: 2.49352035 | AG126: 2.519189865 | AH126: 2.545047665 | AI126: 2.571219273 | AJ126: 2.597641928
B127: 6 | C127: Não Residencial - 3 vezes por semana | D127: 526.4126597 | E127: $ 000 | F127: 30454.7987 | G127: 531.8226663 | H127: 537.2845261 | I127: 705.7717228 | J127: 927.086268 | K127: 936.6119274 | L127: 946.2252463 | M127: 955.9554445 | N127: 965.7733021 | O127: 975.708039 | P127: 985.7304353 | Q127: 995.8697108 | R127: 1006.096646 | S127: 1016.44046 | T127: 1026.871934 | U127: 1037.420287 | V127: 1048.085519 | W127: 1058.86763 | X127: 1069.737401 | Y127: 1080.724052 | Z127: 1091.827581 | AA127: 1103.04799 | AB127: 1114.385278 | AC127: 1125.839445 | AD127: 1137.410491 | AE127: 1149.098417 | AF127: 1160.903222 | AG127: 1172.854126 | AH127: 1184.89269 | AI127: 1197.077352 | AJ127: 1209.378894
B128: 7 | C128: Não Residencial - 6 vezes por semana | D128: 1341.363599 | E128: $ 000 | F128: =SUM(G128:AN128) -> 77602.53794 | G128: 1355.148955 | H128: 1369.066439 | I128: 1798.392347 | J128: 2362.328774 | K128: 2386.601315 | L128: 2411.097223 | M128: 2435.890954 | N128: 2460.908051 | O128: 2486.222971 | P128: 2511.761258 | Q128: 2537.597368 | R128: 2563.656844 | S128: 2590.014143 | T128: 2616.594809 | U128: 2643.473298 | V128: 2670.649609 | W128: 2698.123743 | X128: 2725.821244 | Y128: 2753.816567 | Z128: 2782.109713 | AA128: 2810.700682 | AB128: 2839.589473 | AC128: 2868.776086 | AD128: 2898.260523 | AE128: 2928.042782 | AF128: 2958.122863 | AG128: 2988.575223 | AH128: 3019.250949 | AI128: 3050.298954 | AJ128: 3081.644782
C131: Receitas tarifárias
E132: $ 000s / m² | F132: =SUM(G132:AJ132) -> 340378.8764 | G132: 0 | H132: =IF(H89=0,0,SUM(H122:H128)) -> 6111.701693 | I132: 8028.271845 | J132: 10545.76195 | K132: 10654.11793 | L132: 10763.47105 | M132: 10874.15368 | N132: 10985.83346 | O132: 11098.84276 | P132: 11212.8492 | Q132: 11328.18517 | R132: 11444.51827 | S132: 11562.18089 | T132: 11680.84066 | U132: 11800.82994 | V132: 11922.14875 | W132: 12044.79708 | X132: 12168.44255 | Y132: 12293.41754 | Z132: 12419.72205 | AA132: 12547.35608 | AB132: 12676.31964 | AC132: 12806.61271 | AD132: 12938.23531 | AE132: 13071.18742 | AF132: 13205.46906 | AG132: 13341.4126 | AH132: 13478.35328 | AI132: 13616.95587 | AJ132: 13756.88797
C136: Deduções da Receita
C137: =C72 -> Contraprestação anual | E137: $ 000s | F137: =SUM(G137:AJ137) -> 155701.2259 | G137: =G73 -> 8720 | H137: 4133.535497 | I137: 4585.214927 | J137: 4623.505932 | K137: 4661.759147 | L137: 4699.971757 | M137: 4738.256011 | N137: 4776.491981 | O137: 4814.789814 | P137: 4853.032178 | Q137: 4891.327153 | R137: 4929.559945 | S137: 4967.836606 | T137: 5006.044822 | U137: 5044.288654 | V137: 5082.563074 | W137: 5120.863194 | X137: 5159.081529 | Y137: 5197.318294 | Z137: 5235.568984 | AA137: 5273.82922 | AB137: 5312.094757 | AC137: 5350.361472 | AD137: 5388.625371 | AE137: 5426.882577 | AF137: 5465.129335 | AG137: 5503.455713 | AH137: 5541.669819 | AI137: 5579.954719 | AJ137: 5618.213433
C138: Receita tarifária | E138: $ 000s | F138: =SUM(G138:AJ138) -> 340378.8764 | G138: =SUM(G132:G132) -> 0 | H138: 6111.701693 | I138: 8028.271845 | J138: 10545.76195 | K138: 10654.11793 | L138: 10763.47105 | M138: 10874.15368 | N138: 10985.83346 | O138: 11098.84276 | P138: 11212.8492 | Q138: 11328.18517 | R138: 11444.51827 | S138: 11562.18089 | T138: 11680.84066 | U138: 11800.82994 | V138: 11922.14875 | W138: 12044.79708 | X138: 12168.44255 | Y138: 12293.41754 | Z138: 12419.72205 | AA138: 12547.35608 | AB138: 12676.31964 | AC138: 12806.61271 | AD138: 12938.23531 | AE138: 13071.18742 | AF138: 13205.46906 | AG138: 13341.4126 | AH138: 13478.35328 | AI138: 13616.95587 | AJ138: 13756.88797
C140: Receita total da PPP | E140: $ 000s | F140: =SUM(G140:AJ140) -> 496080.1023 | G140: =SUM(G137:G139) -> 8720 | H140: 10245.23719 | I140: 12613.48677 | J140: 15169.26789 | K140: 15315.87708 | L140: 15463.4428 | M140: 15612.4097 | N140: 15762.32544 | O140: 15913.63258 | P140: 16065.88138 | Q140: 16219.51232 | R140: 16374.07821 | S140: 16530.0175 | T140: 16686.88548 | U140: 16845.1186 | V140: 17004.71182 | W140: 17165.66027 | X140: 17327.52408 | Y140: 17490.73583 | Z140: 17655.29103 | AA140: 17821.1853 | AB140: 17988.41439 | AC140: 18156.97418 | AD140: 18326.86068 | AE140: 18498.07 | AF140: 18670.5984 | AG140: 18844.86832 | AH140: 19020.0231 | AI140: 19196.91059 | AJ140: 19375.1014
C143: =Inputs!C103 -> Imposto s/ serviço - (ISS) | D143: =Inputs!D103 -> 0.03 | E143: $ 000s | F143: =SUM(G143:AJ143) -> -14882.40307 | G143: =G$140*-$D143 -> -261.6 | H143: -307.3571157 | I143: -378.4046032 | J143: -455.0780366 | K143: -459.4763123 | L143: -463.9032841 | M143: -468.3722909 | N143: -472.8697633 | O143: -477.4089773 | P143: -481.9764414 | Q143: =Q$140*-$D143 -> -486.5853696 | R143: -491.2223464 | S143: -495.9005249 | T143: -500.6065644 | U143: -505.3535579 | V143: -510.1413547 | W143: -514.9698082 | X143: -519.8257223 | Y143: -524.722075 | Z143: -529.658731 | AA143: =AA$140*-$D143 -> -534.6355591 | AB143: -539.6524318 | AC143: -544.7092255 | AD143: -549.8058203 | AE143: -554.9421 | AF143: -560.1179519 | AG143: -565.3460495 | AH143: -570.6006931 | AI143: -575.9073176 | AJ143: -581.2530421
C144: =Inputs!C104 -> Programa Integração Social - (PIS) | D144: =Inputs!D104 -> 0.0165 | E144: $ 000s | F144: =SUM(G144:AJ144) -> -8185.321689 | G144: -143.88 | H144: -169.0464136 | I144: -208.1225317 | J144: -250.2929201 | K144: -252.7119718 | L144: -255.1468063 | M144: -257.60476 | N144: -260.0783698 | O144: -262.5749375 | P144: -265.0870428 | Q144: -267.6219533 | R144: -270.1722905 | S144: -272.7452887 | T144: -275.3336104 | U144: -277.9444569 | V144: -280.5777451 | W144: -283.2333945 | X144: -285.9041473 | Y144: -288.5971412 | Z144: -291.3123021 | AA144: -294.0495575 | AB144: -296.8088375 | AC144: -299.590074 | AD144: -302.3932012 | AE144: -305.218155 | AF144: -308.0648736 | AG144: -310.9403272 | AH144: -313.8303812 | AI144: -316.7490247 | AJ144: -319.6891732
C145: =Inputs!C105 -> Contribuição para Financiamento de Seguridade Social - (COFINS) | D145: =Inputs!D105 -> 0.076 | E145: $ 000s | F145: =SUM(G145:AJ145) -> -37702.08778 | G145: -662.72 | H145: -778.6380264 | I145: -958.6249947 | J145: -1152.864359 | K145: -1164.006658 | L145: -1175.221653 | M145: -1186.543137 | N145: -1197.936734 | O145: -1209.436076 | P145: -1221.006985 | Q145: -1232.682936 | R145: -1244.429944 | S145: -1256.28133 | T145: -1268.203296 | U145: -1280.229013 | V145: -1292.358099 | W145: -1304.590181 | X145: -1316.89183 | Y145: -1329.295923 | Z145: -1341.802119 | AA145: -1354.410083 | AB145: -1367.119494 | AC145: -1379.930038 | AD145: -1392.841412 | AE145: -1405.85332 | AF145: -1418.965478 | AG145: -1432.209992 | AH145: -1445.521756 | AI145: -1458.965205 | AJ145: -1472.507707
C146: Crédito de PIS / COFIS (não-cumulativo) | E146: $ 000s | F146: =SUM(G146:AJ146) -> 0 | G146: =G186 -> 0 | H146: =H186 -> 0 | I146: =I186 -> 0 | J146: 0 | K146: 0 | L146: 0 | M146: 0 | N146: 0 | O146: 0 | P146: 0 | Q146: 0 | R146: 0 | S146: 0 | T146: 0 | U146: 0 | V146: 0 | W146: 0 | X146: 0 | Y146: 0 | Z146: 0 | AA146: 0 | AB146: 0 | AC146: 0 | AD146: 0 | AE146: 0 | AF146: 0 | AG146: 0 | AH146: 0 | AI146: 0 | AJ146: 0
C147: Inadimplência das Receitas Tarifárias | E147: $ 000s | F147: =SUM(G147:AJ147) -> 0 | G147: =G196 -> 0 | H147: =H196 -> 0 | I147: 0 | J147: 0 | K147: 0 | L147: 0 | M147: 0 | N147: 0 | O147: 0 | P147: 0 | Q147: 0 | R147: 0 | S147: 0 | T147: 0 | U147: 0 | V147: 0 | W147: 0 | X147: 0 | Y147: 0 | Z147: 0 | AA147: 0 | AB147: 0 | AC147: 0 | AD147: 0 | AE147: 0 | AF147: 0 | AG147: 0 | AH147: 0 | AI147: 0 | AJ147: 0
C149: Total de deduções da Receita | E149: $ 000s | F149: =SUM(G149:AJ149) -> -60769.81254 | G149: =SUM(G143:G148) -> -1068.2 | H149: =SUM(H142:H148) -> -1255.041556 | I149: -1545.15213 | J149: -1858.235316 | K149: -1876.194942 | L149: -1894.271743 | M149: -1912.520188 | N149: -1930.884867 | O149: -1949.419991 | P149: -1968.070469 | Q149: -1986.890259 | R149: -2005.824581 | S149: -2024.927144 | T149: -2044.143471 | U149: -2063.527028 | V149: -2083.077198 | W149: -2102.793383 | X149: -2122.621699 | Y149: -2142.615139 | Z149: -2162.773152 | AA149: -2183.0952 | AB149: -2203.580763 | AC149: -2224.229338 | AD149: -2245.040433 | AE149: -2266.013575 | AF149: -2287.148304 | AG149: -2308.496369 | AH149: -2329.95283 | AI149: -2351.621547 | AJ149: -2373.449922
C151: Crédito de PIS / COFIS (não-cumulativo)
C153: CAPEX elegível
C154: =Ops!C293 -> CAPEX Total | D154: =Inputs!D107 -> 1 | F154: =Ops!F293 -> 0 | G154: =Ops!G293 -> 0 | H154: =Ops!H293 -> 0 | I154: =Ops!I293 -> 0 | J154: =Ops!J293 -> 0 | K154: =Ops!K293 -> 0 | L154: =Ops!L293 -> 0 | M154: =Ops!M293 -> 0 | N154: =Ops!N293 -> 0 | O154: =Ops!O293 -> 0 | P154: =Ops!P293 -> 0 | Q154: =Ops!Q293 -> 0 | R154: =Ops!R293 -> 0 | S154: =Ops!S293 -> 0 | T154: =Ops!T293 -> 0 | U154: =Ops!U293 -> 0 | V154: =Ops!V293 -> 0 | W154: =Ops!W293 -> 0 | X154: =Ops!X293 -> 0 | Y154: =Ops!Y293 -> 0 | Z154: =Ops!Z293 -> 0 | AA154: =Ops!AA293 -> 0 | AB154: =Ops!AB293 -> 0 | AC154: =Ops!AC293 -> 0 | AD154: =Ops!AD293 -> 0 | AE154: =Ops!AE293 -> 0 | AF154: =Ops!AF293 -> 0 | AG154: =Ops!AG293 -> 0 | AH154: =Ops!AH293 -> 0 | AI154: =Ops!AI293 -> 0 | AJ154: =Ops!AJ293 -> 0
C156: Aproveitamento fiscal CAPEX | E156: $ 000s | F156: =SUM(G156:AJ156) -> 0 | G156: =SUMPRODUCT(G154:G154,$D$154:$D$154) -> 0 | H156: =SUMPRODUCT(H154:H154,$D$154:$D$154) -> 0 | I156: 0 | J156: 0 | K156: 0 | L156: 0 | M156: 0 | N156: 0 | O156: 0 | P156: 0 | Q156: 0 | R156: 0 | S156: 0 | T156: 0 | U156: 0 | V156: 0 | W156: 0 | X156: 0 | Y156: 0 | Z156: 0 | AA156: 0 | AB156: 0 | AC156: 0 | AD156: 0 | AE156: 0 | AF156: 0 | AG156: 0 | AH156: 0 | AI156: 0 | AJ156: 0
C159: OPEX Elegível
C161: =C207 -> Custo e despesa 1 | D161: =Inputs!$D$107 -> 1 | E161: $ 000s | F161: =SUM(G161:AJ161) -> 0 | G161: =G207 -> 0 | H161: 0 | I161: 0 | J161: 0 | K161: 0 | L161: 0 | M161: 0 | N161: 0 | O161: 0 | P161: 0 | Q161: 0 | R161: 0 | S161: 0 | T161: 0 | U161: 0 | V161: 0 | W161: 0 | X161: 0 | Y161: 0 | Z161: 0 | AA161: 0 | AB161: 0 | AC161: 0 | AD161: 0 | AE161: 0 | AF161: 0 | AG161: 0 | AH161: 0 | AI161: 0 | AJ161: 0
C162: Custo e despesa 2 | D162: =Inputs!$D$107 -> 1 | E162: $ 000s | F162: 0 | G162: =G208 -> 0 | H162: 0 | I162: 0 | J162: 0 | K162: 0 | L162: 0 | M162: 0 | N162: 0 | O162: 0 | P162: 0 | Q162: 0 | R162: 0 | S162: 0 | T162: 0 | U162: 0 | V162: 0 | W162: 0 | X162: 0 | Y162: 0 | Z162: 0 | AA162: 0 | AB162: 0 | AC162: 0 | AD162: 0 | AE162: 0 | AF162: 0 | AG162: 0 | AH162: 0 | AI162: 0 | AJ162: 0
C163: Custo e despesa 3 | D163: =Inputs!$D$107 -> 1 | E163: $ 000s | F163: 0 | G163: =G209 -> 0 | H163: 0 | I163: 0 | J163: 0 | K163: 0 | L163: 0 | M163: 0 | N163: 0 | O163: 0 | P163: 0 | Q163: 0 | R163: 0 | S163: 0 | T163: 0 | U163: 0 | V163: 0 | W163: 0 | X163: 0 | Y163: 0 | Z163: 0 | AA163: 0 | AB163: 0 | AC163: 0 | AD163: 0 | AE163: 0 | AF163: 0 | AG163: 0 | AH163: 0 | AI163: 0 | AJ163: 0
C164: Custo e despesa 4 | D164: =Inputs!$D$107 -> 1 | E164: $ 000s | F164: 0 | G164: =G210 -> 0 | H164: 0 | I164: 0 | J164: 0 | K164: 0 | L164: 0 | M164: 0 | N164: 0 | O164: 0 | P164: 0 | Q164: 0 | R164: 0 | S164: 0 | T164: 0 | U164: 0 | V164: 0 | W164: 0 | X164: 0 | Y164: 0 | Z164: 0 | AA164: 0 | AB164: 0 | AC164: 0 | AD164: 0 | AE164: 0 | AF164: 0 | AG164: 0 | AH164: 0 | AI164: 0 | AJ164: 0
C165: Custo e despesa 5 | D165: =Inputs!$D$107 -> 1 | E165: $ 000s | F165: 0 | G165: =G211 -> 0 | H165: 0 | I165: 0 | J165: 0 | K165: 0 | L165: 0 | M165: 0 | N165: 0 | O165: 0 | P165: 0 | Q165: 0 | R165: 0 | S165: 0 | T165: 0 | U165: 0 | V165: 0 | W165: 0 | X165: 0 | Y165: 0 | Z165: 0 | AA165: 0 | AB165: 0 | AC165: 0 | AD165: 0 | AE165: 0 | AF165: 0 | AG165: 0 | AH165: 0 | AI165: 0 | AJ165: 0
C166: Custo e despesa 6 | D166: =Inputs!$D$107 -> 1 | E166: $ 000s | F166: 0 | G166: =G212 -> 0 | H166: 0 | I166: 0 | J166: 0 | K166: 0 | L166: 0 | M166: 0 | N166: 0 | O166: 0 | P166: 0 | Q166: 0 | R166: 0 | S166: 0 | T166: 0 | U166: 0 | V166: 0 | W166: 0 | X166: 0 | Y166: 0 | Z166: 0 | AA166: 0 | AB166: 0 | AC166: 0 | AD166: 0 | AE166: 0 | AF166: 0 | AG166: 0 | AH166: 0 | AI166: 0 | AJ166: 0
C167: Custo e despesa 7 | D167: =Inputs!$D$107 -> 1 | E167: $ 000s | F167: 0 | G167: =G213 -> 0 | H167: 0 | I167: 0 | J167: 0 | K167: 0 | L167: 0 | M167: 0 | N167: 0 | O167: 0 | P167: 0 | Q167: 0 | R167: 0 | S167: 0 | T167: 0 | U167: 0 | V167: 0 | W167: 0 | X167: 0 | Y167: 0 | Z167: 0 | AA167: 0 | AB167: 0 | AC167: 0 | AD167: 0 | AE167: 0 | AF167: 0 | AG167: 0 | AH167: 0 | AI167: 0 | AJ167: 0
C168: Custo e despesa 8 | D168: =Inputs!$D$107 -> 1 | E168: $ 000s | F168: 0 | G168: =G214 -> 0 | H168: 0 | I168: 0 | J168: 0 | K168: 0 | L168: 0 | M168: 0 | N168: 0 | O168: 0 | P168: 0 | Q168: 0 | R168: 0 | S168: 0 | T168: 0 | U168: 0 | V168: 0 | W168: 0 | X168: 0 | Y168: 0 | Z168: 0 | AA168: 0 | AB168: 0 | AC168: 0 | AD168: 0 | AE168: 0 | AF168: 0 | AG168: 0 | AH168: 0 | AI168: 0 | AJ168: 0
C169: Custo e despesa 9 | D169: =Inputs!$D$107 -> 1 | E169: $ 000s | F169: 0 | G169: =G215 -> 0 | H169: 0 | I169: 0 | J169: 0 | K169: 0 | L169: 0 | M169: 0 | N169: 0 | O169: 0 | P169: 0 | Q169: 0 | R169: 0 | S169: 0 | T169: 0 | U169: 0 | V169: 0 | W169: 0 | X169: 0 | Y169: 0 | Z169: 0 | AA169: 0 | AB169: 0 | AC169: 0 | AD169: 0 | AE169: 0 | AF169: 0 | AG169: 0 | AH169: 0 | AI169: 0 | AJ169: 0
C170: Custo e despesa 10 | D170: =Inputs!$D$107 -> 1 | E170: $ 000s | F170: 0 | G170: =G216 -> 0 | H170: 0 | I170: 0 | J170: 0 | K170: 0 | L170: 0 | M170: 0 | N170: 0 | O170: 0 | P170: 0 | Q170: 0 | R170: 0 | S170: 0 | T170: 0 | U170: 0 | V170: 0 | W170: 0 | X170: 0 | Y170: 0 | Z170: 0 | AA170: 0 | AB170: 0 | AC170: 0 | AD170: 0 | AE170: 0 | AF170: 0 | AG170: 0 | AH170: 0 | AI170: 0 | AJ170: 0
C171: Custo e despesa 11 | D171: =Inputs!$D$107 -> 1 | E171: $ 000s | F171: 0 | G171: =G217 -> 0 | H171: 0 | I171: 0 | J171: 0 | K171: 0 | L171: 0 | M171: 0 | N171: 0 | O171: 0 | P171: 0 | Q171: 0 | R171: 0 | S171: 0 | T171: 0 | U171: 0 | V171: 0 | W171: 0 | X171: 0 | Y171: 0 | Z171: 0 | AA171: 0 | AB171: 0 | AC171: 0 | AD171: 0 | AE171: 0 | AF171: 0 | AG171: 0 | AH171: 0 | AI171: 0 | AJ171: 0
C172: Custo e despesa 12 | D172: =Inputs!$D$107 -> 1 | E172: $ 000s | F172: 0 | G172: =G218 -> 0 | H172: 0 | I172: 0 | J172: 0 | K172: 0 | L172: 0 | M172: 0 | N172: 0 | O172: 0 | P172: 0 | Q172: 0 | R172: 0 | S172: 0 | T172: 0 | U172: 0 | V172: 0 | W172: 0 | X172: 0 | Y172: 0 | Z172: 0 | AA172: 0 | AB172: 0 | AC172: 0 | AD172: 0 | AE172: 0 | AF172: 0 | AG172: 0 | AH172: 0 | AI172: 0 | AJ172: 0
C173: Custo e despesa 13 | D173: =Inputs!$D$107 -> 1 | E173: $ 000s | F173: 0 | G173: =G219 -> 0 | H173: 0 | I173: 0 | J173: 0 | K173: 0 | L173: 0 | M173: 0 | N173: 0 | O173: 0 | P173: 0 | Q173: 0 | R173: 0 | S173: 0 | T173: 0 | U173: 0 | V173: 0 | W173: 0 | X173: 0 | Y173: 0 | Z173: 0 | AA173: 0 | AB173: 0 | AC173: 0 | AD173: 0 | AE173: 0 | AF173: 0 | AG173: 0 | AH173: 0 | AI173: 0 | AJ173: 0
C174: Custo e despesa 14 | D174: =Inputs!$D$107 -> 1 | F174: 0 | G174: =G220 -> 0 | H174: 0 | I174: 0 | J174: 0 | K174: 0 | L174: 0 | M174: 0 | N174: 0 | O174: 0 | P174: 0 | Q174: 0 | R174: 0 | S174: 0 | T174: 0 | U174: 0 | V174: 0 | W174: 0 | X174: 0 | Y174: 0 | Z174: 0 | AA174: 0 | AB174: 0 | AC174: 0 | AD174: 0 | AE174: 0 | AF174: 0 | AG174: 0 | AH174: 0 | AI174: 0 | AJ174: 0
C176: Aproveitamento fiscal OPEX | E176: $ 000s | F176: =SUM(G176:AJ176) -> 0 | G176: =SUMPRODUCT(G161:G174,$D$161:$D$174) -> 0 | H176: 0 | I176: 0 | J176: 0 | K176: 0 | L176: 0 | M176: 0 | N176: 0 | O176: 0 | P176: 0 | Q176: 0 | R176: 0 | S176: 0 | T176: 0 | U176: 0 | V176: 0 | W176: 0 | X176: 0 | Y176: 0 | Z176: 0 | AA176: 0 | AB176: 0 | AC176: 0 | AD176: 0 | AE176: 0 | AF176: 0 | AG176: 0 | AH176: 0 | AI176: 0 | AJ176: 0
C179: Crédito de PIS / COFIS a ser utilizado (não-cumulativo)
C181: Alíquota total | D181: =SUM($D$144:$D$145) -> 0.0925
C183: =C156 -> Aproveitamento fiscal CAPEX | E183: =E176 -> $ 000s | F183: =SUM(G183:AJ183) -> 0 | G183: =G156 -> 0 | H183: 0 | I183: 0 | J183: 0 | K183: 0 | L183: 0 | M183: 0 | N183: 0 | O183: 0 | P183: 0 | Q183: 0 | R183: 0 | S183: 0 | T183: 0 | U183: 0 | V183: 0 | W183: 0 | X183: 0 | Y183: 0 | Z183: 0 | AA183: 0 | AB183: 0 | AC183: 0 | AD183: 0 | AE183: 0 | AF183: 0 | AG183: 0 | AH183: 0 | AI183: 0 | AJ183: 0
C184: =C176 -> Aproveitamento fiscal OPEX | E184: =E176 -> $ 000s | F184: =SUM(G184:AJ184) -> 0 | G184: =G176 -> 0 | H184: 0 | I184: 0 | J184: 0 | K184: 0 | L184: 0 | M184: 0 | N184: 0 | O184: 0 | P184: 0 | Q184: 0 | R184: 0 | S184: 0 | T184: 0 | U184: 0 | V184: 0 | W184: 0 | X184: 0 | Y184: 0 | Z184: 0 | AA184: 0 | AB184: 0 | AC184: 0 | AD184: 0 | AE184: 0 | AF184: 0 | AG184: 0 | AH184: 0 | AI184: 0 | AJ184: 0
C186: Benefício Fiscal a ser utilizado | F186: =F179 -> 0 | G186: =IF(G137=0,0,SUM(G183:G184)*$D$181) -> 0 | H186: 0 | I186: 0 | J186: 0 | K186: 0 | L186: 0 | M186: 0 | N186: 0 | O186: 0 | P186: 0 | Q186: 0 | R186: 0 | S186: 0 | T186: 0 | U186: 0 | V186: 0 | W186: 0 | X186: 0 | Y186: 0 | Z186: 0 | AA186: 0 | AB186: 0 | AC186: 0 | AD186: 0 | AE186: 0 | AF186: 0 | AG186: 0 | AH186: 0 | AI186: 0 | AJ186: 0
C190: Inadimplência das Receitas Tarifárias
C192: Counter Concessão | E192: Ano | G192: =G3 -> 1 | H192: 2 | I192: 3 | J192: 4 | K192: 5 | L192: 6 | M192: 7 | N192: 8 | O192: 9 | P192: 10 | Q192: 11 | R192: 12 | S192: 13 | T192: 14 | U192: 15 | V192: 16 | W192: 17 | X192: 18 | Y192: 19 | Z192: 20 | AA192: 21 | AB192: 22 | AC192: 23 | AD192: 24 | AE192: 25 | AF192: 26 | AG192: 27 | AH192: 28 | AI192: 29 | AJ192: 30
C193: Receitas tarifária | E193: R$ | F193: =SUM(G193:AJ193) -> 340378.8764 | G193: =G138 -> 0 | H193: 6111.701693 | I193: 8028.271845 | J193: 10545.76195 | K193: 10654.11793 | L193: 10763.47105 | M193: 10874.15368 | N193: 10985.83346 | O193: 11098.84276 | P193: 11212.8492 | Q193: 11328.18517 | R193: 11444.51827 | S193: 11562.18089 | T193: 11680.84066 | U193: 11800.82994 | V193: 11922.14875 | W193: 12044.79708 | X193: 12168.44255 | Y193: 12293.41754 | Z193: 12419.72205 | AA193: 12547.35608 | AB193: 12676.31964 | AC193: 12806.61271 | AD193: 12938.23531 | AE193: 13071.18742 | AF193: 13205.46906 | AG193: 13341.4126 | AH193: 13478.35328 | AI193: 13616.95587 | AJ193: 13756.88797
C194: Índice de inadimplência | E194: % | F194: =AVERAGE(G194:AJ194) -> 0 | G194: =IFERROR(LOOKUP(G$192,Inputs!$D$109:$J$109,Inputs!$D$110:$J$110),0) -> 0 | H194: =IFERROR(LOOKUP(H$192,Inputs!$D$109:$J$109,Inputs!$D$110:$J$110),0) -> 0 | I194: =IFERROR(LOOKUP(I$192,Inputs!$D$109:$J$109,Inputs!$D$110:$J$110),0) -> 0 | J194: =IFERROR(LOOKUP(J$192,Inputs!$D$109:$J$109,Inputs!$D$110:$J$110),0) -> 0 | K194: =IFERROR(LOOKUP(K$192,Inputs!$D$109:$J$109,Inputs!$D$110:$J$110),0) -> 0 | L194: =IFERROR(LOOKUP(L$192,Inputs!$D$109:$J$109,Inputs!$D$110:$J$110),0) -> 0 | M194: =IFERROR(LOOKUP(M$192,Inputs!$D$109:$J$109,Inputs!$D$110:$J$110),0) -> 0 | N194: =IFERROR(LOOKUP(N$192,Inputs!$D$109:$J$109,Inputs!$D$110:$J$110),0) -> 0 | O194: =IFERROR(LOOKUP(O$192,Inputs!$D$109:$J$109,Inputs!$D$110:$J$110),0) -> 0 | P194: =IFERROR(LOOKUP(P$192,Inputs!$D$109:$J$109,Inputs!$D$110:$J$110),0) -> 0 | Q194: =IFERROR(LOOKUP(Q$192,Inputs!$D$109:$J$109,Inputs!$D$110:$J$110),0) -> 0 | R194: =IFERROR(LOOKUP(R$192,Inputs!$D$109:$J$109,Inputs!$D$110:$J$110),0) -> 0 | S194: =IFERROR(LOOKUP(S$192,Inputs!$D$109:$J$109,Inputs!$D$110:$J$110),0) -> 0 | T194: =IFERROR(LOOKUP(T$192,Inputs!$D$109:$J$109,Inputs!$D$110:$J$110),0) -> 0 | U194: =IFERROR(LOOKUP(U$192,Inputs!$D$109:$J$109,Inputs!$D$110:$J$110),0) -> 0 | V194: =IFERROR(LOOKUP(V$192,Inputs!$D$109:$J$109,Inputs!$D$110:$J$110),0) -> 0 | W194: =IFERROR(LOOKUP(W$192,Inputs!$D$109:$J$109,Inputs!$D$110:$J$110),0) -> 0 | X194: =IFERROR(LOOKUP(X$192,Inputs!$D$109:$J$109,Inputs!$D$110:$J$110),0) -> 0 | Y194: =IFERROR(LOOKUP(Y$192,Inputs!$D$109:$J$109,Inputs!$D$110:$J$110),0) -> 0 | Z194: =IFERROR(LOOKUP(Z$192,Inputs!$D$109:$J$109,Inputs!$D$110:$J$110),0) -> 0 | AA194: =IFERROR(LOOKUP(AA$192,Inputs!$D$109:$J$109,Inputs!$D$110:$J$110),0) -> 0 | AB194: =IFERROR(LOOKUP(AB$192,Inputs!$D$109:$J$109,Inputs!$D$110:$J$110),0) -> 0 | AC194: =IFERROR(LOOKUP(AC$192,Inputs!$D$109:$J$109,Inputs!$D$110:$J$110),0) -> 0 | AD194: =IFERROR(LOOKUP(AD$192,Inputs!$D$109:$J$109,Inputs!$D$110:$J$110),0) -> 0 | AE194: =IFERROR(LOOKUP(AE$192,Inputs!$D$109:$J$109,Inputs!$D$110:$J$110),0) -> 0 | AF194: =IFERROR(LOOKUP(AF$192,Inputs!$D$109:$J$109,Inputs!$D$110:$J$110),0) -> 0 | AG194: =IFERROR(LOOKUP(AG$192,Inputs!$D$109:$J$109,Inputs!$D$110:$J$110),0) -> 0 | AH194: =IFERROR(LOOKUP(AH$192,Inputs!$D$109:$J$109,Inputs!$D$110:$J$110),0) -> 0 | AI194: =IFERROR(LOOKUP(AI$192,Inputs!$D$109:$J$109,Inputs!$D$110:$J$110),0) -> 0 | AJ194: =IFERROR(LOOKUP(AJ$192,Inputs!$D$109:$J$109,Inputs!$D$110:$J$110),0) -> 0
C196: Inadimplência das Receitas Tarifárias | E196: R$ | F196: =SUM(G196:AJ196) -> 0 | G196: =G193*-G194 -> 0 | H196: =H193*-H194 -> 0 | I196: 0 | J196: 0 | K196: 0 | L196: 0 | M196: 0 | N196: 0 | O196: 0 | P196: 0 | Q196: 0 | R196: 0 | S196: 0 | T196: 0 | U196: 0 | V196: 0 | W196: 0 | X196: 0 | Y196: 0 | Z196: 0 | AA196: 0 | AB196: 0 | AC196: 0 | AD196: 0 | AE196: 0 | AF196: 0 | AG196: 0 | AH196: 0 | AI196: 0 | AJ196: 0
C200: Operating Costs (OPEX)
C202: Custos e Despesas (OPEX) PPP
C204: Flag de operação | F204: =SUM(G204:AJ204) -> 30 | G204: =IF(G$3>=Model_Start,IF(G$3<=Inputs!$E$8,1,0),0) -> 1 | H204: =IF(H$3>=Model_Start,IF(H$3<=Inputs!$E$8,1,0),0) -> 1 | I204: =IF(I$3>=Model_Start,IF(I$3<=Inputs!$E$8,1,0),0) -> 1 | J204: =IF(J$3>=Model_Start,IF(J$3<=Inputs!$E$8,1,0),0) -> 1 | K204: =IF(K$3>=Model_Start,IF(K$3<=Inputs!$E$8,1,0),0) -> 1 | L204: =IF(L$3>=Model_Start,IF(L$3<=Inputs!$E$8,1,0),0) -> 1 | M204: =IF(M$3>=Model_Start,IF(M$3<=Inputs!$E$8,1,0),0) -> 1 | N204: =IF(N$3>=Model_Start,IF(N$3<=Inputs!$E$8,1,0),0) -> 1 | O204: =IF(O$3>=Model_Start,IF(O$3<=Inputs!$E$8,1,0),0) -> 1 | P204: =IF(P$3>=Model_Start,IF(P$3<=Inputs!$E$8,1,0),0) -> 1 | Q204: =IF(Q$3>=Model_Start,IF(Q$3<=Inputs!$E$8,1,0),0) -> 1 | R204: =IF(R$3>=Model_Start,IF(R$3<=Inputs!$E$8,1,0),0) -> 1 | S204: =IF(S$3>=Model_Start,IF(S$3<=Inputs!$E$8,1,0),0) -> 1 | T204: =IF(T$3>=Model_Start,IF(T$3<=Inputs!$E$8,1,0),0) -> 1 | U204: =IF(U$3>=Model_Start,IF(U$3<=Inputs!$E$8,1,0),0) -> 1 | V204: =IF(V$3>=Model_Start,IF(V$3<=Inputs!$E$8,1,0),0) -> 1 | W204: =IF(W$3>=Model_Start,IF(W$3<=Inputs!$E$8,1,0),0) -> 1 | X204: =IF(X$3>=Model_Start,IF(X$3<=Inputs!$E$8,1,0),0) -> 1 | Y204: =IF(Y$3>=Model_Start,IF(Y$3<=Inputs!$E$8,1,0),0) -> 1 | Z204: =IF(Z$3>=Model_Start,IF(Z$3<=Inputs!$E$8,1,0),0) -> 1 | AA204: =IF(AA$3>=Model_Start,IF(AA$3<=Inputs!$E$8,1,0),0) -> 1 | AB204: =IF(AB$3>=Model_Start,IF(AB$3<=Inputs!$E$8,1,0),0) -> 1 | AC204: =IF(AC$3>=Model_Start,IF(AC$3<=Inputs!$E$8,1,0),0) -> 1 | AD204: =IF(AD$3>=Model_Start,IF(AD$3<=Inputs!$E$8,1,0),0) -> 1 | AE204: =IF(AE$3>=Model_Start,IF(AE$3<=Inputs!$E$8,1,0),0) -> 1 | AF204: =IF(AF$3>=Model_Start,IF(AF$3<=Inputs!$E$8,1,0),0) -> 1 | AG204: =IF(AG$3>=Model_Start,IF(AG$3<=Inputs!$E$8,1,0),0) -> 1 | AH204: =IF(AH$3>=Model_Start,IF(AH$3<=Inputs!$E$8,1,0),0) -> 1 | AI204: =IF(AI$3>=Model_Start,IF(AI$3<=Inputs!$E$8,1,0),0) -> 1 | AJ204: =IF(AJ$3>=Model_Start,IF(AJ$3<=Inputs!$E$8,1,0),0) -> 1
C207: =Inputs!C121 -> Custo e despesa 1 | E207: $ 000s | F207: =SUM(G207:AJ207) -> 0 | G207: =Inputs!D121*Ops!G$204 -> 0 | H207: =Inputs!E121*Ops!H$204 -> 0 | I207: =Inputs!F121*Ops!I$204 -> 0 | J207: =Inputs!G121*Ops!J$204 -> 0 | K207: =Inputs!H121*Ops!K$204 -> 0 | L207: =Inputs!I121*Ops!L$204 -> 0 | M207: =Inputs!J121*Ops!M$204 -> 0 | N207: =Inputs!K121*Ops!N$204 -> 0 | O207: =Inputs!L121*Ops!O$204 -> 0 | P207: =Inputs!M121*Ops!P$204 -> 0 | Q207: =Inputs!N121*Ops!Q$204 -> 0 | R207: =Inputs!O121*Ops!R$204 -> 0 | S207: =Inputs!P121*Ops!S$204 -> 0 | T207: =Inputs!Q121*Ops!T$204 -> 0 | U207: =Inputs!R121*Ops!U$204 -> 0 | V207: =Inputs!S121*Ops!V$204 -> 0 | W207: =Inputs!T121*Ops!W$204 -> 0 | X207: =Inputs!U121*Ops!X$204 -> 0 | Y207: =Inputs!V121*Ops!Y$204 -> 0 | Z207: =Inputs!W121*Ops!Z$204 -> 0 | AA207: =Inputs!X121*Ops!AA$204 -> 0 | AB207: =Inputs!Y121*Ops!AB$204 -> 0 | AC207: =Inputs!Z121*Ops!AC$204 -> 0 | AD207: =Inputs!AA121*Ops!AD$204 -> 0 | AE207: =Inputs!AB121*Ops!AE$204 -> 0 | AF207: =Inputs!AC121*Ops!AF$204 -> 0 | AG207: =Inputs!AD121*Ops!AG$204 -> 0 | AH207: =Inputs!AE121*Ops!AH$204 -> 0 | AI207: =Inputs!AF121*Ops!AI$204 -> 0 | AJ207: =Inputs!AG121*Ops!AJ$204 -> 0
C208: =Inputs!C122 -> Custo e despesa 2 | E208: $ 000s | F208: 0 | G208: =Inputs!D122*Ops!G$204 -> 0 | H208: =Inputs!E122*Ops!H$204 -> 0 | I208: =Inputs!F122*Ops!I$204 -> 0 | J208: =Inputs!G122*Ops!J$204 -> 0 | K208: =Inputs!H122*Ops!K$204 -> 0 | L208: =Inputs!I122*Ops!L$204 -> 0 | M208: =Inputs!J122*Ops!M$204 -> 0 | N208: =Inputs!K122*Ops!N$204 -> 0 | O208: =Inputs!L122*Ops!O$204 -> 0 | P208: =Inputs!M122*Ops!P$204 -> 0 | Q208: =Inputs!N122*Ops!Q$204 -> 0 | R208: =Inputs!O122*Ops!R$204 -> 0 | S208: =Inputs!P122*Ops!S$204 -> 0 | T208: =Inputs!Q122*Ops!T$204 -> 0 | U208: =Inputs!R122*Ops!U$204 -> 0 | V208: =Inputs!S122*Ops!V$204 -> 0 | W208: =Inputs!T122*Ops!W$204 -> 0 | X208: =Inputs!U122*Ops!X$204 -> 0 | Y208: =Inputs!V122*Ops!Y$204 -> 0 | Z208: =Inputs!W122*Ops!Z$204 -> 0 | AA208: =Inputs!X122*Ops!AA$204 -> 0 | AB208: =Inputs!Y122*Ops!AB$204 -> 0 | AC208: =Inputs!Z122*Ops!AC$204 -> 0 | AD208: =Inputs!AA122*Ops!AD$204 -> 0 | AE208: =Inputs!AB122*Ops!AE$204 -> 0 | AF208: =Inputs!AC122*Ops!AF$204 -> 0 | AG208: =Inputs!AD122*Ops!AG$204 -> 0 | AH208: =Inputs!AE122*Ops!AH$204 -> 0 | AI208: =Inputs!AF122*Ops!AI$204 -> 0 | AJ208: =Inputs!AG122*Ops!AJ$204 -> 0
C209: =Inputs!C123 -> Custo e despesa 3 | E209: $ 000s | F209: 0 | G209: =Inputs!D123*Ops!G$204 -> 0 | H209: =Inputs!E123*Ops!H$204 -> 0 | I209: =Inputs!F123*Ops!I$204 -> 0 | J209: =Inputs!G123*Ops!J$204 -> 0 | K209: =Inputs!H123*Ops!K$204 -> 0 | L209: =Inputs!I123*Ops!L$204 -> 0 | M209: =Inputs!J123*Ops!M$204 -> 0 | N209: =Inputs!K123*Ops!N$204 -> 0 | O209: =Inputs!L123*Ops!O$204 -> 0 | P209: =Inputs!M123*Ops!P$204 -> 0 | Q209: =Inputs!N123*Ops!Q$204 -> 0 | R209: =Inputs!O123*Ops!R$204 -> 0 | S209: =Inputs!P123*Ops!S$204 -> 0 | T209: =Inputs!Q123*Ops!T$204 -> 0 | U209: =Inputs!R123*Ops!U$204 -> 0 | V209: =Inputs!S123*Ops!V$204 -> 0 | W209: =Inputs!T123*Ops!W$204 -> 0 | X209: =Inputs!U123*Ops!X$204 -> 0 | Y209: =Inputs!V123*Ops!Y$204 -> 0 | Z209: =Inputs!W123*Ops!Z$204 -> 0 | AA209: =Inputs!X123*Ops!AA$204 -> 0 | AB209: =Inputs!Y123*Ops!AB$204 -> 0 | AC209: =Inputs!Z123*Ops!AC$204 -> 0 | AD209: =Inputs!AA123*Ops!AD$204 -> 0 | AE209: =Inputs!AB123*Ops!AE$204 -> 0 | AF209: =Inputs!AC123*Ops!AF$204 -> 0 | AG209: =Inputs!AD123*Ops!AG$204 -> 0 | AH209: =Inputs!AE123*Ops!AH$204 -> 0 | AI209: =Inputs!AF123*Ops!AI$204 -> 0 | AJ209: =Inputs!AG123*Ops!AJ$204 -> 0
C210: =Inputs!C124 -> Custo e despesa 4 | E210: $ 000s | F210: 0 | G210: =Inputs!D124*Ops!G$204 -> 0 | H210: =Inputs!E124*Ops!H$204 -> 0 | I210: =Inputs!F124*Ops!I$204 -> 0 | J210: =Inputs!G124*Ops!J$204 -> 0 | K210: =Inputs!H124*Ops!K$204 -> 0 | L210: =Inputs!I124*Ops!L$204 -> 0 | M210: =Inputs!J124*Ops!M$204 -> 0 | N210: =Inputs!K124*Ops!N$204 -> 0 | O210: =Inputs!L124*Ops!O$204 -> 0 | P210: =Inputs!M124*Ops!P$204 -> 0 | Q210: =Inputs!N124*Ops!Q$204 -> 0 | R210: =Inputs!O124*Ops!R$204 -> 0 | S210: =Inputs!P124*Ops!S$204 -> 0 | T210: =Inputs!Q124*Ops!T$204 -> 0 | U210: =Inputs!R124*Ops!U$204 -> 0 | V210: =Inputs!S124*Ops!V$204 -> 0 | W210: =Inputs!T124*Ops!W$204 -> 0 | X210: =Inputs!U124*Ops!X$204 -> 0 | Y210: =Inputs!V124*Ops!Y$204 -> 0 | Z210: =Inputs!W124*Ops!Z$204 -> 0 | AA210: =Inputs!X124*Ops!AA$204 -> 0 | AB210: =Inputs!Y124*Ops!AB$204 -> 0 | AC210: =Inputs!Z124*Ops!AC$204 -> 0 | AD210: =Inputs!AA124*Ops!AD$204 -> 0 | AE210: =Inputs!AB124*Ops!AE$204 -> 0 | AF210: =Inputs!AC124*Ops!AF$204 -> 0 | AG210: =Inputs!AD124*Ops!AG$204 -> 0 | AH210: =Inputs!AE124*Ops!AH$204 -> 0 | AI210: =Inputs!AF124*Ops!AI$204 -> 0 | AJ210: =Inputs!AG124*Ops!AJ$204 -> 0
C211: =Inputs!C125 -> Custo e despesa 5 | E211: $ 000s | F211: 0 | G211: =Inputs!D125*Ops!G$204 -> 0 | H211: =Inputs!E125*Ops!H$204 -> 0 | I211: =Inputs!F125*Ops!I$204 -> 0 | J211: =Inputs!G125*Ops!J$204 -> 0 | K211: =Inputs!H125*Ops!K$204 -> 0 | L211: =Inputs!I125*Ops!L$204 -> 0 | M211: =Inputs!J125*Ops!M$204 -> 0 | N211: =Inputs!K125*Ops!N$204 -> 0 | O211: =Inputs!L125*Ops!O$204 -> 0 | P211: =Inputs!M125*Ops!P$204 -> 0 | Q211: =Inputs!N125*Ops!Q$204 -> 0 | R211: =Inputs!O125*Ops!R$204 -> 0 | S211: =Inputs!P125*Ops!S$204 -> 0 | T211: =Inputs!Q125*Ops!T$204 -> 0 | U211: =Inputs!R125*Ops!U$204 -> 0 | V211: =Inputs!S125*Ops!V$204 -> 0 | W211: =Inputs!T125*Ops!W$204 -> 0 | X211: =Inputs!U125*Ops!X$204 -> 0 | Y211: =Inputs!V125*Ops!Y$204 -> 0 | Z211: =Inputs!W125*Ops!Z$204 -> 0 | AA211: =Inputs!X125*Ops!AA$204 -> 0 | AB211: =Inputs!Y125*Ops!AB$204 -> 0 | AC211: =Inputs!Z125*Ops!AC$204 -> 0 | AD211: =Inputs!AA125*Ops!AD$204 -> 0 | AE211: =Inputs!AB125*Ops!AE$204 -> 0 | AF211: =Inputs!AC125*Ops!AF$204 -> 0 | AG211: =Inputs!AD125*Ops!AG$204 -> 0 | AH211: =Inputs!AE125*Ops!AH$204 -> 0 | AI211: =Inputs!AF125*Ops!AI$204 -> 0 | AJ211: =Inputs!AG125*Ops!AJ$204 -> 0
C212: =Inputs!C126 -> Custo e despesa 6 | E212: $ 000s | F212: 0 | G212: =Inputs!D126*Ops!G$204 -> 0 | H212: =Inputs!E126*Ops!H$204 -> 0 | I212: =Inputs!F126*Ops!I$204 -> 0 | J212: =Inputs!G126*Ops!J$204 -> 0 | K212: =Inputs!H126*Ops!K$204 -> 0 | L212: =Inputs!I126*Ops!L$204 -> 0 | M212: =Inputs!J126*Ops!M$204 -> 0 | N212: =Inputs!K126*Ops!N$204 -> 0 | O212: =Inputs!L126*Ops!O$204 -> 0 | P212: =Inputs!M126*Ops!P$204 -> 0 | Q212: =Inputs!N126*Ops!Q$204 -> 0 | R212: =Inputs!O126*Ops!R$204 -> 0 | S212: =Inputs!P126*Ops!S$204 -> 0 | T212: =Inputs!Q126*Ops!T$204 -> 0 | U212: =Inputs!R126*Ops!U$204 -> 0 | V212: =Inputs!S126*Ops!V$204 -> 0 | W212: =Inputs!T126*Ops!W$204 -> 0 | X212: =Inputs!U126*Ops!X$204 -> 0 | Y212: =Inputs!V126*Ops!Y$204 -> 0 | Z212: =Inputs!W126*Ops!Z$204 -> 0 | AA212: =Inputs!X126*Ops!AA$204 -> 0 | AB212: =Inputs!Y126*Ops!AB$204 -> 0 | AC212: =Inputs!Z126*Ops!AC$204 -> 0 | AD212: =Inputs!AA126*Ops!AD$204 -> 0 | AE212: =Inputs!AB126*Ops!AE$204 -> 0 | AF212: =Inputs!AC126*Ops!AF$204 -> 0 | AG212: =Inputs!AD126*Ops!AG$204 -> 0 | AH212: =Inputs!AE126*Ops!AH$204 -> 0 | AI212: =Inputs!AF126*Ops!AI$204 -> 0 | AJ212: =Inputs!AG126*Ops!AJ$204 -> 0
C213: =Inputs!C127 -> Custo e despesa 7 | E213: $ 000s | F213: 0 | G213: =Inputs!D127*Ops!G$204 -> 0 | H213: =Inputs!E127*Ops!H$204 -> 0 | I213: =Inputs!F127*Ops!I$204 -> 0 | J213: =Inputs!G127*Ops!J$204 -> 0 | K213: =Inputs!H127*Ops!K$204 -> 0 | L213: =Inputs!I127*Ops!L$204 -> 0 | M213: =Inputs!J127*Ops!M$204 -> 0 | N213: =Inputs!K127*Ops!N$204 -> 0 | O213: =Inputs!L127*Ops!O$204 -> 0 | P213: =Inputs!M127*Ops!P$204 -> 0 | Q213: =Inputs!N127*Ops!Q$204 -> 0 | R213: =Inputs!O127*Ops!R$204 -> 0 | S213: =Inputs!P127*Ops!S$204 -> 0 | T213: =Inputs!Q127*Ops!T$204 -> 0 | U213: =Inputs!R127*Ops!U$204 -> 0 | V213: =Inputs!S127*Ops!V$204 -> 0 | W213: =Inputs!T127*Ops!W$204 -> 0 | X213: =Inputs!U127*Ops!X$204 -> 0 | Y213: =Inputs!V127*Ops!Y$204 -> 0 | Z213: =Inputs!W127*Ops!Z$204 -> 0 | AA213: =Inputs!X127*Ops!AA$204 -> 0 | AB213: =Inputs!Y127*Ops!AB$204 -> 0 | AC213: =Inputs!Z127*Ops!AC$204 -> 0 | AD213: =Inputs!AA127*Ops!AD$204 -> 0 | AE213: =Inputs!AB127*Ops!AE$204 -> 0 | AF213: =Inputs!AC127*Ops!AF$204 -> 0 | AG213: =Inputs!AD127*Ops!AG$204 -> 0 | AH213: =Inputs!AE127*Ops!AH$204 -> 0 | AI213: =Inputs!AF127*Ops!AI$204 -> 0 | AJ213: =Inputs!AG127*Ops!AJ$204 -> 0
C214: =Inputs!C128 -> Custo e despesa 8 | E214: $ 000s | F214: 0 | G214: =Inputs!D128*Ops!G$204 -> 0 | H214: =Inputs!E128*Ops!H$204 -> 0 | I214: =Inputs!F128*Ops!I$204 -> 0 | J214: =Inputs!G128*Ops!J$204 -> 0 | K214: =Inputs!H128*Ops!K$204 -> 0 | L214: =Inputs!I128*Ops!L$204 -> 0 | M214: =Inputs!J128*Ops!M$204 -> 0 | N214: =Inputs!K128*Ops!N$204 -> 0 | O214: =Inputs!L128*Ops!O$204 -> 0 | P214: =Inputs!M128*Ops!P$204 -> 0 | Q214: =Inputs!N128*Ops!Q$204 -> 0 | R214: =Inputs!O128*Ops!R$204 -> 0 | S214: =Inputs!P128*Ops!S$204 -> 0 | T214: =Inputs!Q128*Ops!T$204 -> 0 | U214: =Inputs!R128*Ops!U$204 -> 0 | V214: =Inputs!S128*Ops!V$204 -> 0 | W214: =Inputs!T128*Ops!W$204 -> 0 | X214: =Inputs!U128*Ops!X$204 -> 0 | Y214: =Inputs!V128*Ops!Y$204 -> 0 | Z214: =Inputs!W128*Ops!Z$204 -> 0 | AA214: =Inputs!X128*Ops!AA$204 -> 0 | AB214: =Inputs!Y128*Ops!AB$204 -> 0 | AC214: =Inputs!Z128*Ops!AC$204 -> 0 | AD214: =Inputs!AA128*Ops!AD$204 -> 0 | AE214: =Inputs!AB128*Ops!AE$204 -> 0 | AF214: =Inputs!AC128*Ops!AF$204 -> 0 | AG214: =Inputs!AD128*Ops!AG$204 -> 0 | AH214: =Inputs!AE128*Ops!AH$204 -> 0 | AI214: =Inputs!AF128*Ops!AI$204 -> 0 | AJ214: =Inputs!AG128*Ops!AJ$204 -> 0
C215: =Inputs!C129 -> Custo e despesa 9 | E215: $ 000s | F215: 0 | G215: =Inputs!D129*Ops!G$204 -> 0 | H215: =Inputs!E129*Ops!H$204 -> 0 | I215: =Inputs!F129*Ops!I$204 -> 0 | J215: =Inputs!G129*Ops!J$204 -> 0 | K215: =Inputs!H129*Ops!K$204 -> 0 | L215: =Inputs!I129*Ops!L$204 -> 0 | M215: =Inputs!J129*Ops!M$204 -> 0 | N215: =Inputs!K129*Ops!N$204 -> 0 | O215: =Inputs!L129*Ops!O$204 -> 0 | P215: =Inputs!M129*Ops!P$204 -> 0 | Q215: =Inputs!N129*Ops!Q$204 -> 0 | R215: =Inputs!O129*Ops!R$204 -> 0 | S215: =Inputs!P129*Ops!S$204 -> 0 | T215: =Inputs!Q129*Ops!T$204 -> 0 | U215: =Inputs!R129*Ops!U$204 -> 0 | V215: =Inputs!S129*Ops!V$204 -> 0 | W215: =Inputs!T129*Ops!W$204 -> 0 | X215: =Inputs!U129*Ops!X$204 -> 0 | Y215: =Inputs!V129*Ops!Y$204 -> 0 | Z215: =Inputs!W129*Ops!Z$204 -> 0 | AA215: =Inputs!X129*Ops!AA$204 -> 0 | AB215: =Inputs!Y129*Ops!AB$204 -> 0 | AC215: =Inputs!Z129*Ops!AC$204 -> 0 | AD215: =Inputs!AA129*Ops!AD$204 -> 0 | AE215: =Inputs!AB129*Ops!AE$204 -> 0 | AF215: =Inputs!AC129*Ops!AF$204 -> 0 | AG215: =Inputs!AD129*Ops!AG$204 -> 0 | AH215: =Inputs!AE129*Ops!AH$204 -> 0 | AI215: =Inputs!AF129*Ops!AI$204 -> 0 | AJ215: =Inputs!AG129*Ops!AJ$204 -> 0
C216: =Inputs!C130 -> Custo e despesa 10 | E216: $ 000s | F216: 0 | G216: =Inputs!D130*Ops!G$204 -> 0 | H216: =Inputs!E130*Ops!H$204 -> 0 | I216: =Inputs!F130*Ops!I$204 -> 0 | J216: =Inputs!G130*Ops!J$204 -> 0 | K216: =Inputs!H130*Ops!K$204 -> 0 | L216: =Inputs!I130*Ops!L$204 -> 0 | M216: =Inputs!J130*Ops!M$204 -> 0 | N216: =Inputs!K130*Ops!N$204 -> 0 | O216: =Inputs!L130*Ops!O$204 -> 0 | P216: =Inputs!M130*Ops!P$204 -> 0 | Q216: =Inputs!N130*Ops!Q$204 -> 0 | R216: =Inputs!O130*Ops!R$204 -> 0 | S216: =Inputs!P130*Ops!S$204 -> 0 | T216: =Inputs!Q130*Ops!T$204 -> 0 | U216: =Inputs!R130*Ops!U$204 -> 0 | V216: =Inputs!S130*Ops!V$204 -> 0 | W216: =Inputs!T130*Ops!W$204 -> 0 | X216: =Inputs!U130*Ops!X$204 -> 0 | Y216: =Inputs!V130*Ops!Y$204 -> 0 | Z216: =Inputs!W130*Ops!Z$204 -> 0 | AA216: =Inputs!X130*Ops!AA$204 -> 0 | AB216: =Inputs!Y130*Ops!AB$204 -> 0 | AC216: =Inputs!Z130*Ops!AC$204 -> 0 | AD216: =Inputs!AA130*Ops!AD$204 -> 0 | AE216: =Inputs!AB130*Ops!AE$204 -> 0 | AF216: =Inputs!AC130*Ops!AF$204 -> 0 | AG216: =Inputs!AD130*Ops!AG$204 -> 0 | AH216: =Inputs!AE130*Ops!AH$204 -> 0 | AI216: =Inputs!AF130*Ops!AI$204 -> 0 | AJ216: =Inputs!AG130*Ops!AJ$204 -> 0
C217: =Inputs!C131 -> Custo e despesa 11 | E217: $ 000s | F217: 0 | G217: =Inputs!D131*Ops!G$204 -> 0 | H217: =Inputs!E131*Ops!H$204 -> 0 | I217: =Inputs!F131*Ops!I$204 -> 0 | J217: =Inputs!G131*Ops!J$204 -> 0 | K217: =Inputs!H131*Ops!K$204 -> 0 | L217: =Inputs!I131*Ops!L$204 -> 0 | M217: =Inputs!J131*Ops!M$204 -> 0 | N217: =Inputs!K131*Ops!N$204 -> 0 | O217: =Inputs!L131*Ops!O$204 -> 0 | P217: =Inputs!M131*Ops!P$204 -> 0 | Q217: =Inputs!N131*Ops!Q$204 -> 0 | R217: =Inputs!O131*Ops!R$204 -> 0 | S217: =Inputs!P131*Ops!S$204 -> 0 | T217: =Inputs!Q131*Ops!T$204 -> 0 | U217: =Inputs!R131*Ops!U$204 -> 0 | V217: =Inputs!S131*Ops!V$204 -> 0 | W217: =Inputs!T131*Ops!W$204 -> 0 | X217: =Inputs!U131*Ops!X$204 -> 0 | Y217: =Inputs!V131*Ops!Y$204 -> 0 | Z217: =Inputs!W131*Ops!Z$204 -> 0 | AA217: =Inputs!X131*Ops!AA$204 -> 0 | AB217: =Inputs!Y131*Ops!AB$204 -> 0 | AC217: =Inputs!Z131*Ops!AC$204 -> 0 | AD217: =Inputs!AA131*Ops!AD$204 -> 0 | AE217: =Inputs!AB131*Ops!AE$204 -> 0 | AF217: =Inputs!AC131*Ops!AF$204 -> 0 | AG217: =Inputs!AD131*Ops!AG$204 -> 0 | AH217: =Inputs!AE131*Ops!AH$204 -> 0 | AI217: =Inputs!AF131*Ops!AI$204 -> 0 | AJ217: =Inputs!AG131*Ops!AJ$204 -> 0
C218: =Inputs!C132 -> Custo e despesa 12 | E218: $ 000s | F218: 0 | G218: =Inputs!D132*Ops!G$204 -> 0 | H218: =Inputs!E132*Ops!H$204 -> 0 | I218: =Inputs!F132*Ops!I$204 -> 0 | J218: =Inputs!G132*Ops!J$204 -> 0 | K218: =Inputs!H132*Ops!K$204 -> 0 | L218: =Inputs!I132*Ops!L$204 -> 0 | M218: =Inputs!J132*Ops!M$204 -> 0 | N218: =Inputs!K132*Ops!N$204 -> 0 | O218: =Inputs!L132*Ops!O$204 -> 0 | P218: =Inputs!M132*Ops!P$204 -> 0 | Q218: =Inputs!N132*Ops!Q$204 -> 0 | R218: =Inputs!O132*Ops!R$204 -> 0 | S218: =Inputs!P132*Ops!S$204 -> 0 | T218: =Inputs!Q132*Ops!T$204 -> 0 | U218: =Inputs!R132*Ops!U$204 -> 0 | V218: =Inputs!S132*Ops!V$204 -> 0 | W218: =Inputs!T132*Ops!W$204 -> 0 | X218: =Inputs!U132*Ops!X$204 -> 0 | Y218: =Inputs!V132*Ops!Y$204 -> 0 | Z218: =Inputs!W132*Ops!Z$204 -> 0 | AA218: =Inputs!X132*Ops!AA$204 -> 0 | AB218: =Inputs!Y132*Ops!AB$204 -> 0 | AC218: =Inputs!Z132*Ops!AC$204 -> 0 | AD218: =Inputs!AA132*Ops!AD$204 -> 0 | AE218: =Inputs!AB132*Ops!AE$204 -> 0 | AF218: =Inputs!AC132*Ops!AF$204 -> 0 | AG218: =Inputs!AD132*Ops!AG$204 -> 0 | AH218: =Inputs!AE132*Ops!AH$204 -> 0 | AI218: =Inputs!AF132*Ops!AI$204 -> 0 | AJ218: =Inputs!AG132*Ops!AJ$204 -> 0
C219: =Inputs!C133 -> Custo e despesa 13 | E219: $ 000s | F219: 0 | G219: =Inputs!D133*Ops!G$204 -> 0 | H219: =Inputs!E133*Ops!H$204 -> 0 | I219: =Inputs!F133*Ops!I$204 -> 0 | J219: =Inputs!G133*Ops!J$204 -> 0 | K219: =Inputs!H133*Ops!K$204 -> 0 | L219: =Inputs!I133*Ops!L$204 -> 0 | M219: =Inputs!J133*Ops!M$204 -> 0 | N219: =Inputs!K133*Ops!N$204 -> 0 | O219: =Inputs!L133*Ops!O$204 -> 0 | P219: =Inputs!M133*Ops!P$204 -> 0 | Q219: =Inputs!N133*Ops!Q$204 -> 0 | R219: =Inputs!O133*Ops!R$204 -> 0 | S219: =Inputs!P133*Ops!S$204 -> 0 | T219: =Inputs!Q133*Ops!T$204 -> 0 | U219: =Inputs!R133*Ops!U$204 -> 0 | V219: =Inputs!S133*Ops!V$204 -> 0 | W219: =Inputs!T133*Ops!W$204 -> 0 | X219: =Inputs!U133*Ops!X$204 -> 0 | Y219: =Inputs!V133*Ops!Y$204 -> 0 | Z219: =Inputs!W133*Ops!Z$204 -> 0 | AA219: =Inputs!X133*Ops!AA$204 -> 0 | AB219: =Inputs!Y133*Ops!AB$204 -> 0 | AC219: =Inputs!Z133*Ops!AC$204 -> 0 | AD219: =Inputs!AA133*Ops!AD$204 -> 0 | AE219: =Inputs!AB133*Ops!AE$204 -> 0 | AF219: =Inputs!AC133*Ops!AF$204 -> 0 | AG219: =Inputs!AD133*Ops!AG$204 -> 0 | AH219: =Inputs!AE133*Ops!AH$204 -> 0 | AI219: =Inputs!AF133*Ops!AI$204 -> 0 | AJ219: =Inputs!AG133*Ops!AJ$204 -> 0
C220: =Inputs!C134 -> Custo e despesa 14 | E220: $ 000s | F220: 0 | G220: =Inputs!D134*Ops!G$204 -> 0 | H220: =Inputs!E134*Ops!H$204 -> 0 | I220: =Inputs!F134*Ops!I$204 -> 0 | J220: =Inputs!G134*Ops!J$204 -> 0 | K220: =Inputs!H134*Ops!K$204 -> 0 | L220: =Inputs!I134*Ops!L$204 -> 0 | M220: =Inputs!J134*Ops!M$204 -> 0 | N220: =Inputs!K134*Ops!N$204 -> 0 | O220: =Inputs!L134*Ops!O$204 -> 0 | P220: =Inputs!M134*Ops!P$204 -> 0 | Q220: =Inputs!N134*Ops!Q$204 -> 0 | R220: =Inputs!O134*Ops!R$204 -> 0 | S220: =Inputs!P134*Ops!S$204 -> 0 | T220: =Inputs!Q134*Ops!T$204 -> 0 | U220: =Inputs!R134*Ops!U$204 -> 0 | V220: =Inputs!S134*Ops!V$204 -> 0 | W220: =Inputs!T134*Ops!W$204 -> 0 | X220: =Inputs!U134*Ops!X$204 -> 0 | Y220: =Inputs!V134*Ops!Y$204 -> 0 | Z220: =Inputs!W134*Ops!Z$204 -> 0 | AA220: =Inputs!X134*Ops!AA$204 -> 0 | AB220: =Inputs!Y134*Ops!AB$204 -> 0 | AC220: =Inputs!Z134*Ops!AC$204 -> 0 | AD220: =Inputs!AA134*Ops!AD$204 -> 0 | AE220: =Inputs!AB134*Ops!AE$204 -> 0 | AF220: =Inputs!AC134*Ops!AF$204 -> 0 | AG220: =Inputs!AD134*Ops!AG$204 -> 0 | AH220: =Inputs!AE134*Ops!AH$204 -> 0 | AI220: =Inputs!AF134*Ops!AI$204 -> 0 | AJ220: =Inputs!AG134*Ops!AJ$204 -> 0
C222: Custos e Despesas (OPEX) PPP total | E222: R$ / ano | F222: =SUM(G222:AJ222) -> 0 | G222: =SUM(G207:G220) -> 0 | H222: 0 | I222: 0 | J222: 0 | K222: 0 | L222: 0 | M222: 0 | N222: 0 | O222: 0 | P222: 0 | Q222: 0 | R222: 0 | S222: 0 | T222: 0 | U222: 0 | V222: 0 | W222: 0 | X222: 0 | Y222: 0 | Z222: 0 | AA222: 0 | AB222: 0 | AC222: 0 | AD222: 0 | AE222: 0 | AF222: 0 | AG222: 0 | AH222: 0 | AI222: 0 | AJ222: 0
C226: Real
C227: =C207 -> Custo e despesa 1 | E227: =E207 -> $ 000s | F227: =SUM(G227:AJ227) -> 0 | G227: =G207 -> 0 | H227: 0 | I227: 0 | J227: 0 | K227: 0 | L227: 0 | M227: 0 | N227: 0 | O227: 0 | P227: 0 | Q227: 0 | R227: 0 | S227: 0 | T227: 0 | U227: 0 | V227: 0 | W227: 0 | X227: 0 | Y227: 0 | Z227: 0 | AA227: 0 | AB227: 0 | AC227: 0 | AD227: 0 | AE227: 0 | AF227: 0 | AG227: 0 | AH227: 0 | AI227: 0 | AJ227: 0
C228: Custo e despesa 2 | E228: $ 000s | F228: 0 | G228: =G208 -> 0 | H228: 0 | I228: 0 | J228: 0 | K228: 0 | L228: 0 | M228: 0 | N228: 0 | O228: 0 | P228: 0 | Q228: 0 | R228: 0 | S228: 0 | T228: 0 | U228: 0 | V228: 0 | W228: 0 | X228: 0 | Y228: 0 | Z228: 0 | AA228: 0 | AB228: 0 | AC228: 0 | AD228: 0 | AE228: 0 | AF228: 0 | AG228: 0 | AH228: 0 | AI228: 0 | AJ228: 0
C229: Custo e despesa 3 | E229: $ 000s | F229: 0 | G229: =G209 -> 0 | H229: 0 | I229: 0 | J229: 0 | K229: 0 | L229: 0 | M229: 0 | N229: 0 | O229: 0 | P229: 0 | Q229: 0 | R229: 0 | S229: 0 | T229: 0 | U229: 0 | V229: 0 | W229: 0 | X229: 0 | Y229: 0 | Z229: 0 | AA229: 0 | AB229: 0 | AC229: 0 | AD229: 0 | AE229: 0 | AF229: 0 | AG229: 0 | AH229: 0 | AI229: 0 | AJ229: 0
C230: Custo e despesa 4 | E230: $ 000s | F230: 0 | G230: =G210 -> 0 | H230: 0 | I230: 0 | J230: 0 | K230: 0 | L230: 0 | M230: 0 | N230: 0 | O230: 0 | P230: 0 | Q230: 0 | R230: 0 | S230: 0 | T230: 0 | U230: 0 | V230: 0 | W230: 0 | X230: 0 | Y230: 0 | Z230: 0 | AA230: 0 | AB230: 0 | AC230: 0 | AD230: 0 | AE230: 0 | AF230: 0 | AG230: 0 | AH230: 0 | AI230: 0 | AJ230: 0
C231: Custo e despesa 5 | E231: $ 000s | F231: 0 | G231: =G211 -> 0 | H231: 0 | I231: 0 | J231: 0 | K231: 0 | L231: 0 | M231: 0 | N231: 0 | O231: 0 | P231: 0 | Q231: 0 | R231: 0 | S231: 0 | T231: 0 | U231: 0 | V231: 0 | W231: 0 | X231: 0 | Y231: 0 | Z231: 0 | AA231: 0 | AB231: 0 | AC231: 0 | AD231: 0 | AE231: 0 | AF231: 0 | AG231: 0 | AH231: 0 | AI231: 0 | AJ231: 0
C232: Custo e despesa 6 | E232: $ 000s | F232: 0 | G232: =G212 -> 0 | H232: 0 | I232: 0 | J232: 0 | K232: 0 | L232: 0 | M232: 0 | N232: 0 | O232: 0 | P232: 0 | Q232: 0 | R232: 0 | S232: 0 | T232: 0 | U232: 0 | V232: 0 | W232: 0 | X232: 0 | Y232: 0 | Z232: 0 | AA232: 0 | AB232: 0 | AC232: 0 | AD232: 0 | AE232: 0 | AF232: 0 | AG232: 0 | AH232: 0 | AI232: 0 | AJ232: 0
C233: Custo e despesa 7 | E233: $ 000s | F233: 0 | G233: =G213 -> 0 | H233: 0 | I233: 0 | J233: 0 | K233: 0 | L233: 0 | M233: 0 | N233: 0 | O233: 0 | P233: 0 | Q233: 0 | R233: 0 | S233: 0 | T233: 0 | U233: 0 | V233: 0 | W233: 0 | X233: 0 | Y233: 0 | Z233: 0 | AA233: 0 | AB233: 0 | AC233: 0 | AD233: 0 | AE233: 0 | AF233: 0 | AG233: 0 | AH233: 0 | AI233: 0 | AJ233: 0
C234: Custo e despesa 8 | E234: $ 000s | F234: 0 | G234: =G214 -> 0 | H234: 0 | I234: 0 | J234: 0 | K234: 0 | L234: 0 | M234: 0 | N234: 0 | O234: 0 | P234: 0 | Q234: 0 | R234: 0 | S234: 0 | T234: 0 | U234: 0 | V234: 0 | W234: 0 | X234: 0 | Y234: 0 | Z234: 0 | AA234: 0 | AB234: 0 | AC234: 0 | AD234: 0 | AE234: 0 | AF234: 0 | AG234: 0 | AH234: 0 | AI234: 0 | AJ234: 0
C235: Custo e despesa 9 | E235: $ 000s | F235: 0 | G235: =G215 -> 0 | H235: 0 | I235: 0 | J235: 0 | K235: 0 | L235: 0 | M235: 0 | N235: 0 | O235: 0 | P235: 0 | Q235: 0 | R235: 0 | S235: 0 | T235: 0 | U235: 0 | V235: 0 | W235: 0 | X235: 0 | Y235: 0 | Z235: 0 | AA235: 0 | AB235: 0 | AC235: 0 | AD235: 0 | AE235: 0 | AF235: 0 | AG235: 0 | AH235: 0 | AI235: 0 | AJ235: 0
C236: Custo e despesa 10 | E236: $ 000s | F236: 0 | G236: =G216 -> 0 | H236: 0 | I236: 0 | J236: 0 | K236: 0 | L236: 0 | M236: 0 | N236: 0 | O236: 0 | P236: 0 | Q236: 0 | R236: 0 | S236: 0 | T236: 0 | U236: 0 | V236: 0 | W236: 0 | X236: 0 | Y236: 0 | Z236: 0 | AA236: 0 | AB236: 0 | AC236: 0 | AD236: 0 | AE236: 0 | AF236: 0 | AG236: 0 | AH236: 0 | AI236: 0 | AJ236: 0
C237: Custo e despesa 11 | E237: $ 000s | F237: 0 | G237: =G217 -> 0 | H237: 0 | I237: 0 | J237: 0 | K237: 0 | L237: 0 | M237: 0 | N237: 0 | O237: 0 | P237: 0 | Q237: 0 | R237: 0 | S237: 0 | T237: 0 | U237: 0 | V237: 0 | W237: 0 | X237: 0 | Y237: 0 | Z237: 0 | AA237: 0 | AB237: 0 | AC237: 0 | AD237: 0 | AE237: 0 | AF237: 0 | AG237: 0 | AH237: 0 | AI237: 0 | AJ237: 0
C238: Custo e despesa 12 | E238: $ 000s | F238: 0 | G238: =G218 -> 0 | H238: 0 | I238: 0 | J238: 0 | K238: 0 | L238: 0 | M238: 0 | N238: 0 | O238: 0 | P238: 0 | Q238: 0 | R238: 0 | S238: 0 | T238: 0 | U238: 0 | V238: 0 | W238: 0 | X238: 0 | Y238: 0 | Z238: 0 | AA238: 0 | AB238: 0 | AC238: 0 | AD238: 0 | AE238: 0 | AF238: 0 | AG238: 0 | AH238: 0 | AI238: 0 | AJ238: 0
C239: Custo e despesa 13 | E239: $ 000s | F239: 0 | G239: =G219 -> 0 | H239: 0 | I239: 0 | J239: 0 | K239: 0 | L239: 0 | M239: 0 | N239: 0 | O239: 0 | P239: 0 | Q239: 0 | R239: 0 | S239: 0 | T239: 0 | U239: 0 | V239: 0 | W239: 0 | X239: 0 | Y239: 0 | Z239: 0 | AA239: 0 | AB239: 0 | AC239: 0 | AD239: 0 | AE239: 0 | AF239: 0 | AG239: 0 | AH239: 0 | AI239: 0 | AJ239: 0
C240: Custo e despesa 14 | E240: $ 000s | F240: 0 | G240: =G220 -> 0 | H240: 0 | I240: 0 | J240: 0 | K240: 0 | L240: 0 | M240: 0 | N240: 0 | O240: 0 | P240: 0 | Q240: 0 | R240: 0 | S240: 0 | T240: 0 | U240: 0 | V240: 0 | W240: 0 | X240: 0 | Y240: 0 | Z240: 0 | AA240: 0 | AB240: 0 | AC240: 0 | AD240: 0 | AE240: 0 | AF240: 0 | AG240: 0 | AH240: 0 | AI240: 0 | AJ240: 0
C241: Custos totais | E241: $ 000s | F241: 0 | G241: =SUM(G227:G240) -> 0 | H241: 0 | I241: 0 | J241: 0 | K241: 0 | L241: 0 | M241: 0 | N241: 0 | O241: 0 | P241: 0 | Q241: 0 | R241: 0 | S241: 0 | T241: 0 | U241: 0 | V241: 0 | W241: 0 | X241: 0 | Y241: 0 | Z241: 0 | AA241: 0 | AB241: 0 | AC241: 0 | AD241: 0 | AE241: 0 | AF241: 0 | AG241: 0 | AH241: 0 | AI241: 0 | AJ241: 0
C245: Capital de Giro
C247: Contas a receber
C248: Dias contas a receber | D248: =Inputs!E160 -> 0 | E248: Dias
C249: Dias no ano | E249: Dias | G249: =G12 -> 366 | H249: 365 | I249: 365 | J249: 365 | K249: 366 | L249: 365 | M249: 365 | N249: 365 | O249: 366 | P249: 365 | Q249: 365 | R249: 365 | S249: 366 | T249: 365 | U249: 365 | V249: 365 | W249: 366 | X249: 365 | Y249: 365 | Z249: 365 | AA249: 366 | AB249: 365 | AC249: 365 | AD249: 365 | AE249: 366 | AF249: 365 | AG249: 365 | AH249: 365 | AI249: 366 | AJ249: 365
C250: Receitas | E250: $ 000s | F250: =SUM(G250:AJ250) -> 435310.2898 | G250: ='Fluxo de caixa do projeto'!G11 -> 7651.8 | H250: ='Fluxo de caixa do projeto'!H11 -> 8990.195634 | I250: ='Fluxo de caixa do projeto'!I11 -> 11068.33464 | J250: ='Fluxo de caixa do projeto'!J11 -> 13311.03257 | K250: ='Fluxo de caixa do projeto'!K11 -> 13439.68213 | L250: ='Fluxo de caixa do projeto'!L11 -> 13569.17106 | M250: ='Fluxo de caixa do projeto'!M11 -> 13699.88951 | N250: ='Fluxo de caixa do projeto'!N11 -> 13831.44058 | O250: ='Fluxo de caixa do projeto'!O11 -> 13964.21259 | P250: ='Fluxo de caixa do projeto'!P11 -> 14097.81091 | Q250: ='Fluxo de caixa do projeto'!Q11 -> 14232.62206 | R250: ='Fluxo de caixa do projeto'!R11 -> 14368.25363 | S250: ='Fluxo de caixa do projeto'!S11 -> 14505.09035 | T250: ='Fluxo de caixa do projeto'!T11 -> 14642.74201 | U250: ='Fluxo de caixa do projeto'!U11 -> 14781.59157 | V250: ='Fluxo de caixa do projeto'!V11 -> 14921.63463 | W250: ='Fluxo de caixa do projeto'!W11 -> 15062.86689 | X250: ='Fluxo de caixa do projeto'!X11 -> 15204.90238 | Y250: ='Fluxo de caixa do projeto'!Y11 -> 15348.12069 | Z250: ='Fluxo de caixa do projeto'!Z11 -> 15492.51788 | AA250: ='Fluxo de caixa do projeto'!AA11 -> 15638.0901 | AB250: ='Fluxo de caixa do projeto'!AB11 -> 15784.83363 | AC250: ='Fluxo de caixa do projeto'!AC11 -> 15932.74485 | AD250: ='Fluxo de caixa do projeto'!AD11 -> 16081.82025 | AE250: ='Fluxo de caixa do projeto'!AE11 -> 16232.05643 | AF250: ='Fluxo de caixa do projeto'!AF11 -> 16383.45009 | AG250: ='Fluxo de caixa do projeto'!AG11 -> 16536.37195 | AH250: ='Fluxo de caixa do projeto'!AH11 -> 16690.07027 | AI250: ='Fluxo de caixa do projeto'!AI11 -> 16845.28904 | AJ250: ='Fluxo de caixa do projeto'!AJ11 -> 17001.65148
C251: Fluxo de caixa das receitas | E251: $ 000s | G251: =(G250/G249)*$D248 -> 0 | H251: =(H250/H249)*$D$248 -> 0 | I251: 0 | J251: 0 | K251: 0 | L251: 0 | M251: 0 | N251: 0 | O251: 0 | P251: 0 | Q251: 0 | R251: 0 | S251: 0 | T251: 0 | U251: 0 | V251: 0 | W251: 0 | X251: 0 | Y251: 0 | Z251: 0 | AA251: 0 | AB251: 0 | AC251: 0 | AD251: 0 | AE251: 0 | AF251: 0 | AG251: 0 | AH251: 0 | AI251: 0 | AJ251: 0
C252: Contas a receber | E252: $ 000s | G252: =IF(G$264=1,0,G251) -> 0 | H252: 0 | I252: 0 | J252: 0 | K252: 0 | L252: 0 | M252: 0 | N252: 0 | O252: 0 | P252: 0 | Q252: 0 | R252: 0 | S252: 0 | T252: 0 | U252: 0 | V252: 0 | W252: 0 | X252: 0 | Y252: 0 | Z252: 0 | AA252: 0 | AB252: 0 | AC252: 0 | AD252: 0 | AE252: 0 | AF252: 0 | AG252: 0 | AH252: 0 | AI252: 0 | AJ252: 0
C253: Variação contas a receber | E253: $ 000s | G253: =F252-G252 -> 0 | H253: 0 | I253: 0 | J253: 0 | K253: 0 | L253: 0 | M253: 0 | N253: 0 | O253: 0 | P253: 0 | Q253: 0 | R253: 0 | S253: 0 | T253: 0 | U253: 0 | V253: 0 | W253: 0 | X253: 0 | Y253: 0 | Z253: 0 | AA253: 0 | AB253: 0 | AC253: 0 | AD253: 0 | AE253: 0 | AF253: 0 | AG253: 0 | AH253: 0 | AI253: 0 | AJ253: 0
C255: Contas a pagar
C256: Dias contas a pagar | D256: =Inputs!E162 -> 0 | E256: Dias
C257: =C249 -> Dias no ano | E257: Dias | G257: =G249 -> 366 | H257: 365 | I257: 365 | J257: 365 | K257: 366 | L257: 365 | M257: 365 | N257: 365 | O257: 366 | P257: 365 | Q257: 365 | R257: 365 | S257: 366 | T257: 365 | U257: 365 | V257: 365 | W257: 366 | X257: 365 | Y257: 365 | Z257: 365 | AA257: 366 | AB257: 365 | AC257: 365 | AD257: 365 | AE257: 366 | AF257: 365 | AG257: 365 | AH257: 365 | AI257: 366 | AJ257: 365
C258: Custos elegíveis ao contas a pagar | E258: $ 000s | F258: =SUM(G258:AJ258) -> 0 | G258: =G241 -> 0 | H258: 0 | I258: 0 | J258: 0 | K258: 0 | L258: 0 | M258: 0 | N258: 0 | O258: 0 | P258: 0 | Q258: 0 | R258: 0 | S258: 0 | T258: 0 | U258: 0 | V258: 0 | W258: 0 | X258: 0 | Y258: 0 | Z258: 0 | AA258: 0 | AB258: 0 | AC258: 0 | AD258: 0 | AE258: 0 | AF258: 0 | AG258: 0 | AH258: 0 | AI258: 0 | AJ258: 0
C259: Pagamento custos operacionais | E259: $ 000s | G259: =(G258/G257)*$D256 -> 0 | H259: =(H258/H257)*$D256 -> 0 | I259: 0 | J259: 0 | K259: 0 | L259: 0 | M259: 0 | N259: 0 | O259: 0 | P259: 0 | Q259: 0 | R259: 0 | S259: 0 | T259: 0 | U259: 0 | V259: 0 | W259: 0 | X259: 0 | Y259: 0 | Z259: 0 | AA259: 0 | AB259: 0 | AC259: 0 | AD259: 0 | AE259: 0 | AF259: 0 | AG259: 0 | AH259: 0 | AI259: 0 | AJ259: 0
C260: Contas a pagar | E260: R$ | G260: =IF(G$264=1,0,G259) -> 0 | H260: 0 | I260: 0 | J260: 0 | K260: 0 | L260: 0 | M260: 0 | N260: 0 | O260: 0 | P260: 0 | Q260: 0 | R260: 0 | S260: 0 | T260: 0 | U260: 0 | V260: 0 | W260: 0 | X260: 0 | Y260: 0 | Z260: 0 | AA260: 0 | AB260: 0 | AC260: 0 | AD260: 0 | AE260: 0 | AF260: 0 | AG260: 0 | AH260: 0 | AI260: 0 | AJ260: 0
C261: Variação contas a pagar | E261: R$ | G261: =G260-F260 -> 0 | H261: 0 | I261: 0 | J261: 0 | K261: 0 | L261: 0 | M261: 0 | N261: 0 | O261: 0 | P261: 0 | Q261: 0 | R261: 0 | S261: 0 | T261: 0 | U261: 0 | V261: 0 | W261: 0 | X261: 0 | Y261: 0 | Z261: 0 | AA261: 0 | AB261: 0 | AC261: 0 | AD261: 0 | AE261: 0 | AF261: 0 | AG261: 0 | AH261: 0 | AI261: 0 | AJ261: 0
C263: Variação capital de giro
C264: Flag último dia de operação | G264: =IF(G$3=Inputs!$E$8,1,0) -> 0 | H264: =IF(H$3=Inputs!$E$8,1,0) -> 0 | I264: =IF(I$3=Inputs!$E$8,1,0) -> 0 | J264: =IF(J$3=Inputs!$E$8,1,0) -> 0 | K264: =IF(K$3=Inputs!$E$8,1,0) -> 0 | L264: =IF(L$3=Inputs!$E$8,1,0) -> 0 | M264: =IF(M$3=Inputs!$E$8,1,0) -> 0 | N264: =IF(N$3=Inputs!$E$8,1,0) -> 0 | O264: =IF(O$3=Inputs!$E$8,1,0) -> 0 | P264: =IF(P$3=Inputs!$E$8,1,0) -> 0 | Q264: =IF(Q$3=Inputs!$E$8,1,0) -> 0 | R264: =IF(R$3=Inputs!$E$8,1,0) -> 0 | S264: =IF(S$3=Inputs!$E$8,1,0) -> 0 | T264: =IF(T$3=Inputs!$E$8,1,0) -> 0 | U264: =IF(U$3=Inputs!$E$8,1,0) -> 0 | V264: =IF(V$3=Inputs!$E$8,1,0) -> 0 | W264: =IF(W$3=Inputs!$E$8,1,0) -> 0 | X264: =IF(X$3=Inputs!$E$8,1,0) -> 0 | Y264: =IF(Y$3=Inputs!$E$8,1,0) -> 0 | Z264: =IF(Z$3=Inputs!$E$8,1,0) -> 0 | AA264: =IF(AA$3=Inputs!$E$8,1,0) -> 0 | AB264: =IF(AB$3=Inputs!$E$8,1,0) -> 0 | AC264: =IF(AC$3=Inputs!$E$8,1,0) -> 0 | AD264: =IF(AD$3=Inputs!$E$8,1,0) -> 0 | AE264: =IF(AE$3=Inputs!$E$8,1,0) -> 0 | AF264: =IF(AF$3=Inputs!$E$8,1,0) -> 0 | AG264: =IF(AG$3=Inputs!$E$8,1,0) -> 0 | AH264: =IF(AH$3=Inputs!$E$8,1,0) -> 0 | AI264: =IF(AI$3=Inputs!$E$8,1,0) -> 0 | AJ264: =IF(AJ$3=Inputs!$E$8,1,0) -> 1
C266: =C253 -> Variação contas a receber | E266: $ 000s | F266: =SUM(G266:AJ266) -> 0 | G266: =G253 -> 0 | H266: 0 | I266: 0 | J266: 0 | K266: 0 | L266: 0 | M266: 0 | N266: 0 | O266: 0 | P266: 0 | Q266: 0 | R266: 0 | S266: 0 | T266: 0 | U266: 0 | V266: 0 | W266: 0 | X266: 0 | Y266: 0 | Z266: 0 | AA266: 0 | AB266: 0 | AC266: 0 | AD266: 0 | AE266: 0 | AF266: 0 | AG266: 0 | AH266: 0 | AI266: 0 | AJ266: 0
C267: =C261 -> Variação contas a pagar | E267: $ 000s | F267: =SUM(G267:AJ267) -> 0 | G267: =G261 -> 0 | H267: 0 | I267: 0 | J267: 0 | K267: 0 | L267: 0 | M267: 0 | N267: 0 | O267: 0 | P267: 0 | Q267: 0 | R267: 0 | S267: 0 | T267: 0 | U267: 0 | V267: 0 | W267: 0 | X267: 0 | Y267: 0 | Z267: 0 | AA267: 0 | AB267: 0 | AC267: 0 | AD267: 0 | AE267: 0 | AF267: 0 | AG267: 0 | AH267: 0 | AI267: 0 | AJ267: 0
C268: Variação de capital de giro | E268: $ 000s | F268: =SUM(G268:AJ268) -> 0 | G268: =SUM(G266:G267) -> 0 | H268: 0 | I268: 0 | J268: 0 | K268: 0 | L268: 0 | M268: 0 | N268: 0 | O268: 0 | P268: 0 | Q268: 0 | R268: 0 | S268: 0 | T268: 0 | U268: 0 | V268: 0 | W268: 0 | X268: 0 | Y268: 0 | Z268: 0 | AA268: 0 | AB268: 0 | AC268: 0 | AD268: 0 | AE268: 0 | AF268: 0 | AG268: 0 | AH268: 0 | AI268: 0 | AJ268: 0
C273: Funding, Imobilizado e Depreciação & Write-offs
C275: Funding
C277: CAPEX Programado
C279: Coleta Manual E Conteinerizada Rsc | D279: Divisivel | E279: $ 000s | F279: =SUM(G279:AJ279) -> 0 | G279: =Inputs!D14 -> 0 | H279: =Inputs!E14 -> 0 | I279: =Inputs!F14 -> 0 | J279: =Inputs!G14 -> 0 | K279: =Inputs!H14 -> 0 | L279: =Inputs!I14 -> 0 | M279: =Inputs!J14 -> 0 | N279: =Inputs!K14 -> 0 | O279: =Inputs!L14 -> 0 | P279: =Inputs!M14 -> 0 | Q279: =Inputs!N14 -> 0 | R279: =Inputs!O14 -> 0 | S279: =Inputs!P14 -> 0 | T279: =Inputs!Q14 -> 0 | U279: =Inputs!R14 -> 0 | V279: =Inputs!S14 -> 0 | W279: =Inputs!T14 -> 0 | X279: =Inputs!U14 -> 0 | Y279: =Inputs!V14 -> 0 | Z279: =Inputs!W14 -> 0 | AA279: =Inputs!X14 -> 0 | AB279: =Inputs!Y14 -> 0 | AC279: =Inputs!Z14 -> 0 | AD279: =Inputs!AA14 -> 0 | AE279: =Inputs!AB14 -> 0 | AF279: =Inputs!AC14 -> 0 | AG279: =Inputs!AD14 -> 0 | AH279: =Inputs!AE14 -> 0 | AI279: =Inputs!AF14 -> 0 | AJ279: =Inputs!AG14 -> 0
C280: Coleta De Materiais Recicláveis | D280: Divisivel | E280: $ 000s | F280: 0 | G280: =Inputs!D15 -> 0 | H280: =Inputs!E15 -> 0 | I280: =Inputs!F15 -> 0 | J280: =Inputs!G15 -> 0 | K280: =Inputs!H15 -> 0 | L280: =Inputs!I15 -> 0 | M280: =Inputs!J15 -> 0 | N280: =Inputs!K15 -> 0 | O280: =Inputs!L15 -> 0 | P280: =Inputs!M15 -> 0 | Q280: =Inputs!N15 -> 0 | R280: =Inputs!O15 -> 0 | S280: =Inputs!P15 -> 0 | T280: =Inputs!Q15 -> 0 | U280: =Inputs!R15 -> 0 | V280: =Inputs!S15 -> 0 | W280: =Inputs!T15 -> 0 | X280: =Inputs!U15 -> 0 | Y280: =Inputs!V15 -> 0 | Z280: =Inputs!W15 -> 0 | AA280: =Inputs!X15 -> 0 | AB280: =Inputs!Y15 -> 0 | AC280: =Inputs!Z15 -> 0 | AD280: =Inputs!AA15 -> 0 | AE280: =Inputs!AB15 -> 0 | AF280: =Inputs!AC15 -> 0 | AG280: =Inputs!AD15 -> 0 | AH280: =Inputs!AE15 -> 0 | AI280: =Inputs!AF15 -> 0 | AJ280: =Inputs!AG15 -> 0
C281: Coleta De Resíduos Do Serviço De Saúde Municipal | D281: Divisivel | E281: $ 000s | F281: 0 | G281: =Inputs!D16 -> 0 | H281: =Inputs!E16 -> 0 | I281: =Inputs!F16 -> 0 | J281: =Inputs!G16 -> 0 | K281: =Inputs!H16 -> 0 | L281: =Inputs!I16 -> 0 | M281: =Inputs!J16 -> 0 | N281: =Inputs!K16 -> 0 | O281: =Inputs!L16 -> 0 | P281: =Inputs!M16 -> 0 | Q281: =Inputs!N16 -> 0 | R281: =Inputs!O16 -> 0 | S281: =Inputs!P16 -> 0 | T281: =Inputs!Q16 -> 0 | U281: =Inputs!R16 -> 0 | V281: =Inputs!S16 -> 0 | W281: =Inputs!T16 -> 0 | X281: =Inputs!U16 -> 0 | Y281: =Inputs!V16 -> 0 | Z281: =Inputs!W16 -> 0 | AA281: =Inputs!X16 -> 0 | AB281: =Inputs!Y16 -> 0 | AC281: =Inputs!Z16 -> 0 | AD281: =Inputs!AA16 -> 0 | AE281: =Inputs!AB16 -> 0 | AF281: =Inputs!AC16 -> 0 | AG281: =Inputs!AD16 -> 0 | AH281: =Inputs!AE16 -> 0 | AI281: =Inputs!AF16 -> 0 | AJ281: =Inputs!AG16 -> 0
C282: Transporte E Destinação Final - Resíduos Pevs | D282: Divisivel | E282: $ 000s | F282: 0 | G282: =Inputs!D17 -> 0 | H282: =Inputs!E17 -> 0 | I282: =Inputs!F17 -> 0 | J282: =Inputs!G17 -> 0 | K282: =Inputs!H17 -> 0 | L282: =Inputs!I17 -> 0 | M282: =Inputs!J17 -> 0 | N282: =Inputs!K17 -> 0 | O282: =Inputs!L17 -> 0 | P282: =Inputs!M17 -> 0 | Q282: =Inputs!N17 -> 0 | R282: =Inputs!O17 -> 0 | S282: =Inputs!P17 -> 0 | T282: =Inputs!Q17 -> 0 | U282: =Inputs!R17 -> 0 | V282: =Inputs!S17 -> 0 | W282: =Inputs!T17 -> 0 | X282: =Inputs!U17 -> 0 | Y282: =Inputs!V17 -> 0 | Z282: =Inputs!W17 -> 0 | AA282: =Inputs!X17 -> 0 | AB282: =Inputs!Y17 -> 0 | AC282: =Inputs!Z17 -> 0 | AD282: =Inputs!AA17 -> 0 | AE282: =Inputs!AB17 -> 0 | AF282: =Inputs!AC17 -> 0 | AG282: =Inputs!AD17 -> 0 | AH282: =Inputs!AE17 -> 0 | AI282: =Inputs!AF17 -> 0 | AJ282: =Inputs!AG17 -> 0
C283: Coleta Programada De Volumosos | D283: Divisivel | E283: $ 000s | F283: 0 | G283: =Inputs!D18 -> 0 | H283: =Inputs!E18 -> 0 | I283: =Inputs!F18 -> 0 | J283: =Inputs!G18 -> 0 | K283: =Inputs!H18 -> 0 | L283: =Inputs!I18 -> 0 | M283: =Inputs!J18 -> 0 | N283: =Inputs!K18 -> 0 | O283: =Inputs!L18 -> 0 | P283: =Inputs!M18 -> 0 | Q283: =Inputs!N18 -> 0 | R283: =Inputs!O18 -> 0 | S283: =Inputs!P18 -> 0 | T283: =Inputs!Q18 -> 0 | U283: =Inputs!R18 -> 0 | V283: =Inputs!S18 -> 0 | W283: =Inputs!T18 -> 0 | X283: =Inputs!U18 -> 0 | Y283: =Inputs!V18 -> 0 | Z283: =Inputs!W18 -> 0 | AA283: =Inputs!X18 -> 0 | AB283: =Inputs!Y18 -> 0 | AC283: =Inputs!Z18 -> 0 | AD283: =Inputs!AA18 -> 0 | AE283: =Inputs!AB18 -> 0 | AF283: =Inputs!AC18 -> 0 | AG283: =Inputs!AD18 -> 0 | AH283: =Inputs!AE18 -> 0 | AI283: =Inputs!AF18 -> 0 | AJ283: =Inputs!AG18 -> 0
C284: Varrição Manual | D284: Indivisível | E284: $ 000s | F284: 0 | G284: =Inputs!D19 -> 0 | H284: =Inputs!E19 -> 0 | I284: =Inputs!F19 -> 0 | J284: =Inputs!G19 -> 0 | K284: =Inputs!H19 -> 0 | L284: =Inputs!I19 -> 0 | M284: =Inputs!J19 -> 0 | N284: =Inputs!K19 -> 0 | O284: =Inputs!L19 -> 0 | P284: =Inputs!M19 -> 0 | Q284: =Inputs!N19 -> 0 | R284: =Inputs!O19 -> 0 | S284: =Inputs!P19 -> 0 | T284: =Inputs!Q19 -> 0 | U284: =Inputs!R19 -> 0 | V284: =Inputs!S19 -> 0 | W284: =Inputs!T19 -> 0 | X284: =Inputs!U19 -> 0 | Y284: =Inputs!V19 -> 0 | Z284: =Inputs!W19 -> 0 | AA284: =Inputs!X19 -> 0 | AB284: =Inputs!Y19 -> 0 | AC284: =Inputs!Z19 -> 0 | AD284: =Inputs!AA19 -> 0 | AE284: =Inputs!AB19 -> 0 | AF284: =Inputs!AC19 -> 0 | AG284: =Inputs!AD19 -> 0 | AH284: =Inputs!AE19 -> 0 | AI284: =Inputs!AF19 -> 0 | AJ284: =Inputs!AG19 -> 0
C285: Serviços Gerais | D285: Indivisível | E285: $ 000s | F285: 0 | G285: =Inputs!D20 -> 0 | H285: =Inputs!E20 -> 0 | I285: =Inputs!F20 -> 0 | J285: =Inputs!G20 -> 0 | K285: =Inputs!H20 -> 0 | L285: =Inputs!I20 -> 0 | M285: =Inputs!J20 -> 0 | N285: =Inputs!K20 -> 0 | O285: =Inputs!L20 -> 0 | P285: =Inputs!M20 -> 0 | Q285: =Inputs!N20 -> 0 | R285: =Inputs!O20 -> 0 | S285: =Inputs!P20 -> 0 | T285: =Inputs!Q20 -> 0 | U285: =Inputs!R20 -> 0 | V285: =Inputs!S20 -> 0 | W285: =Inputs!T20 -> 0 | X285: =Inputs!U20 -> 0 | Y285: =Inputs!V20 -> 0 | Z285: =Inputs!W20 -> 0 | AA285: =Inputs!X20 -> 0 | AB285: =Inputs!Y20 -> 0 | AC285: =Inputs!Z20 -> 0 | AD285: =Inputs!AA20 -> 0 | AE285: =Inputs!AB20 -> 0 | AF285: =Inputs!AC20 -> 0 | AG285: =Inputs!AD20 -> 0 | AH285: =Inputs!AE20 -> 0 | AI285: =Inputs!AF20 -> 0 | AJ285: =Inputs!AG20 -> 0
C286: Investimentos Destinação Final | D286: Divisivel | E286: $ 000s | F286: 0 | G286: =Inputs!D21 -> 0 | H286: =Inputs!E21 -> 0 | I286: =Inputs!F21 -> 0 | J286: =Inputs!G21 -> 0 | K286: =Inputs!H21 -> 0 | L286: =Inputs!I21 -> 0 | M286: =Inputs!J21 -> 0 | N286: =Inputs!K21 -> 0 | O286: =Inputs!L21 -> 0 | P286: =Inputs!M21 -> 0 | Q286: =Inputs!N21 -> 0 | R286: =Inputs!O21 -> 0 | S286: =Inputs!P21 -> 0 | T286: =Inputs!Q21 -> 0 | U286: =Inputs!R21 -> 0 | V286: =Inputs!S21 -> 0 | W286: =Inputs!T21 -> 0 | X286: =Inputs!U21 -> 0 | Y286: =Inputs!V21 -> 0 | Z286: =Inputs!W21 -> 0 | AA286: =Inputs!X21 -> 0 | AB286: =Inputs!Y21 -> 0 | AC286: =Inputs!Z21 -> 0 | AD286: =Inputs!AA21 -> 0 | AE286: =Inputs!AB21 -> 0 | AF286: =Inputs!AC21 -> 0 | AG286: =Inputs!AD21 -> 0 | AH286: =Inputs!AE21 -> 0 | AI286: =Inputs!AF21 -> 0 | AJ286: =Inputs!AG21 -> 0
C287: Relação Com O Usuário | D287: Indivisível | E287: $ 000s | F287: 0 | G287: =Inputs!D22 -> 0 | H287: =Inputs!E22 -> 0 | I287: =Inputs!F22 -> 0 | J287: =Inputs!G22 -> 0 | K287: =Inputs!H22 -> 0 | L287: =Inputs!I22 -> 0 | M287: =Inputs!J22 -> 0 | N287: =Inputs!K22 -> 0 | O287: =Inputs!L22 -> 0 | P287: =Inputs!M22 -> 0 | Q287: =Inputs!N22 -> 0 | R287: =Inputs!O22 -> 0 | S287: =Inputs!P22 -> 0 | T287: =Inputs!Q22 -> 0 | U287: =Inputs!R22 -> 0 | V287: =Inputs!S22 -> 0 | W287: =Inputs!T22 -> 0 | X287: =Inputs!U22 -> 0 | Y287: =Inputs!V22 -> 0 | Z287: =Inputs!W22 -> 0 | AA287: =Inputs!X22 -> 0 | AB287: =Inputs!Y22 -> 0 | AC287: =Inputs!Z22 -> 0 | AD287: =Inputs!AA22 -> 0 | AE287: =Inputs!AB22 -> 0 | AF287: =Inputs!AC22 -> 0 | AG287: =Inputs!AD22 -> 0 | AH287: =Inputs!AE22 -> 0 | AI287: =Inputs!AF22 -> 0 | AJ287: =Inputs!AG22 -> 0
... 388 more rows

Sheet Capex
B2: ANO | C2: 1 | D2: =C2+1 -> 2 | E2: 3 | F2: 4 | G2: 5 | H2: 6 | I2: 7 | J2: 8 | K2: 9 | L2: 10 | M2: 11 | N2: 12 | O2: 13 | P2: 14 | Q2: 15 | R2: 16 | S2: 17 | T2: 18 | U2: 19 | V2: 20 | W2: 21 | X2: 22 | Y2: 23 | Z2: 24 | AA2: 25 | AB2: 26 | AC2: 27 | AD2: 28 | AE2: 29 | AF2: 30 | AH2: TOTAL
B4: CAPEX TOTAL
B6: COLETA MANUAL E CONTEINERIZADA RSC
B8: Estudos
B9: xxxxxxxx
B10: Quantidade
B11: Valor
B12: Veículos
B13: xxxxxxxx
B14: Quantidade
B15: Custo de Aquisicao
B16: xxxxxxxx
B17: Quantidade
B18: Custo de Aquisicao
B19: Equipamentos
B20: xxxxxxxx
B21: Quantidade
B22: Custo de Aquisicao
B23: xxxxxxxx
B24: Quantidade
B25: Custo de Aquisicao
B26: Adicionais
B27: xxxxxxxx
B28: Quantidade
B29: Custo de Aquisicao
B31: COLETA DE MATERIAIS RECICLÁVEIS
B33: Estudos
B34: xxxxxxxx
B35: Quantidade
B36: Valor
B37: Veículos
B38: xxxxxxxx
B39: Quantidade
B40: Custo de Aquisicao
B41: xxxxxxxx
B42: Quantidade
B43: Custo de Aquisicao
B44: Equipamentos
B45: xxxxxxxx
B46: Quantidade
B47: Custo de Aquisicao
B48: xxxxxxxx
B49: Quantidade
B50: Custo de Aquisicao
B51: Adicionais
B52: xxxxxxxx
B53: Quantidade
B54: Custo de Aquisicao
B55: COLETA DE RESÍDUOS DO SERVIÇO DE SAÚDE MUNICIPAL
B57: Estudos
B58: xxxxxxxx
B59: Quantidade
B60: Valor
B61: Veículos
B62: xxxxxxxx
B63: Quantidade
B64: Custo de Aquisicao
B65: xxxxxxxx
B66: Quantidade
B67: Custo de Aquisicao
B68: Equipamentos
B69: xxxxxxxx
B70: Quantidade
B71: Custo de Aquisicao
B72: xxxxxxxx
B73: Quantidade
B74: Custo de Aquisicao
B75: Adicionais
B76: xxxxxxxx
B77: Quantidade
B78: Custo de Aquisicao
B79: TRANSPORTE E DESTINAÇÃO FINAL - RESÍDUOS PEVS
B81: Estudos
B82: xxxxxxxx
B83: Quantidade
B84: Valor
B85: Veículos
B86: xxxxxxxx
B87: Quantidade
B88: Custo de Aquisicao
B89: xxxxxxxx
B90: Quantidade
B91: Custo de Aquisicao
B92: Equipamentos
B93: xxxxxxxx
B94: Quantidade
B95: Custo de Aquisicao
B96: xxxxxxxx
B97: Quantidade
B98: Custo de Aquisicao
B99: Adicionais
B100: xxxxxxxx
B101: Quantidade
B102: Custo de Aquisicao
B103: COLETA PROGRAMADA DE VOLUMOSOS
B105: Estudos
B106: xxxxxxxx
B107: Quantidade
B108: Valor
B109: Veículos
B110: xxxxxxxx
B111: Quantidade
B112: Custo de Aquisicao
B113: xxxxxxxx
B114: Quantidade
B115: Custo de Aquisicao
B116: Equipamentos
B117: xxxxxxxx
B118: Quantidade
B119: Custo de Aquisicao
B120: xxxxxxxx
B121: Quantidade
B122: Custo de Aquisicao
B123: Adicionais
B124: xxxxxxxx
B125: Quantidade
B126: Custo de Aquisicao
B128: VARRIÇÃO MANUAL
B130: Estudos
B131: xxxxxxxx
B132: Quantidade
B133: Valor
B134: Veículos
B135: xxxxxxxx
B136: Quantidade
B137: Custo de Aquisicao
B138: xxxxxxxx
B139: Quantidade
B140: Custo de Aquisicao
B141: Equipamentos
B142: xxxxxxxx
B143: Quantidade
B144: Custo de Aquisicao
B145: xxxxxxxx
B146: Quantidade
B147: Custo de Aquisicao
B148: Adicionais
B149: xxxxxxxx
B150: Quantidade
B151: Custo de Aquisicao
B153: SERVIÇOS GERAIS
B155: Estudos
B156: xxxxxxxx
B157: Quantidade
B158: Valor
B159: Veículos
B160: xxxxxxxx
B161: Quantidade
B162: Custo de Aquisicao
B163: xxxxxxxx
B164: Quantidade
B165: Custo de Aquisicao
B166: Equipamentos
B167: xxxxxxxx
B168: Quantidade
B169: Custo de Aquisicao
B170: xxxxxxxx
B171: Quantidade
B172: Custo de Aquisicao
B173: Adicionais
B174: xxxxxxxx
B175: Quantidade
B176: Custo de Aquisicao
B178: DESTINAÇÃO FINAL
B179: PEV
B180: Estudos
B181: xxxxxxxx
B182: Quantidade
B183: Valor
B184: Veículos
B185: xxxxxxxx
B186: Quantidade
B187: Custo de Aquisicao
B188: xxxxxxxx
B189: Quantidade
B190: Custo de Aquisicao
B191: Equipamentos
B192: xxxxxxxx
B193: Quantidade
B194: Custo de Aquisicao
B195: xxxxxxxx
B196: Quantidade
B197: Custo de Aquisicao
B198: Adicionais
B199: xxxxxxxx
B200: Quantidade
B201: Custo de Aquisicao
B202: Ecopontos
B203: Estudos
B204: xxxxxxxx
B205: Quantidade
B206: Valor
B207: Veículos
B208: xxxxxxxx
B209: Quantidade
B210: Custo de Aquisicao
B211: xxxxxxxx
B212: Quantidade
B213: Custo de Aquisicao
B214: Equipamentos
... 127 more rows

Sheet Opex
B2: Em R$ Mil
B4: ANO | C4: 1 | D4: =C4+1 -> 2 | E4: 3 | F4: 4 | G4: 5 | H4: 6 | I4: 7 | J4: 8 | K4: 9 | L4: 10 | M4: 11 | N4: 12 | O4: 13 | P4: 14 | Q4: 15 | R4: 16 | S4: 17 | T4: 18 | U4: 19 | V4: 20 | W4: 21 | X4: 22 | Y4: 23 | Z4: 24 | AA4: 25 | AB4: 26 | AC4: 27 | AD4: 28 | AE4: 29 | AF4: 30 | AH4: TOTAL
B6: OPEX TOTAL
B8: COLETA MANUAL E CONTEINERIZADA RESÍDUOS COMUNS
B10: Quantidade de Equipamentos Efetivos
B11: xxxx
B12: xxxx
B13: xxxx | AG13: =AF13 -> 0
B14: xxxx
B17: Locação de equipamentos
B18: xxxxx
B19: Quantidade
B20: Valor Unitário
B21: xxxxx
B22: Quantidade
B23: Valor Unitário
B25: Manutenção
B26: xxxxx
B27: Quantidade
B28: Valor Unitário
B29: xxxxx
B30: Quantidade
B31: Valor Unitário
B33: Combustiveis
B34: xxxxx
B35: Quantidade
B36: Km Mensal
B37: Consumo
B38: Valor Unitário
B39: xxxxx
B40: Quantidade
B41: Km Mensal
B42: Consumo
B43: Valor Unitário
B45: Óleos, Lubrificantes e Graxas
B46: xxxxx
B47: Quantidade
B48: Valor Unitário
B49: xxxxx
B50: Quantidade | AG50: =AG12 -> 0
B51: Valor Unitário
B53: Pneus
B54: xxxxx
B55: Quantidade
B56: Valor unitário pneu
B57: xxxxx
B58: Quantidade
B59: Valor unitário pneu
B61: Lavagem
B62: Lavagem total
B63: xxxxx
B64: Valor unitário
B65: Lavagem total
B66: xxxxx
B67: Valor unitário
B69: Licenciamento e Seguros
B70: xxxxx
B71: Quantidade
B72: Licenciamento
B73: IPVA
B74: Seguro
B75: xxxxx
B76: Quantidade
B77: Licenciamento
B78: IPVA
B79: Seguro
B81: Monitoramento de veículos
B82: Quantidade de Veículos
B83: Valor Unitário
B85: Material de Consumo
B86: xxxxxx
B87: Quantidade
B88: Valor unitário
B89: xxxxxx
B90: Quantidade
B91: Valor unitário
B92: xxxxxx
B93: Quantidade
B94: Valor unitário
B96: Mão de obra - Salários
B97: Motorista diurno e vespertino
B98: Quantidade
B99: Salário base
B100: Salário mínimo
B101: Adicional de insalubridade
B102: Adicional de periculosidade
B103: Adicional noturno
B104: Motorista noturno
B105: Quantidade
B106: Salário base
B107: Salário mínimo
B108: Adicional de insalubridade
B109: Adicional de periculosidade
B110: Adicional noturno
B111: Coletor diurno e vespertino
B112: Quantidade
B113: Salário base
B114: Salário mínimo
B115: Adicional de insalubridade
B116: Adicional de periculosidade
B117: Adicional noturno
B118: Coletor noturno
B119: Quantidade
B120: Salário base
B121: Salário mínimo
B122: Adicional de insalubridade
B123: Adicional de periculosidade
B124: Adicional noturno
B125: Servente diurno e vespertino
B126: Quantidade
B127: Salário base
B128: Salário mínimo
B129: Adicional de insalubridade
B130: Adicional de periculosidade
B131: Adicional noturno
B132: Servente noturno
B133: Quantidade
B134: Salário base
B135: Salário mínimo
B136: Adicional de insalubridade
B137: Adicional de periculosidade
B138: Adicional noturno
B139: {xxxxxxxx}
B140: Quantidade
B141: Salário base
B142: Salário mínimo
B143: Adicional de insalubridade
B144: Adicional de periculosidade
B145: Adicional noturno
B147: Mão de obra - Encargos
B148: Salários total
B149: % de encargos sociais
B151: Mão de obra - Benefícios
B152: Motorista diurno e vespertino
B153: xxxxx
B154: xxxxx
B155: xxxxx
B156: xxxxx
B157: xxxxx
B158: xxxxx
B159: xxxxx
B160: xxxxx
B161: {xxxxxxxx}
B162: xxxxx
B163: xxxxx
B164: xxxxx
B165: xxxxx
B166: xxxxx
B167: xxxxx
B168: xxxxx
B169: xxxxx
B171: Uniformes e EPI
B172: xxxxxx
B173: Quantidade
B174: Valor Unitário
B175: xxxxxx
B176: Quantidade
B177: Valor Unitário
B179: COLETA MATERIAS RECICLÁVEIS
B181: Quantidade de Equipamentos Efetivos
B182: xxxx
B183: xxxx
B184: xxxx | AG184: =AF184 -> 0
B185: xxxx
B187: Locação de equipamentos
B188: xxxxx
B189: Quantidade
B190: Valor Unitário
B191: xxxxx
B192: Quantidade
B193: Valor Unitário
B195: Manutenção
B196: xxxxx
B197: Quantidade
B198: Valor Unitário
B199: xxxxx
B200: Quantidade
B201: Valor Unitário
B203: Combustiveis
B204: xxxxx
B205: Quantidade
B206: Km Mensal
B207: Consumo
B208: Valor Unitário
B209: xxxxx
B210: Quantidade
B211: Km Mensal
B212: Consumo
B213: Valor Unitário
B215: Óleos, Lubrificantes e Graxas
B216: xxxxx
B217: Quantidade
B218: Valor Unitário
B219: xxxxx
B220: Quantidade | AG220: =AG183 -> 0
B221: Valor Unitário
B223: Pneus
B224: xxxxx
B225: Quantidade
B226: Valor unitário pneu
... 1522 more rows
